Body Name,Body,Supplier,Transaction Number,Payment Date,Amount,Directorate,Organisational Unit,Cost Centre/Detail Code,Cost Centre Description,Detail Code Description
Ashfield District Council,37UB,Freeman & Mitchell,V0984918,06/01/2022,150.00,Housing & Assets 2,Supplies & Services,G00302/D201011,Capital Receipts HRA,General Fees and Charges
Ashfield District Council,37UB,Freeman & Mitchell,V0985046,06/01/2022,150.00,Housing & Assets 2,Supplies & Services,G00302/D201011,Capital Receipts HRA,General Fees and Charges
Ashfield District Council,37UB,Freeman & Mitchell,V0985091,06/01/2022,200.00,Housing & Assets 2,Supplies & Services,G00302/D201011,Capital Receipts HRA,General Fees and Charges
Ashfield District Council,37UB,Karki & Sons Ltd,V0982458,23/12/2021,5.40,R & B Transformation 2,Supplies & Services,A40000/D101,Chief Executive,Reference books & periodicals
Ashfield District Council,37UB,Karki & Sons Ltd,V0982459,23/12/2021,5.40,R & B Transformation 2,Supplies & Services,A40000/D101,Chief Executive,Reference books & periodicals
Ashfield District Council,37UB,Karki & Sons Ltd,V0982460,23/12/2021,5.40,R & B Transformation 2,Supplies & Services,A40000/D101,Chief Executive,Reference books & periodicals
Ashfield District Council,37UB,Karki & Sons Ltd,V0982461,23/12/2021,5.40,R & B Transformation 2,Supplies & Services,A40000/D101,Chief Executive,Reference books & periodicals
Ashfield District Council,37UB,Karki & Sons Ltd,V0982462,23/12/2021,5.40,R & B Transformation 2,Supplies & Services,A40000/D101,Chief Executive,Reference books & periodicals
Ashfield District Council,37UB,Karki & Sons Ltd,V0982463,23/12/2021,5.40,R & B Transformation 2,Supplies & Services,A40000/D101,Chief Executive,Reference books & periodicals
Ashfield District Council,37UB,Karki & Sons Ltd,V0982464,23/12/2021,5.40,R & B Transformation 2,Supplies & Services,A40000/D101,Chief Executive,Reference books & periodicals
Ashfield District Council,37UB,Showstoppers Ltd,V0983535,09/12/2021,462.00,Chief Executive 2,Supplies & Services,A01001/D400009,Democratic Core,Civic Events
Ashfield District Council,37UB,Blake & Beeley (Kirkby) Ltd,V0983458,09/12/2021,49.16,R & B Transformation 2,Supplies & Services,A01001/D400009,Democratic Core,Civic Events
Ashfield District Council,37UB,Karki & Sons Ltd,V0982458,23/12/2021,11.40,R & B Transformation 2,Supplies & Services,A01001006/D101,Democratic Core,Reference books & periodicals
Ashfield District Council,37UB,Karki & Sons Ltd,V0982459,23/12/2021,11.40,R & B Transformation 2,Supplies & Services,A01001006/D101,Democratic Core,Reference books & periodicals
Ashfield District Council,37UB,Karki & Sons Ltd,V0982460,23/12/2021,11.40,R & B Transformation 2,Supplies & Services,A01001006/D101,Democratic Core,Reference books & periodicals
Ashfield District Council,37UB,Karki & Sons Ltd,V0982461,23/12/2021,11.40,R & B Transformation 2,Supplies & Services,A01001006/D101,Democratic Core,Reference books & periodicals
Ashfield District Council,37UB,Karki & Sons Ltd,V0982462,23/12/2021,11.40,R & B Transformation 2,Supplies & Services,A01001006/D101,Democratic Core,Reference books & periodicals
Ashfield District Council,37UB,Karki & Sons Ltd,V0982463,23/12/2021,11.40,R & B Transformation 2,Supplies & Services,A01001006/D101,Democratic Core,Reference books & periodicals
Ashfield District Council,37UB,Karki & Sons Ltd,V0982464,23/12/2021,11.40,R & B Transformation 2,Supplies & Services,A01001006/D101,Democratic Core,Reference books & periodicals
Ashfield District Council,37UB,Mehmet Alabogaz t/a USA Chicken,V0984314,23/12/2021,194.49,R & B Transformation 2,Suspense & Overall Control,Z99026/Z999,Control Accounts,Credit control totals
Ashfield District Council,37UB,Bronbury Services Ltd,V0983446,09/12/2021,5956.50,Housing & Assets 2,Supplies & Services,G00002002/D200008,Capital Corporate,Payments to Contractors External
Ashfield District Council,37UB,Candor Care Ltd,V0983548,16/12/2021,1885.00,Housing & Assets 2,Supplies & Services,G00002001/D200008,Capital Corporate,Payments to Contractors External
Ashfield District Council,37UB,Closomat Ltd,V0983912,16/12/2021,6212.50,Housing & Assets 2,Supplies & Services,G00002001/D200008,Capital Corporate,Payments to Contractors External
Ashfield District Council,37UB,Crestra Ltd,V0984210,16/12/2021,5116.84,Housing & Assets 2,Supplies & Services,G00002001/D200008,Capital Corporate,Payments to Contractors External
Ashfield District Council,37UB,Crestra Ltd,V0984211,16/12/2021,1133.00,Housing & Assets 2,Supplies & Services,G00002001/D200008,Capital Corporate,Payments to Contractors External
Ashfield District Council,37UB,D Cresswell & Son (Electricians) Ltd,V0983499,09/12/2021,4630.00,Housing & Assets 2,Supplies & Services,G00002002/D200008,Capital Corporate,Payments to Contractors External
Ashfield District Council,37UB,D Cresswell & Son (Electricians) Ltd,V0983926,16/12/2021,3313.00,Housing & Assets 2,Supplies & Services,G00002001/D200008,Capital Corporate,Payments to Contractors External
Ashfield District Council,37UB,D Cresswell & Son (Electricians) Ltd,V0984318,23/12/2021,3871.00,Housing & Assets 2,Supplies & Services,G00002002/D200008,Capital Corporate,Payments to Contractors External
Ashfield District Council,37UB,D Cresswell & Son (Electricians) Ltd,V0985068,06/01/2022,4121.50,Housing & Assets 2,Supplies & Services,G00002001/D200008,Capital Corporate,Payments to Contractors External
Ashfield District Council,37UB,David P Formon B.D.C. Ltd,V0983946,16/12/2021,835.00,Housing & Assets 2,Supplies & Services,G00002001/D200008,Capital Corporate,Payments to Contractors External
Ashfield District Council,37UB,David P Formon B.D.C. Ltd,V0985034,06/01/2022,945.00,Housing & Assets 2,Supplies & Services,G00002001/D200008,Capital Corporate,Payments to Contractors External
Ashfield District Council,37UB,Davinhulme Security Dogs,V0982698,16/12/2021,495.00,Housing & Assets 2,Supplies & Services,C00264/D200008,Capital Corporate,Payments to Contractors External
Ashfield District Council,37UB,Davinhulme Security Dogs,V0985020,06/01/2022,544.50,Housing & Assets 2,Supplies & Services,C00264/D200008,Capital Corporate,Payments to Contractors External
Ashfield District Council,37UB,Dolphin Mobility Ltd,V0985472,06/01/2022,2302.00,Housing & Assets 2,Supplies & Services,G00002001/D200008,Capital Corporate,Payments to Contractors External
Ashfield District Council,37UB,Neil Shacklock Contractors Ltd,V0982715,02/12/2021,2340.00,Housing & Assets 2,Supplies & Services,G00002002/D200008,Capital Corporate,Payments to Contractors External
Ashfield District Council,37UB,Neil Shacklock Contractors Ltd,V0983344,09/12/2021,2190.00,Housing & Assets 2,Supplies & Services,G00002002/D200008,Capital Corporate,Payments to Contractors External
Ashfield District Council,37UB,Neil Shacklock Contractors Ltd,V0980903,16/12/2021,490.00,Housing & Assets 2,Supplies & Services,G00002002/D200008,Capital Corporate,Payments to Contractors External
Ashfield District Council,37UB,Neil Shacklock Contractors Ltd,V0982048,16/12/2021,4215.00,Housing & Assets 2,Supplies & Services,G00002002/D200008,Capital Corporate,Payments to Contractors External
Ashfield District Council,37UB,Neil Shacklock Contractors Ltd,V0983837,16/12/2021,2790.00,Housing & Assets 2,Supplies & Services,G00002002/D200008,Capital Corporate,Payments to Contractors External
Ashfield District Council,37UB,Neil Shacklock Contractors Ltd,V0984946,23/12/2021,2390.00,Housing & Assets 2,Supplies & Services,G00002002/D200008,Capital Corporate,Payments to Contractors External
Ashfield District Council,37UB,Obam Lift Services Ltd,V0983544,09/12/2021,5130.00,Housing & Assets 2,Supplies & Services,G00002001/D200008,Capital Corporate,Payments to Contractors External
Ashfield District Council,37UB,Obam Lift Services Ltd,V0983858,16/12/2021,2155.00,Housing & Assets 2,Supplies & Services,G00002001/D200008,Capital Corporate,Payments to Contractors External
Ashfield District Council,37UB,Obam Lift Services Ltd,V0984966,06/01/2022,3582.00,Housing & Assets 2,Supplies & Services,G00002001/D200008,Capital Corporate,Payments to Contractors External
Ashfield District Council,37UB,PB Property Developments,V0983447,09/12/2021,1130.00,Housing & Assets 2,Supplies & Services,G00002001/D200008,Capital Corporate,Payments to Contractors External
Ashfield District Council,37UB,PB Property Developments,V0983470,09/12/2021,599.50,Housing & Assets 2,Supplies & Services,G00002001/D200008,Capital Corporate,Payments to Contractors External
Ashfield District Council,37UB,PB Property Developments,V0983924,16/12/2021,3545.00,Housing & Assets 2,Supplies & Services,G00002001/D200008,Capital Corporate,Payments to Contractors External
Ashfield District Council,37UB,PB Property Developments,V0983925,16/12/2021,10855.00,Housing & Assets 2,Supplies & Services,G00002001/D200008,Capital Corporate,Payments to Contractors External
Ashfield District Council,37UB,PB Property Developments,V0984197,16/12/2021,6027.50,Housing & Assets 2,Supplies & Services,G00002001/D200008,Capital Corporate,Payments to Contractors External
Ashfield District Council,37UB,PB Property Developments,V0984199,16/12/2021,455.00,Housing & Assets 2,Supplies & Services,G00002001/D200008,Capital Corporate,Payments to Contractors External
Ashfield District Council,37UB,PB Property Developments,V0984229,17/12/2021,600.00,Housing & Assets 2,Supplies & Services,g00002001/d200008,Capital Corporate,Payments to Contractors External
Ashfield District Council,37UB,Rider Levett Bucknall UK Ltd,V0982629,02/12/2021,1600.00,Housing & Assets 2,Supplies & Services,C00256/D200008,Capital Corporate,Payments to Contractors External
Ashfield District Council,37UB,Severn Trent Water Limited,V0982651,02/12/2021,169.50,Housing & Assets 2,Supplies & Services,g00002001/d200008,Capital Corporate,Payments to Contractors External
Ashfield District Council,37UB,Stannah Lift Services Ltd,V0984254,23/12/2021,2173.00,Housing & Assets 2,Supplies & Services,G00002001/D200008,Capital Corporate,Payments to Contractors External
Ashfield District Council,37UB,Sustainable Building Services (Uk) Ltd,V0983945,16/12/2021,36250.00,Housing & Assets 2,Supplies & Services,C00268/D200008,Capital Corporate,Payments to Contractors External
Ashfield District Council,37UB,Sustainable Building Services (Uk) Ltd,V0983945,16/12/2021,22928.62,Housing & Assets 2,Supplies & Services,C00267/D200008,Capital Corporate,Payments to Contractors External
Ashfield District Council,37UB,T Grant & Son Ltd,V0981963,02/12/2021,4701.00,Housing & Assets 2,Supplies & Services,G00002001/D200008,Capital Corporate,Payments to Contractors External
Ashfield District Council,37UB,TK Access Solutions Ltd,V0983927,16/12/2021,4472.00,Housing & Assets 2,Supplies & Services,G00002001/D200008,Capital Corporate,Payments to Contractors External
Ashfield District Council,37UB,Vaughandale Construction Ltd,V0983335,16/12/2021,5461.00,Housing & Assets 2,Supplies & Services,G00002001/D200008,Capital Corporate,Payments to Contractors External
Ashfield District Council,37UB,Vaughandale Construction Ltd,V0985060,06/01/2022,7658.00,Housing & Assets 2,Supplies & Services,G00002001/D200008,Capital Corporate,Payments to Contractors External
Ashfield District Council,37UB,Ven Construction,V0984309,23/12/2021,9715.00,Housing & Assets 2,Supplies & Services,G00002001/D200008,Capital Corporate,Payments to Contractors External
Ashfield District Council,37UB,BH Compliance Ltd,V0985052,06/01/2022,1750.00,Place & Communities 2,Supplies & Services,C00264/D200008,Capital Corporate,Payments to Contractors External
Ashfield District Council,37UB,Buntings (Agri) Ltd,V0985114,06/01/2022,285.36,Place & Communities 2,Supplies & Services,C00258010/D200008,Capital Corporate,Payments to Contractors External
Ashfield District Council,37UB,Dewbar Fabrications Ltd,V0983857,16/12/2021,716.00,Place & Communities 2,Supplies & Services,C00258002/D200008,Capital Corporate,Payments to Contractors External
Ashfield District Council,37UB,Faithful & Gould Ltd,V0981890,02/12/2021,84366.82,Place & Communities 2,Supplies & Services,C00262/D200008,Capital Corporate,Payments to Contractors External
Ashfield District Council,37UB,Faithful & Gould Ltd,V0982580,02/12/2021,28792.31,Place & Communities 2,Supplies & Services,C00262/D200008,Capital Corporate,Payments to Contractors External
Ashfield District Council,37UB,Fluid Ideas Ltd,V0984274,23/12/2021,2416.80,Place & Communities 2,Supplies & Services,C00255101/d200008,Capital Corporate,Payments to Contractors External
Ashfield District Council,37UB,Focus Consultants 2010 LLP,V0985056,06/01/2022,8831.25,Place & Communities 2,Supplies & Services,C00255018/D200008,Capital Corporate,Payments to Contractors External
Ashfield District Council,37UB,Focus Consultants 2010 LLP,V0985061,06/01/2022,2344.00,Place & Communities 2,Supplies & Services,C00255018/D200008,Capital Corporate,Payments to Contractors External
Ashfield District Council,37UB,Gleeds Building Surveying Ltd,V0984948,23/12/2021,1200.00,Place & Communities 2,Supplies & Services,C00264/D200008,Capital Corporate,Payments to Contractors External
Ashfield District Council,37UB,Gleeds Building Surveying Ltd,V0984949,23/12/2021,10042.44,Place & Communities 2,Supplies & Services,C00265/D200008,Capital Corporate,Payments to Contractors External
Ashfield District Council,37UB,Groundsman Tools & Supplies,V0983417,09/12/2021,152.15,Place & Communities 2,Supplies & Services,C00258010/D200008,Capital Corporate,Payments to Contractors External
Ashfield District Council,37UB,Kinver Business Solutions Ltd,V0983805,23/12/2021,2684.38,Place & Communities 2,Supplies & Services,c00264/D200008,Capital Corporate,Payments to Contractors External
Ashfield District Council,37UB,Kinver Business Solutions Ltd,V0983805,23/12/2021,2684.38,Place & Communities 2,Supplies & Services,c00265/D200008,Capital Corporate,Payments to Contractors External
Ashfield District Council,37UB,Kinver Business Solutions Ltd,V0983805,23/12/2021,2684.37,Place & Communities 2,Supplies & Services,C00263/D200008,Capital Corporate,Payments to Contractors External
Ashfield District Council,37UB,Nimrod Environmental Ltd,V0985062,06/01/2022,20150.00,Place & Communities 2,Supplies & Services,C00266/D200008,Capital Corporate,Payments to Contractors External
Ashfield District Council,37UB,Nimrod Environmental Ltd,V0985063,06/01/2022,12155.00,Place & Communities 2,Supplies & Services,C00266/D200008,Capital Corporate,Payments to Contractors External
Ashfield District Council,37UB,Old Hall Nurseries Ltd,V0984181,16/12/2021,497.50,Place & Communities 2,Supplies & Services,C00258010/D200008,Capital Corporate,Payments to Contractors External
Ashfield District Council,37UB,Qualitere Windows Ltd,V0983949,16/12/2021,690.67,Place & Communities 2,Supplies & Services,C00264/D200008,Capital Corporate,Payments to Contractors External
Ashfield District Council,37UB,Realm Projects Ltd,V0984288,23/12/2021,2650.00,Place & Communities 2,Supplies & Services,c00255101/d200008,Capital Corporate,Payments to Contractors External
Ashfield District Council,37UB,Sports & Leisure Management Ltd,V0983384,09/12/2021,203706.13,Place & Communities 2,Supplies & Services,C00261/D200008,Capital Corporate,Payments to Contractors External
Ashfield District Council,37UB,Sports & Leisure Management Ltd,V0983409,09/12/2021,8500.00,Place & Communities 2,Supplies & Services,C00260/D200008,Capital Corporate,Payments to Contractors External
Ashfield District Council,37UB,Sports & Leisure Management Ltd,V0983410,09/12/2021,30000.00,Place & Communities 2,Supplies & Services,C00261/D200008,Capital Corporate,Payments to Contractors External
Ashfield District Council,37UB,Sports & Leisure Management Ltd,V0983411,09/12/2021,12500.00,Place & Communities 2,Supplies & Services,C00261/D200008,Capital Corporate,Payments to Contractors External
Ashfield District Council,37UB,Sports & Leisure Management Ltd,V0983412,09/12/2021,21795.00,Place & Communities 2,Supplies & Services,C00260/D200008,Capital Corporate,Payments to Contractors External
Ashfield District Council,37UB,Sports & Leisure Management Ltd,V0983943,16/12/2021,100000.00,Place & Communities 2,Supplies & Services,C00261/D200008,Capital Corporate,Payments to Contractors External
Ashfield District Council,37UB,Sports & Leisure Management Ltd,V0983944,16/12/2021,20000.00,Place & Communities 2,Supplies & Services,C00261/D200008,Capital Corporate,Payments to Contractors External
Ashfield District Council,37UB,Sports & Leisure Management Ltd,V0984354,23/12/2021,88338.33,Place & Communities 2,Supplies & Services,C00260/D200008,Capital Corporate,Payments to Contractors External
Ashfield District Council,37UB,Stage Right Theatre Consultant,V0982655,02/12/2021,2243.00,Place & Communities 2,Supplies & Services,C00263/D200008,Capital Corporate,Payments to Contractors External
Ashfield District Council,37UB,Stage Right Theatre Consultant,V0984952,23/12/2021,7282.00,Place & Communities 2,Supplies & Services,C00263/D200008,Capital Corporate,Payments to Contractors External
Ashfield District Council,37UB,The Lock Shop (SIA) Ltd,V0984195,23/12/2021,1362.48,Place & Communities 2,Supplies & Services,C00264/D200008,Capital Corporate,Payments to Contractors External
Ashfield District Council,37UB,Dell Products,V0983921,16/12/2021,10661.09,R & B Transformation 2,Supplies & Services,C00244/D200008,Capital Corporate,Payments to Contractors External
Ashfield District Council,37UB,PB Property Developments,V0983495,09/12/2021,-600.00,R & B Transformation 2,Supplies & Services,g00002001/d200008,Capital Corporate,Payments to Contractors External
Ashfield District Council,37UB,Gleeds Advisory Ltd,V0984951,23/12/2021,297.85,Place & Communities 2,Supplies & Services,C00225/D200008,Area Consultative Group Scheme,Payments to Contractors External
Ashfield District Council,37UB,Greenacre Recruitment Limited,V0982647,02/12/2021,1950.00,Chief Executive 2,Supplies & Services,C00235/D200008,Capital Economy,Payments to Contractors External
Ashfield District Council,37UB,Greenacre Recruitment Limited,V0982679,02/12/2021,1950.00,Chief Executive 2,Supplies & Services,C00235/D200008,Capital Economy,Payments to Contractors External
Ashfield District Council,37UB,Greenacre Recruitment Limited,V0984017,16/12/2021,1950.00,Chief Executive 2,Supplies & Services,C00235/D200008,Capital Economy,Payments to Contractors External
Ashfield District Council,37UB,Greenacre Recruitment Limited,V0984333,23/12/2021,2362.50,Chief Executive 2,Supplies & Services,C00235/D200008,Capital Economy,Payments to Contractors External
Ashfield District Council,37UB,Greenacre Recruitment Limited,V0984335,23/12/2021,1800.00,Chief Executive 2,Supplies & Services,C00235/D200008,Capital Economy,Payments to Contractors External
Ashfield District Council,37UB,Greenacre Recruitment Limited,V0984915,23/12/2021,1800.00,Chief Executive 2,Supplies & Services,C00235/D200008,Capital Economy,Payments to Contractors External
Ashfield District Council,37UB,Faithful & Gould Ltd,V0981889,02/12/2021,7367.46,Place & Communities 2,Supplies & Services,C00235/d200008,Capital Economy,Payments to Contractors External
Ashfield District Council,37UB,Faithful & Gould Ltd,V0981889,02/12/2021,1117.28,Place & Communities 2,Supplies & Services,C00235/D200008,Capital Economy,Payments to Contractors External
Ashfield District Council,37UB,Faithful & Gould Ltd,V0982581,02/12/2021,8484.74,Place & Communities 2,Supplies & Services,C00235/D200008,Capital Economy,Payments to Contractors External
Ashfield District Council,37UB,Faithful & Gould Ltd,V0985159,06/01/2022,8484.74,Place & Communities 2,Supplies & Services,C00235/D200008,Capital Economy,Payments to Contractors External
Ashfield District Council,37UB,Hickton Consultants,V0983371,09/12/2021,2576.00,Place & Communities 2,Supplies & Services,C00235/D200008,Capital Economy,Payments to Contractors External
Ashfield District Council,37UB,Hickton Consultants,V0983376,16/12/2021,3404.00,Place & Communities 2,Supplies & Services,C00235/D200008,Capital Economy,Payments to Contractors External
Ashfield District Council,37UB,Kier Construction - North and Scotland,V0983489,09/12/2021,688740.96,Place & Communities 2,Supplies & Services,C00235/D200008,Capital Economy,Payments to Contractors External
Ashfield District Council,37UB,Fluid Ideas Ltd,V0984273,23/12/2021,5044.80,Place & Communities 2,Supplies & Services,C00125001/D200008,Capital Environment,Payments to Contractors External
Ashfield District Council,37UB,G K Group T/A Perrys,V0983415,09/12/2021,26525.00,Place & Communities 2,Supplies & Services,G00010001/D001001,Capital Environment,Equipment Purchase
Ashfield District Council,37UB,James Price Structural Glazing Ltd,V0983918,16/12/2021,2733.00,Place & Communities 2,Supplies & Services,C00125001/D200008,Capital Environment,Payments to Contractors External
Ashfield District Council,37UB,EMEC Ecology,V0971884,23/12/2021,2616.20,R & B Transformation 2,Supplies & Services,C00125001/D200008,Capital Environment,Payments to Contractors External
Ashfield District Council,37UB,Virgin Media Payments Ltd,V0984376,23/12/2021,10.00,R & B Transformation 2,Supplies & Services,C00125/D200008,Capital Environment,Payments to Contractors External
Ashfield District Council,37UB,Bransons,V0984370,06/01/2022,220.84,Housing & Assets 2,Supplies & Services,G00450003/D200033,Capital Housing Revenue,Decoration Vouchers
Ashfield District Council,37UB,J Tomlinson Ltd,V0983932,16/12/2021,23119.92,Housing & Assets 2,Supplies & Services,G00450001/D200008,Capital Housing Revenue,Payments to Contractors External
Ashfield District Council,37UB,J Tomlinson Ltd,V0983932,16/12/2021,117769.73,Housing & Assets 2,Supplies & Services,G00450004/D200008,Capital Housing Revenue,Payments to Contractors External
Ashfield District Council,37UB,J Tomlinson Ltd,V0984196,16/12/2021,58305.26,Housing & Assets 2,Supplies & Services,G00450001/D200008,Capital Housing Revenue,Payments to Contractors External
Ashfield District Council,37UB,Lindum Group Limited,V0983511,09/12/2021,225540.43,Housing & Assets 2,Supplies & Services,G00932/D200008,Capital Housing Revenue,Payments to Contractors External
Ashfield District Council,37UB,Miltons Wallpapers Limited,V0984369,23/12/2021,242.90,Housing & Assets 2,Supplies & Services,G00450003/D200033,Capital Housing Revenue,Decoration Vouchers
Ashfield District Council,37UB,Rider Levett Bucknall UK Ltd,V0982627,02/12/2021,1000.00,Housing & Assets 2,Supplies & Services,G00932/D200008,Capital Housing Revenue,Payments to Contractors External
Ashfield District Council,37UB,Rider Levett Bucknall UK Ltd,V0982628,02/12/2021,2500.00,Housing & Assets 2,Supplies & Services,G00931/D200008,Capital Housing Revenue,Payments to Contractors External
Ashfield District Council,37UB,Sustainable Building Services (Uk) Ltd,V0983945,16/12/2021,24886.25,Housing & Assets 2,Supplies & Services,G00480001/D200008,Capital Housing Revenue,Payments to Contractors External
Ashfield District Council,37UB,Wilko Retail Limited,V0984028,16/12/2021,62.50,Housing & Assets 2,Supplies & Services,G00450003/D200033,Capital Housing Revenue,Decoration Vouchers
Ashfield District Council,37UB,Wilko Retail Limited,V0984029,16/12/2021,62.50,Housing & Assets 2,Supplies & Services,G00450003/D200033,Capital Housing Revenue,Decoration Vouchers
Ashfield District Council,37UB,Wilko Retail Limited,V0984216,16/12/2021,100.00,Housing & Assets 2,Supplies & Services,G00450003/D200033,Capital Housing Revenue,Decoration Vouchers
Ashfield District Council,37UB,Wilko Retail Limited,V0984217,16/12/2021,108.33,Housing & Assets 2,Supplies & Services,G00450003/D200033,Capital Housing Revenue,Decoration Vouchers
Ashfield District Council,37UB,Wilko Retail Limited,V0984218,16/12/2021,114.71,Housing & Assets 2,Supplies & Services,G00450003/D200033,Capital Housing Revenue,Decoration Vouchers
Ashfield District Council,37UB,Wilko Retail Limited,V0984219,16/12/2021,58.33,Housing & Assets 2,Supplies & Services,G00450003/D200033,Capital Housing Revenue,Decoration Vouchers
Ashfield District Council,37UB,Wilko Retail Limited,V0984220,16/12/2021,116.67,Housing & Assets 2,Supplies & Services,G00450003/D200033,Capital Housing Revenue,Decoration Vouchers
Ashfield District Council,37UB,Wilko Retail Limited,V0984221,16/12/2021,62.50,Housing & Assets 2,Supplies & Services,G00450003/D200033,Capital Housing Revenue,Decoration Vouchers
Ashfield District Council,37UB,Wilko Retail Limited,V0984222,16/12/2021,58.33,Housing & Assets 2,Supplies & Services,G00450003/D200033,Capital Housing Revenue,Decoration Vouchers
Ashfield District Council,37UB,Wilko Retail Limited,V0984379,23/12/2021,58.33,Housing & Assets 2,Supplies & Services,G00450003/D200033,Capital Housing Revenue,Decoration Vouchers
Ashfield District Council,37UB,Wilko Retail Limited,V0984380,23/12/2021,62.50,Housing & Assets 2,Supplies & Services,G00450003/D200033,Capital Housing Revenue,Decoration Vouchers
Ashfield District Council,37UB,Wilko Retail Limited,V0984381,23/12/2021,41.67,Housing & Assets 2,Supplies & Services,G00450003/D200033,Capital Housing Revenue,Decoration Vouchers
Ashfield District Council,37UB,Wilko Retail Limited,V0984382,23/12/2021,200.00,Housing & Assets 2,Supplies & Services,G00450003/D200033,Capital Housing Revenue,Decoration Vouchers
Ashfield District Council,37UB,Wilko Retail Limited,V0984383,23/12/2021,62.50,Housing & Assets 2,Supplies & Services,G00450003/D200033,Capital Housing Revenue,Decoration Vouchers
Ashfield District Council,37UB,Wilko Retail Limited,V0984384,23/12/2021,132.21,Housing & Assets 2,Supplies & Services,G00450003/D200033,Capital Housing Revenue,Decoration Vouchers
Ashfield District Council,37UB,Wilko Retail Limited,V0984385,23/12/2021,115.92,Housing & Assets 2,Supplies & Services,G00450003/D200033,Capital Housing Revenue,Decoration Vouchers
Ashfield District Council,37UB,Wilko Retail Limited,V0984386,23/12/2021,49.58,Housing & Assets 2,Supplies & Services,G00450003/D200033,Capital Housing Revenue,Decoration Vouchers
Ashfield District Council,37UB,Wilko Retail Limited,V0984387,23/12/2021,58.33,Housing & Assets 2,Supplies & Services,G00450003/D200033,Capital Housing Revenue,Decoration Vouchers
Ashfield District Council,37UB,Wilko Retail Limited,V0984388,23/12/2021,62.50,Housing & Assets 2,Supplies & Services,G00450003/D200033,Capital Housing Revenue,Decoration Vouchers
Ashfield District Council,37UB,Wilko Retail Limited,V0984389,23/12/2021,165.00,Housing & Assets 2,Supplies & Services,G00450003/D200033,Capital Housing Revenue,Decoration Vouchers
Ashfield District Council,37UB,Wilko Retail Limited,V0984390,23/12/2021,33.33,Housing & Assets 2,Supplies & Services,G00450003/D200033,Capital Housing Revenue,Decoration Vouchers
Ashfield District Council,37UB,Wilko Retail Limited,V0985053,06/01/2022,216.67,Housing & Assets 2,Supplies & Services,G00450003/D200033,Capital Housing Revenue,Decoration Vouchers
Ashfield District Council,37UB,Wilko Retail Limited,V0985054,06/01/2022,99.17,Housing & Assets 2,Supplies & Services,G00450003/D200033,Capital Housing Revenue,Decoration Vouchers
Ashfield District Council,37UB,Dell Products,V0983921,16/12/2021,3366.66,R & B Transformation 2,Supplies & Services,G00930/D200008,Capital Housing Revenue,Payments to Contractors External
Ashfield District Council,37UB,KC Designs,V0984950,23/12/2021,480.00,R & B Transformation 2,Supplies & Services,C00019/D200008,Capital Housing Revenue,Payments to Contractors External
Ashfield District Council,37UB,Total Hire & Sales Ltd,V0984640,23/12/2021,61.60,R & B Transformation 2,Supplies & Services,G00450008/D200008,Capital Housing Revenue,Payments to Contractors External
Ashfield District Council,37UB,British Telecom PLC,V0983520,23/12/2021,160.30,Housing & Assets 2,Supplies & Services,G51013/D301002,Housing OP and SN,Telephones
Ashfield District Council,37UB,Castle Water Ltd,V0983480,16/12/2021,27.76,Housing & Assets 2,Premises Expenses,G51022/B401,Housing OP and SN,Water rates
Ashfield District Council,37UB,Castle Water Ltd,V0983480,16/12/2021,109.88,Housing & Assets 2,Premises Expenses,G51009/B401,Housing OP and SN,Water rates
Ashfield District Council,37UB,Castle Water Ltd,V0983480,16/12/2021,29.00,Housing & Assets 2,Premises Expenses,G51026/B401,Housing OP and SN,Water rates
Ashfield District Council,37UB,Castle Water Ltd,V0983480,16/12/2021,43.22,Housing & Assets 2,Premises Expenses,G51015/B401,Housing OP and SN,Water rates
Ashfield District Council,37UB,Castle Water Ltd,V0983480,16/12/2021,23.85,Housing & Assets 2,Premises Expenses,G51020/B401,Housing OP and SN,Water rates
Ashfield District Council,37UB,Castle Water Ltd,V0983480,16/12/2021,10.96,Housing & Assets 2,Premises Expenses,G51021/B401,Housing OP and SN,Water rates
Ashfield District Council,37UB,Castle Water Ltd,V0983480,16/12/2021,7.10,Housing & Assets 2,Premises Expenses,G51022/B401,Housing OP and SN,Water rates
Ashfield District Council,37UB,Castle Water Ltd,V0983480,16/12/2021,7.10,Housing & Assets 2,Premises Expenses,G51028/B401,Housing OP and SN,Water rates
Ashfield District Council,37UB,Castle Water Ltd,V0983480,16/12/2021,2.13,Housing & Assets 2,Premises Expenses,G51015/B401,Housing OP and SN,Water rates
Ashfield District Council,37UB,Castle Water Ltd,V0983480,16/12/2021,4.56,Housing & Assets 2,Premises Expenses,G51015/B401,Housing OP and SN,Water rates
Ashfield District Council,37UB,Castle Water Ltd,V0983480,16/12/2021,12.30,Housing & Assets 2,Premises Expenses,G51022/B401,Housing OP and SN,Water rates
Ashfield District Council,37UB,Castle Water Ltd,V0983480,16/12/2021,1.99,Housing & Assets 2,Premises Expenses,G51015/B401,Housing OP and SN,Water rates
Ashfield District Council,37UB,Castle Water Ltd,V0983480,16/12/2021,20.03,Housing & Assets 2,Premises Expenses,G51015/B401,Housing OP and SN,Water rates
Ashfield District Council,37UB,Castle Water Ltd,V0983480,16/12/2021,1.99,Housing & Assets 2,Premises Expenses,G51015/B401,Housing OP and SN,Water rates
Ashfield District Council,37UB,Castle Water Ltd,V0983480,16/12/2021,4.56,Housing & Assets 2,Premises Expenses,G51015/B401,Housing OP and SN,Water rates
Ashfield District Council,37UB,Castle Water Ltd,V0983480,16/12/2021,1.99,Housing & Assets 2,Premises Expenses,G51015/B401,Housing OP and SN,Water rates
Ashfield District Council,37UB,Castle Water Ltd,V0983480,16/12/2021,9.13,Housing & Assets 2,Premises Expenses,G51015/B401,Housing OP and SN,Water rates
Ashfield District Council,37UB,Castle Water Ltd,V0983480,16/12/2021,71.73,Housing & Assets 2,Premises Expenses,G51008/B401,Housing OP and SN,Water rates
Ashfield District Council,37UB,Castle Water Ltd,V0983480,16/12/2021,1.99,Housing & Assets 2,Premises Expenses,G51015/B401,Housing OP and SN,Water rates
Ashfield District Council,37UB,Castle Water Ltd,V0983480,16/12/2021,4.56,Housing & Assets 2,Premises Expenses,G51015/B401,Housing OP and SN,Water rates
Ashfield District Council,37UB,Castle Water Ltd,V0983480,16/12/2021,39.31,Housing & Assets 2,Premises Expenses,G51023/B401,Housing OP and SN,Water rates
Ashfield District Council,37UB,Castle Water Ltd,V0983480,16/12/2021,70.11,Housing & Assets 2,Premises Expenses,G51027/B401,Housing OP and SN,Water rates
Ashfield District Council,37UB,Castle Water Ltd,V0983480,16/12/2021,25.18,Housing & Assets 2,Premises Expenses,G51028/B401,Housing OP and SN,Water rates
Ashfield District Council,37UB,Morris Vermaport Ltd,V0983481,09/12/2021,540.00,Housing & Assets 2,Premises Expenses,G51015/B003006,Housing OP and SN,Lift
Ashfield District Council,37UB,Morris Vermaport Ltd,V0984239,23/12/2021,66.00,Housing & Assets 2,Premises Expenses,G51026/B003006,Housing OP and SN,Lift
Ashfield District Council,37UB,Morris Vermaport Ltd,V0984239,23/12/2021,66.00,Housing & Assets 2,Premises Expenses,G51030/B003006,Housing OP and SN,Lift
Ashfield District Council,37UB,Morris Vermaport Ltd,V0984239,23/12/2021,132.00,Housing & Assets 2,Premises Expenses,G51013/B003006,Housing OP and SN,Lift
Ashfield District Council,37UB,Morris Vermaport Ltd,V0984239,23/12/2021,66.00,Housing & Assets 2,Premises Expenses,G51027/B003006,Housing OP and SN,Lift
Ashfield District Council,37UB,Morris Vermaport Ltd,V0984239,23/12/2021,66.00,Housing & Assets 2,Premises Expenses,G51007/B003006,Housing OP and SN,Lift
Ashfield District Council,37UB,Morris Vermaport Ltd,V0984239,23/12/2021,132.00,Housing & Assets 2,Premises Expenses,G51015/B003006,Housing OP and SN,Lift
Ashfield District Council,37UB,Morris Vermaport Ltd,V0984239,23/12/2021,66.00,Housing & Assets 2,Premises Expenses,G51023/B003006,Housing OP and SN,Lift
Ashfield District Council,37UB,Morris Vermaport Ltd,V0984239,23/12/2021,66.00,Housing & Assets 2,Premises Expenses,G51028/B003006,Housing OP and SN,Lift
Ashfield District Council,37UB,Morris Vermaport Ltd,V0984239,23/12/2021,66.00,Housing & Assets 2,Premises Expenses,G51021/B003006,Housing OP and SN,Lift
Ashfield District Council,37UB,Morris Vermaport Ltd,V0984239,23/12/2021,66.00,Housing & Assets 2,Premises Expenses,G51022/B003006,Housing OP and SN,Lift
Ashfield District Council,37UB,Morris Vermaport Ltd,V0984295,23/12/2021,775.00,Housing & Assets 2,Premises Expenses,G51021/B003006,Housing OP and SN,Lift
Ashfield District Council,37UB,Morris Vermaport Ltd,V0984296,23/12/2021,775.00,Housing & Assets 2,Premises Expenses,G51022/B003006,Housing OP and SN,Lift
Ashfield District Council,37UB,Morris Vermaport Ltd,V0984323,23/12/2021,123.75,Housing & Assets 2,Premises Expenses,G51007/B003006,Housing OP and SN,Lift
Ashfield District Council,37UB,Morris Vermaport Ltd,V0984324,23/12/2021,90.00,Housing & Assets 2,Premises Expenses,G51027/B003006,Housing OP and SN,Lift
Ashfield District Council,37UB,Morris Vermaport Ltd,V0984327,23/12/2021,78.75,Housing & Assets 2,Premises Expenses,G51023/B003006,Housing OP and SN,Lift
Ashfield District Council,37UB,Morris Vermaport Ltd,V0984328,23/12/2021,33.75,Housing & Assets 2,Premises Expenses,G51027/B003006,Housing OP and SN,Lift
Ashfield District Council,37UB,Nottinghamshire Fire Safety Limited,V0982564,02/12/2021,44.52,Housing & Assets 2,Premises Expenses,G51008/B003011,Housing OP and SN,Fire Alarms
Ashfield District Council,37UB,British Telecom PLC,V0985086,06/01/2022,191.08,R & B Transformation 2,Supplies & Services,G51007/D301002,Housing OP and SN,Telephones
Ashfield District Council,37UB,Daisy Telecoms Ltd,V0982742,02/12/2021,74.09,R & B Transformation 2,Supplies & Services,G51022/D301006,Housing OP and SN,Alarm Lines
Ashfield District Council,37UB,Daisy Telecoms Ltd,V0982742,02/12/2021,24.03,R & B Transformation 2,Supplies & Services,G51028/D301002,Housing OP and SN,Telephones
Ashfield District Council,37UB,Daisy Telecoms Ltd,V0982742,02/12/2021,65.58,R & B Transformation 2,Supplies & Services,G51026/D301006,Housing OP and SN,Alarm Lines
Ashfield District Council,37UB,Daisy Telecoms Ltd,V0982742,02/12/2021,79.19,R & B Transformation 2,Supplies & Services,G51015/D301006,Housing OP and SN,Alarm Lines
Ashfield District Council,37UB,Daisy Telecoms Ltd,V0982742,02/12/2021,14.62,R & B Transformation 2,Premises Expenses,G51028/B003011,Housing OP and SN,Fire Alarms
Ashfield District Council,37UB,Daisy Telecoms Ltd,V0982742,02/12/2021,13.52,R & B Transformation 2,Premises Expenses,G51009/B003011,Housing OP and SN,Fire Alarms
Ashfield District Council,37UB,Daisy Telecoms Ltd,V0982742,02/12/2021,24.03,R & B Transformation 2,Supplies & Services,G51015/D301002,Housing OP and SN,Telephones
Ashfield District Council,37UB,Daisy Telecoms Ltd,V0982742,02/12/2021,13.52,R & B Transformation 2,Premises Expenses,G51008/B003011,Housing OP and SN,Fire Alarms
Ashfield District Council,37UB,Daisy Telecoms Ltd,V0982742,02/12/2021,13.52,R & B Transformation 2,Premises Expenses,G51023/B003011,Housing OP and SN,Fire Alarms
Ashfield District Council,37UB,Daisy Telecoms Ltd,V0982742,02/12/2021,226.01,R & B Transformation 2,Premises Expenses,G51001/B003010,Housing OP and SN,C C T V Cameras
Ashfield District Council,37UB,Daisy Telecoms Ltd,V0982742,02/12/2021,33.69,R & B Transformation 2,Supplies & Services,G51027/D301006,Housing OP and SN,Alarm Lines
Ashfield District Council,37UB,Daisy Telecoms Ltd,V0982742,02/12/2021,13.59,R & B Transformation 2,Premises Expenses,G51030/B004006,Housing OP and SN,General; Building Repairs & Courts
Ashfield District Council,37UB,Daisy Telecoms Ltd,V0982742,02/12/2021,13.52,R & B Transformation 2,Supplies & Services,G51022/D301002,Housing OP and SN,Telephones
Ashfield District Council,37UB,Daisy Telecoms Ltd,V0982742,02/12/2021,24.03,R & B Transformation 2,Supplies & Services,G51030/D301002,Housing OP and SN,Telephones
Ashfield District Council,37UB,Daisy Telecoms Ltd,V0982742,02/12/2021,148.92,R & B Transformation 2,Supplies & Services,G51001/D301002,Housing OP and SN,Telephones
Ashfield District Council,37UB,Daisy Telecoms Ltd,V0982742,02/12/2021,44.51,R & B Transformation 2,Supplies & Services,G51021/D301006,Housing OP and SN,Alarm Lines
Ashfield District Council,37UB,Daisy Telecoms Ltd,V0982742,02/12/2021,37.55,R & B Transformation 2,Supplies & Services,G51027/D301002,Housing OP and SN,Telephones
Ashfield District Council,37UB,Daisy Telecoms Ltd,V0982742,02/12/2021,43.61,R & B Transformation 2,Supplies & Services,G51030/D301006,Housing OP and SN,Alarm Lines
Ashfield District Council,37UB,Daisy Telecoms Ltd,V0982742,02/12/2021,27.29,R & B Transformation 2,Supplies & Services,G51028/D301006,Housing OP and SN,Alarm Lines
Ashfield District Council,37UB,Daisy Telecoms Ltd,V0982742,02/12/2021,13.82,R & B Transformation 2,Supplies & Services,G51023/D301006,Housing OP and SN,Alarm Lines
Ashfield District Council,37UB,Daisy Telecoms Ltd,V0984018,23/12/2021,6.87,R & B Transformation 2,Supplies & Services,G51028/D301002,Housing OP and SN,Telephones
Ashfield District Council,37UB,Daisy Telecoms Ltd,V0984018,23/12/2021,5.72,R & B Transformation 2,Supplies & Services,G51027/D301002,Housing OP and SN,Telephones
Ashfield District Council,37UB,Daisy Telecoms Ltd,V0984018,23/12/2021,6.87,R & B Transformation 2,Supplies & Services,G51030/D301002,Housing OP and SN,Telephones
Ashfield District Council,37UB,Daisy Telecoms Ltd,V0984018,23/12/2021,13.74,R & B Transformation 2,Supplies & Services,G51015/D301002,Housing OP and SN,Telephones
Ashfield District Council,37UB,EDF Energy 1 Ltd,V0983986,16/12/2021,1656.49,R & B Transformation 2,Premises Expenses,G51026/B102,Housing OP and SN,Electricity
Ashfield District Council,37UB,Total Gas & Power,V0982675,02/12/2021,843.17,R & B Transformation 2,Premises Expenses,G51023/B101,Housing OP and SN,Gas
Ashfield District Council,37UB,Total Gas & Power,V0983979,16/12/2021,1097.52,R & B Transformation 2,Premises Expenses,G51028/B101,Housing OP and SN,Gas
Ashfield District Council,37UB,Total Gas & Power,V0983979,16/12/2021,410.93,R & B Transformation 2,Premises Expenses,G51030/B101,Housing OP and SN,Gas
Ashfield District Council,37UB,Total Gas & Power,V0983979,16/12/2021,2050.04,R & B Transformation 2,Premises Expenses,G51019/B101,Housing OP and SN,Gas
Ashfield District Council,37UB,Total Gas & Power,V0983979,16/12/2021,376.59,R & B Transformation 2,Premises Expenses,G51015/B101,Housing OP and SN,Gas
Ashfield District Council,37UB,Total Gas & Power,V0983979,16/12/2021,274.55,R & B Transformation 2,Premises Expenses,G51026/B101,Housing OP and SN,Gas
Ashfield District Council,37UB,Total Gas & Power,V0983979,16/12/2021,1319.62,R & B Transformation 2,Premises Expenses,G51027/B101,Housing OP and SN,Gas
Ashfield District Council,37UB,Total Gas & Power,V0983979,16/12/2021,1359.19,R & B Transformation 2,Premises Expenses,G51013/B101,Housing OP and SN,Gas
Ashfield District Council,37UB,Total Gas & Power,V0983979,16/12/2021,99.89,R & B Transformation 2,Premises Expenses,G51007/B101,Housing OP and SN,Gas
Ashfield District Council,37UB,Total Gas & Power,V0983979,16/12/2021,1012.62,R & B Transformation 2,Premises Expenses,G51023/B101,Housing OP and SN,Gas
Ashfield District Council,37UB,Total Gas & Power,V0983979,16/12/2021,926.47,R & B Transformation 2,Premises Expenses,G51019/B101,Housing OP and SN,Gas
Ashfield District Council,37UB,Total Gas & Power,V0983979,16/12/2021,195.15,R & B Transformation 2,Premises Expenses,G51008/B101,Housing OP and SN,Gas
Ashfield District Council,37UB,Total Gas & Power,V0983979,16/12/2021,189.68,R & B Transformation 2,Premises Expenses,G51009/B101,Housing OP and SN,Gas
Ashfield District Council,37UB,Total Gas & Power,V0983979,16/12/2021,1918.08,R & B Transformation 2,Premises Expenses,G51022/B101,Housing OP and SN,Gas
Ashfield District Council,37UB,Total Gas & Power,V0983979,16/12/2021,621.52,R & B Transformation 2,Premises Expenses,G51007/B101,Housing OP and SN,Gas
Ashfield District Council,37UB,Total Gas & Power,V0983979,16/12/2021,972.05,R & B Transformation 2,Premises Expenses,G51019/B101,Housing OP and SN,Gas
Ashfield District Council,37UB,British Gas Business,V0983436,16/12/2021,626.06,Housing & Assets 2,Premises Expenses,G23011038/B101,Housing Revenue Account,Gas
Ashfield District Council,37UB,British Gas Business,V0983436,16/12/2021,417.50,Housing & Assets 2,Premises Expenses,G23011014/B101,Housing Revenue Account,Gas
Ashfield District Council,37UB,British Gas Business,V0983436,16/12/2021,181.65,Housing & Assets 2,Premises Expenses,G23011002/B101,Housing Revenue Account,Gas
Ashfield District Council,37UB,British Gas Business,V0983436,16/12/2021,52.62,Housing & Assets 2,Premises Expenses,G23011003/B101,Housing Revenue Account,Gas
Ashfield District Council,37UB,British Gas Business,V0983436,16/12/2021,79.74,Housing & Assets 2,Premises Expenses,G23011004/B101,Housing Revenue Account,Gas
Ashfield District Council,37UB,British Gas Business,V0983436,16/12/2021,182.01,Housing & Assets 2,Premises Expenses,G23011007/B101,Housing Revenue Account,Gas
Ashfield District Council,37UB,British Gas Business,V0983436,16/12/2021,61.57,Housing & Assets 2,Premises Expenses,G23011016/B101,Housing Revenue Account,Gas
Ashfield District Council,37UB,British Gas Business,V0983436,16/12/2021,55.19,Housing & Assets 2,Premises Expenses,G23011040/B101,Housing Revenue Account,Gas
Ashfield District Council,37UB,British Gas Business,V0983436,16/12/2021,53.58,Housing & Assets 2,Premises Expenses,G23011051/B101,Housing Revenue Account,Gas
Ashfield District Council,37UB,British Gas Business,V0983436,16/12/2021,33.50,Housing & Assets 2,Premises Expenses,G23011046/B101,Housing Revenue Account,Gas
Ashfield District Council,37UB,British Gas Business,V0983436,16/12/2021,200.63,Housing & Assets 2,Premises Expenses,G23011038/B101,Housing Revenue Account,Gas
Ashfield District Council,37UB,British Gas Business,V0983436,16/12/2021,43.12,Housing & Assets 2,Premises Expenses,G23011055/B101,Housing Revenue Account,Gas
Ashfield District Council,37UB,British Gas Business,V0983436,16/12/2021,85.58,Housing & Assets 2,Premises Expenses,G23011020/B101,Housing Revenue Account,Gas
Ashfield District Council,37UB,British Gas Business,V0983436,16/12/2021,24.26,Housing & Assets 2,Premises Expenses,G23011033/B101,Housing Revenue Account,Gas
Ashfield District Council,37UB,British Gas Business,V0983436,16/12/2021,161.67,Housing & Assets 2,Premises Expenses,G23011035/B101,Housing Revenue Account,Gas
Ashfield District Council,37UB,British Gas Business,V0983436,16/12/2021,55.00,Housing & Assets 2,Premises Expenses,G23011033/B101,Housing Revenue Account,Gas
Ashfield District Council,37UB,British Gas Business,V0983436,16/12/2021,53.57,Housing & Assets 2,Premises Expenses,G23011007/B101,Housing Revenue Account,Gas
Ashfield District Council,37UB,British Gas Business,V0983436,16/12/2021,44.34,Housing & Assets 2,Premises Expenses,G23011015/B101,Housing Revenue Account,Gas
Ashfield District Council,37UB,British Gas Business,V0983436,16/12/2021,280.41,Housing & Assets 2,Premises Expenses,G23011034/B101,Housing Revenue Account,Gas
Ashfield District Council,37UB,British Gas Business,V0983436,16/12/2021,41.77,Housing & Assets 2,Premises Expenses,G23011001/B101,Housing Revenue Account,Gas
Ashfield District Council,37UB,British Gas Business,V0983436,16/12/2021,185.82,Housing & Assets 2,Premises Expenses,G23011016/B101,Housing Revenue Account,Gas
Ashfield District Council,37UB,British Gas Business,V0983436,16/12/2021,37.87,Housing & Assets 2,Premises Expenses,G23011003/B101,Housing Revenue Account,Gas
Ashfield District Council,37UB,British Gas Business,V0983436,16/12/2021,128.74,Housing & Assets 2,Premises Expenses,G23011015/B101,Housing Revenue Account,Gas
Ashfield District Council,37UB,British Gas Business,V0983436,16/12/2021,18.17,Housing & Assets 2,Premises Expenses,G23011055/B101,Housing Revenue Account,Gas
Ashfield District Council,37UB,British Gas Business,V0983436,16/12/2021,21.69,Housing & Assets 2,Premises Expenses,G23011051/B101,Housing Revenue Account,Gas
Ashfield District Council,37UB,British Gas Business,V0983436,16/12/2021,92.58,Housing & Assets 2,Premises Expenses,G23011046/B101,Housing Revenue Account,Gas
Ashfield District Council,37UB,British Gas Business,V0983436,16/12/2021,304.85,Housing & Assets 2,Premises Expenses,G23011040/B101,Housing Revenue Account,Gas
Ashfield District Council,37UB,British Gas Business,V0983436,16/12/2021,158.93,Housing & Assets 2,Premises Expenses,G23011041/B101,Housing Revenue Account,Gas
Ashfield District Council,37UB,British Gas Business,V0983436,16/12/2021,123.03,Housing & Assets 2,Premises Expenses,G23011014/B101,Housing Revenue Account,Gas
Ashfield District Council,37UB,British Gas Business,V0983436,16/12/2021,549.38,Housing & Assets 2,Premises Expenses,G23011030/B101,Housing Revenue Account,Gas
Ashfield District Council,37UB,British Gas Business,V0983436,16/12/2021,119.22,Housing & Assets 2,Premises Expenses,G23011001/B101,Housing Revenue Account,Gas
Ashfield District Council,37UB,British Gas Business,V0983436,16/12/2021,211.97,Housing & Assets 2,Premises Expenses,G23011004/B101,Housing Revenue Account,Gas
Ashfield District Council,37UB,British Gas Business,V0983436,16/12/2021,13.41,Housing & Assets 2,Premises Expenses,G23011029/B101,Housing Revenue Account,Gas
Ashfield District Council,37UB,British Gas Business,V0983436,16/12/2021,127.78,Housing & Assets 2,Premises Expenses,G23011029/B101,Housing Revenue Account,Gas
Ashfield District Council,37UB,British Gas Business,V0983449,16/12/2021,64.28,Housing & Assets 2,Premises Expenses,G23011001/B102,Housing Revenue Account,Electricity
Ashfield District Council,37UB,British Gas Business,V0983449,16/12/2021,0.46,Housing & Assets 2,Premises Expenses,G23011015/B102,Housing Revenue Account,Electricity
Ashfield District Council,37UB,British Gas Business,V0983449,16/12/2021,0.46,Housing & Assets 2,Premises Expenses,G23011033/B102,Housing Revenue Account,Electricity
Ashfield District Council,37UB,British Gas Business,V0983449,16/12/2021,125.33,Housing & Assets 2,Premises Expenses,G23011004/B102,Housing Revenue Account,Electricity
Ashfield District Council,37UB,British Gas Business,V0983449,16/12/2021,0.91,Housing & Assets 2,Premises Expenses,G23011039/B102,Housing Revenue Account,Electricity
Ashfield District Council,37UB,British Gas Business,V0983449,16/12/2021,79.63,Housing & Assets 2,Premises Expenses,G23011041/B102,Housing Revenue Account,Electricity
Ashfield District Council,37UB,British Gas Business,V0983449,16/12/2021,196.67,Housing & Assets 2,Premises Expenses,G23011014/B102,Housing Revenue Account,Electricity
Ashfield District Council,37UB,British Gas Business,V0983449,16/12/2021,0.46,Housing & Assets 2,Premises Expenses,G23011032/B102,Housing Revenue Account,Electricity
Ashfield District Council,37UB,British Gas Business,V0983449,16/12/2021,54.50,Housing & Assets 2,Premises Expenses,G23011046/B102,Housing Revenue Account,Electricity
Ashfield District Council,37UB,British Gas Business,V0983449,16/12/2021,76.15,Housing & Assets 2,Premises Expenses,G23011036/B102,Housing Revenue Account,Electricity
Ashfield District Council,37UB,British Gas Business,V0983449,16/12/2021,69.10,Housing & Assets 2,Premises Expenses,G23011002/B102,Housing Revenue Account,Electricity
Ashfield District Council,37UB,British Gas Business,V0983449,16/12/2021,0.46,Housing & Assets 2,Premises Expenses,G23011014/B102,Housing Revenue Account,Electricity
Ashfield District Council,37UB,British Gas Business,V0983449,16/12/2021,100.01,Housing & Assets 2,Premises Expenses,G23011030/B102,Housing Revenue Account,Electricity
Ashfield District Council,37UB,British Gas Business,V0983449,16/12/2021,27.01,Housing & Assets 2,Premises Expenses,G23011032/B102,Housing Revenue Account,Electricity
Ashfield District Council,37UB,British Gas Business,V0983449,16/12/2021,43.53,Housing & Assets 2,Premises Expenses,G23011055/B102,Housing Revenue Account,Electricity
Ashfield District Council,37UB,British Gas Business,V0983449,16/12/2021,144.80,Housing & Assets 2,Premises Expenses,G23011041/B102,Housing Revenue Account,Electricity
Ashfield District Council,37UB,British Gas Business,V0983449,16/12/2021,59.67,Housing & Assets 2,Premises Expenses,G23011033/B102,Housing Revenue Account,Electricity
Ashfield District Council,37UB,British Gas Business,V0983449,16/12/2021,18.92,Housing & Assets 2,Premises Expenses,G23011040/B102,Housing Revenue Account,Electricity
Ashfield District Council,37UB,British Gas Business,V0983449,16/12/2021,32.21,Housing & Assets 2,Premises Expenses,G23011051/B102,Housing Revenue Account,Electricity
Ashfield District Council,37UB,British Gas Business,V0983449,16/12/2021,125.46,Housing & Assets 2,Premises Expenses,G23011001/B102,Housing Revenue Account,Electricity
Ashfield District Council,37UB,British Gas Business,V0983449,16/12/2021,38.50,Housing & Assets 2,Premises Expenses,G23011029/B102,Housing Revenue Account,Electricity
Ashfield District Council,37UB,British Gas Business,V0983449,16/12/2021,103.81,Housing & Assets 2,Premises Expenses,G23011007/B102,Housing Revenue Account,Electricity
Ashfield District Council,37UB,British Gas Business,V0983449,16/12/2021,42.89,Housing & Assets 2,Premises Expenses,G23011038/B102,Housing Revenue Account,Electricity
Ashfield District Council,37UB,British Gas Business,V0983449,16/12/2021,295.16,Housing & Assets 2,Premises Expenses,G23011005/B102,Housing Revenue Account,Electricity
Ashfield District Council,37UB,British Gas Business,V0983449,16/12/2021,101.54,Housing & Assets 2,Premises Expenses,G23011016/B102,Housing Revenue Account,Electricity
Ashfield District Council,37UB,British Gas Business,V0983449,16/12/2021,76.27,Housing & Assets 2,Premises Expenses,G23011040/B102,Housing Revenue Account,Electricity
Ashfield District Council,37UB,British Gas Business,V0983449,16/12/2021,92.58,Housing & Assets 2,Premises Expenses,G23011035/B102,Housing Revenue Account,Electricity
Ashfield District Council,37UB,British Gas Business,V0983449,16/12/2021,120.25,Housing & Assets 2,Premises Expenses,G23011016/B102,Housing Revenue Account,Electricity
Ashfield District Council,37UB,British Gas Business,V0983449,16/12/2021,109.76,Housing & Assets 2,Premises Expenses,G23011007/B102,Housing Revenue Account,Electricity
Ashfield District Council,37UB,British Gas Business,V0983449,16/12/2021,20.97,Housing & Assets 2,Premises Expenses,G23011051/B102,Housing Revenue Account,Electricity
Ashfield District Council,37UB,British Gas Business,V0983449,16/12/2021,67.11,Housing & Assets 2,Premises Expenses,G23011032/B102,Housing Revenue Account,Electricity
Ashfield District Council,37UB,British Gas Business,V0983449,16/12/2021,27.41,Housing & Assets 2,Premises Expenses,G23011055/B102,Housing Revenue Account,Electricity
Ashfield District Council,37UB,British Gas Business,V0983449,16/12/2021,111.73,Housing & Assets 2,Premises Expenses,G23011029/B102,Housing Revenue Account,Electricity
Ashfield District Council,37UB,British Gas Business,V0983449,16/12/2021,0.46,Housing & Assets 2,Premises Expenses,G23011030/B102,Housing Revenue Account,Electricity
Ashfield District Council,37UB,British Gas Business,V0983449,16/12/2021,0.46,Housing & Assets 2,Premises Expenses,G23011004/B102,Housing Revenue Account,Electricity
Ashfield District Council,37UB,British Gas Trading Limited,V0983491,16/12/2021,26.44,Housing & Assets 2,Premises Expenses,G23011046/B101,Housing Revenue Account,Gas
Ashfield District Council,37UB,British Gas Trading Limited,V0983491,16/12/2021,32.11,Housing & Assets 2,Premises Expenses,G23011046/B102,Housing Revenue Account,Electricity
Ashfield District Council,37UB,British Gas Trading Limited,V0983492,16/12/2021,14.61,Housing & Assets 2,Premises Expenses,G23011046/B102,Housing Revenue Account,Electricity
Ashfield District Council,37UB,British Gas Trading Limited,V0983493,16/12/2021,16.45,Housing & Assets 2,Premises Expenses,G23011046/B101,Housing Revenue Account,Gas
Ashfield District Council,37UB,British Gas Trading Limited,V0983869,16/12/2021,608.19,Housing & Assets 2,Premises Expenses,G23011032/B102,Housing Revenue Account,Electricity
Ashfield District Council,37UB,British Gas Trading Limited,V0983869,16/12/2021,228.09,Housing & Assets 2,Premises Expenses,G23011032/B101,Housing Revenue Account,Gas
Ashfield District Council,37UB,British Gas Trading Limited,V0983928,16/12/2021,18.44,Housing & Assets 2,Premises Expenses,G23011007/B101,Housing Revenue Account,Gas
Ashfield District Council,37UB,Castle Water Ltd,V0983480,16/12/2021,16.11,Housing & Assets 2,Premises Expenses,G23100006/B401,Housing Revenue Account,Water rates
Ashfield District Council,37UB,Castle Water Ltd,V0983480,16/12/2021,7.10,Housing & Assets 2,Premises Expenses,G23100003/B401,Housing Revenue Account,Water rates
Ashfield District Council,37UB,Castle Water Ltd,V0983480,16/12/2021,35.45,Housing & Assets 2,Premises Expenses,G23100004/B401,Housing Revenue Account,Water rates
Ashfield District Council,37UB,Castle Water Ltd,V0983480,16/12/2021,21.27,Housing & Assets 2,Premises Expenses,G23100007/B401,Housing Revenue Account,Water rates
Ashfield District Council,37UB,Castle Water Ltd,V0983480,16/12/2021,16.12,Housing & Assets 2,Premises Expenses,G23100002/B401,Housing Revenue Account,Water rates
Ashfield District Council,37UB,Chartered Institute of Housing,V0984019,16/12/2021,344.00,Housing & Assets 2,Supplies & Services,G23000/D201007,Housing Revenue Account,Membership/Subscriptions
Ashfield District Council,37UB,Chartered Institute of Housing,V0984885,23/12/2021,344.00,Housing & Assets 2,Supplies & Services,G23000/D201007,Housing Revenue Account,Membership/Subscriptions
Ashfield District Council,37UB,D.P.Tool Hire,V0985106,06/01/2022,279.00,Housing & Assets 2,Supplies & Services,G23011029/D001001,Housing Revenue Account,Equipment Purchase
Ashfield District Council,37UB,D.P.Tool Hire,V0985106,06/01/2022,86.00,Housing & Assets 2,Supplies & Services,G23011029/D001001,Housing Revenue Account,Equipment Purchase
Ashfield District Council,37UB,D.P.Tool Hire,V0985106,06/01/2022,105.00,Housing & Assets 2,Supplies & Services,G23011029/D001001,Housing Revenue Account,Equipment Purchase
Ashfield District Council,37UB,D.P.Tool Hire,V0985121,06/01/2022,105.00,Housing & Assets 2,Supplies & Services,G23011/D001001,Housing Revenue Account,Equipment Purchase
Ashfield District Council,37UB,Nottinghamshire Fire Safety Limited,V0981985,02/12/2021,25.08,Housing & Assets 2,Premises Expenses,G23100002/B002004,Housing Revenue Account,Fire Fighting Equipment
Ashfield District Council,37UB,Nottinghamshire Fire Safety Limited,V0981987,02/12/2021,25.08,Housing & Assets 2,Premises Expenses,G23100006/B002004,Housing Revenue Account,Fire Fighting Equipment
Ashfield District Council,37UB,Nottinghamshire Fire Safety Limited,V0982592,02/12/2021,25.08,Housing & Assets 2,Premises Expenses,G23100007/B002004,Housing Revenue Account,Fire Fighting Equipment
Ashfield District Council,37UB,Nottinghamshire Fire Safety Limited,V0982593,02/12/2021,21.56,Housing & Assets 2,Premises Expenses,G23100003/B002004,Housing Revenue Account,Fire Fighting Equipment
Ashfield District Council,37UB,Pete Burton Building Contractors Ltd,V0983883,16/12/2021,1460.00,Housing & Assets 2,Premises Expenses,G23100006/B001001,Housing Revenue Account,General Repairs Asset Maintenance
Ashfield District Council,37UB,PHS Group Plc,V0982652,02/12/2021,2677.84,Housing & Assets 2,Supplies & Services,N23000/D002002,Housing Revenue Account,Ladies Disposal Machine Maintenance
Ashfield District Council,37UB,Shell Energy Retail Ltd,V0982725,02/12/2021,32.82,Housing & Assets 2,Premises Expenses,G23011047/B101,Housing Revenue Account,Gas
Ashfield District Council,37UB,Shell Energy Retail Ltd,V0982725,02/12/2021,30.17,Housing & Assets 2,Premises Expenses,G23011047/B102,Housing Revenue Account,Electricity
Ashfield District Council,37UB,Ashfield Citizens Advice Bureau,V0985036,06/01/2022,2500.00,Place & Communities 2,Supplies & Services,G23000/D201010,Housing Revenue Account,Professional and Consultancy Services
Ashfield District Council,37UB,Ashfield District Council,V0982567,02/12/2021,30.35,R & B Transformation 2,Income,G23011014/J102004,Housing Revenue Account,Housing Benefit Contributions
Ashfield District Council,37UB,Ashfield District Council,V0982631,02/12/2021,87.09,R & B Transformation 2,Income,G23011056/J102004,Housing Revenue Account,Housing Benefit Contributions
Ashfield District Council,37UB,British Gas Business,V0985117,06/01/2022,156.44,R & B Transformation 2,Premises Expenses,G23011016/B102,Housing Revenue Account,Electricity
Ashfield District Council,37UB,British Gas Business,V0985117,06/01/2022,62.75,R & B Transformation 2,Premises Expenses,G23011001/B102,Housing Revenue Account,Electricity
Ashfield District Council,37UB,British Gas Business,V0985117,06/01/2022,125.97,R & B Transformation 2,Premises Expenses,G23011015/B102,Housing Revenue Account,Electricity
Ashfield District Council,37UB,British Gas Business,V0985117,06/01/2022,256.74,R & B Transformation 2,Premises Expenses,G23011034/B102,Housing Revenue Account,Electricity
Ashfield District Council,37UB,British Gas Business,V0985117,06/01/2022,44.68,R & B Transformation 2,Premises Expenses,G23011046/B102,Housing Revenue Account,Electricity
Ashfield District Council,37UB,British Gas Business,V0985117,06/01/2022,71.86,R & B Transformation 2,Premises Expenses,G23011030/B102,Housing Revenue Account,Electricity
Ashfield District Council,37UB,British Gas Business,V0985117,06/01/2022,45.45,R & B Transformation 2,Premises Expenses,G23011005/B102,Housing Revenue Account,Electricity
Ashfield District Council,37UB,British Gas Business,V0985117,06/01/2022,103.62,R & B Transformation 2,Premises Expenses,G23011014/B102,Housing Revenue Account,Electricity
Ashfield District Council,37UB,British Gas Business,V0985117,06/01/2022,-0.46,R & B Transformation 2,Premises Expenses,G23011015/B102,Housing Revenue Account,Electricity
Ashfield District Council,37UB,British Gas Business,V0985117,06/01/2022,240.66,R & B Transformation 2,Premises Expenses,G23011034/B102,Housing Revenue Account,Electricity
Ashfield District Council,37UB,British Gas Business,V0985117,06/01/2022,66.80,R & B Transformation 2,Premises Expenses,G23011041/B102,Housing Revenue Account,Electricity
Ashfield District Council,37UB,British Gas Business,V0985117,06/01/2022,60.86,R & B Transformation 2,Premises Expenses,G23011032/B102,Housing Revenue Account,Electricity
Ashfield District Council,37UB,British Gas Business,V0985117,06/01/2022,221.52,R & B Transformation 2,Premises Expenses,G23011034/B102,Housing Revenue Account,Electricity
Ashfield District Council,37UB,British Gas Business,V0985117,06/01/2022,82.55,R & B Transformation 2,Premises Expenses,G23011007/B102,Housing Revenue Account,Electricity
Ashfield District Council,37UB,British Gas Business,V0985117,06/01/2022,257.12,R & B Transformation 2,Premises Expenses,G23011013/B102,Housing Revenue Account,Electricity
Ashfield District Council,37UB,British Gas Business,V0985117,06/01/2022,64.37,R & B Transformation 2,Premises Expenses,G23011015/B102,Housing Revenue Account,Electricity
Ashfield District Council,37UB,British Gas Business,V0985117,06/01/2022,233.50,R & B Transformation 2,Premises Expenses,G23011015/B102,Housing Revenue Account,Electricity
Ashfield District Council,37UB,British Gas Business,V0985117,06/01/2022,37.87,R & B Transformation 2,Premises Expenses,G23011040/B102,Housing Revenue Account,Electricity
Ashfield District Council,37UB,British Gas Business,V0985117,06/01/2022,49.23,R & B Transformation 2,Premises Expenses,G23011055/B102,Housing Revenue Account,Electricity
Ashfield District Council,37UB,British Gas Business,V0985117,06/01/2022,253.87,R & B Transformation 2,Premises Expenses,G23011036/B102,Housing Revenue Account,Electricity
Ashfield District Council,37UB,British Gas Business,V0985117,06/01/2022,33.51,R & B Transformation 2,Premises Expenses,G23011029/B102,Housing Revenue Account,Electricity
Ashfield District Council,37UB,British Gas Business,V0985117,06/01/2022,47.97,R & B Transformation 2,Premises Expenses,G23011002/B102,Housing Revenue Account,Electricity
Ashfield District Council,37UB,British Gas Business,V0985117,06/01/2022,-59.67,R & B Transformation 2,Premises Expenses,G23011033/B102,Housing Revenue Account,Electricity
Ashfield District Council,37UB,British Gas Business,V0985117,06/01/2022,31.67,R & B Transformation 2,Premises Expenses,G23011033/B102,Housing Revenue Account,Electricity
Ashfield District Council,37UB,British Gas Business,V0985117,06/01/2022,98.90,R & B Transformation 2,Premises Expenses,G23011033/B102,Housing Revenue Account,Electricity
Ashfield District Council,37UB,British Gas Business,V0985117,06/01/2022,364.20,R & B Transformation 2,Premises Expenses,G23011035/B102,Housing Revenue Account,Electricity
Ashfield District Council,37UB,British Gas Business,V0985117,06/01/2022,206.74,R & B Transformation 2,Premises Expenses,G23011004/B102,Housing Revenue Account,Electricity
Ashfield District Council,37UB,British Gas Business,V0985117,06/01/2022,295.09,R & B Transformation 2,Premises Expenses,G23011036/B102,Housing Revenue Account,Electricity
Ashfield District Council,37UB,British Gas Business,V0985117,06/01/2022,69.94,R & B Transformation 2,Premises Expenses,G23011038/B102,Housing Revenue Account,Electricity
Ashfield District Council,37UB,British Gas Business,V0985117,06/01/2022,36.34,R & B Transformation 2,Premises Expenses,G23011051/B102,Housing Revenue Account,Electricity
Ashfield District Council,37UB,British Gas Business,V0985119,06/01/2022,168.22,R & B Transformation 2,Premises Expenses,G23011029/B101,Housing Revenue Account,Gas
Ashfield District Council,37UB,British Gas Business,V0985119,06/01/2022,161.58,R & B Transformation 2,Premises Expenses,G23011001/B101,Housing Revenue Account,Gas
Ashfield District Council,37UB,British Gas Business,V0985119,06/01/2022,892.60,R & B Transformation 2,Premises Expenses,G23011038/B101,Housing Revenue Account,Gas
Ashfield District Council,37UB,British Gas Business,V0985119,06/01/2022,112.23,R & B Transformation 2,Premises Expenses,G23011020/B101,Housing Revenue Account,Gas
Ashfield District Council,37UB,British Gas Business,V0985119,06/01/2022,174.86,R & B Transformation 2,Premises Expenses,G23011015/B101,Housing Revenue Account,Gas
Ashfield District Council,37UB,British Gas Business,V0985119,06/01/2022,187.20,R & B Transformation 2,Premises Expenses,G23011040/B101,Housing Revenue Account,Gas
Ashfield District Council,37UB,British Gas Business,V0985119,06/01/2022,139.12,R & B Transformation 2,Premises Expenses,G23011005/B101,Housing Revenue Account,Gas
Ashfield District Council,37UB,British Gas Business,V0985119,06/01/2022,89.95,R & B Transformation 2,Premises Expenses,G23011033/B101,Housing Revenue Account,Gas
Ashfield District Council,37UB,British Gas Business,V0985119,06/01/2022,67.63,R & B Transformation 2,Premises Expenses,G23011051/B101,Housing Revenue Account,Gas
Ashfield District Council,37UB,British Gas Business,V0985119,06/01/2022,209.97,R & B Transformation 2,Premises Expenses,G23011014/B101,Housing Revenue Account,Gas
Ashfield District Council,37UB,British Gas Business,V0985119,06/01/2022,104.18,R & B Transformation 2,Premises Expenses,G23011003/B101,Housing Revenue Account,Gas
Ashfield District Council,37UB,British Gas Business,V0985119,06/01/2022,368.93,R & B Transformation 2,Premises Expenses,G23011004/B101,Housing Revenue Account,Gas
Ashfield District Council,37UB,British Gas Business,V0985119,06/01/2022,291.58,R & B Transformation 2,Premises Expenses,G23011034/B101,Housing Revenue Account,Gas
Ashfield District Council,37UB,British Gas Business,V0985119,06/01/2022,161.58,R & B Transformation 2,Premises Expenses,G23011035/B101,Housing Revenue Account,Gas
Ashfield District Council,37UB,British Gas Business,V0985119,06/01/2022,183.40,R & B Transformation 2,Premises Expenses,G23011002/B101,Housing Revenue Account,Gas
Ashfield District Council,37UB,British Gas Business,V0985119,06/01/2022,123.62,R & B Transformation 2,Premises Expenses,G23011046/B101,Housing Revenue Account,Gas
Ashfield District Council,37UB,British Gas Business,V0985119,06/01/2022,55.30,R & B Transformation 2,Premises Expenses,G23011055/B101,Housing Revenue Account,Gas
Ashfield District Council,37UB,British Gas Business,V0985119,06/01/2022,266.91,R & B Transformation 2,Premises Expenses,G23011007/B101,Housing Revenue Account,Gas
Ashfield District Council,37UB,British Gas Business,V0985119,06/01/2022,618.37,R & B Transformation 2,Premises Expenses,G23011030/B101,Housing Revenue Account,Gas
Ashfield District Council,37UB,British Gas Business,V0985119,06/01/2022,138.80,R & B Transformation 2,Premises Expenses,G23011005/B101,Housing Revenue Account,Gas
Ashfield District Council,37UB,British Gas Business,V0985119,06/01/2022,254.57,R & B Transformation 2,Premises Expenses,G23011016/B101,Housing Revenue Account,Gas
Ashfield District Council,37UB,British Telecom PLC,V0981645,02/12/2021,55.89,R & B Transformation 2,Supplies & Services,G23100007/D301002,Housing Revenue Account,Telephones
Ashfield District Council,37UB,Daisy Telecoms Ltd,V0982742,02/12/2021,13.52,R & B Transformation 2,Premises Expenses,G23100004/B003026,Housing Revenue Account,Radio Controlled /Radio Equipment
Ashfield District Council,37UB,Daisy Telecoms Ltd,V0982742,02/12/2021,17.37,R & B Transformation 2,Premises Expenses,G23100007/B003026,Housing Revenue Account,Radio Controlled /Radio Equipment
Ashfield District Council,37UB,Daisy Telecoms Ltd,V0982742,02/12/2021,14.58,R & B Transformation 2,Premises Expenses,G23100005/B003026,Housing Revenue Account,Radio Controlled /Radio Equipment
Ashfield District Council,37UB,Daisy Telecoms Ltd,V0982742,02/12/2021,13.52,R & B Transformation 2,Premises Expenses,G23100001/B003026,Housing Revenue Account,Radio Controlled /Radio Equipment
Ashfield District Council,37UB,Daisy Telecoms Ltd,V0982742,02/12/2021,13.52,R & B Transformation 2,Premises Expenses,G23100006/B003026,Housing Revenue Account,Radio Controlled /Radio Equipment
Ashfield District Council,37UB,Daisy Telecoms Ltd,V0983450,23/12/2021,116.08,R & B Transformation 2,Supplies & Services,G23100002/d301002,Housing Revenue Account,Telephones
Ashfield District Council,37UB,Daisy Telecoms Ltd,V0983450,23/12/2021,150.05,R & B Transformation 2,Supplies & Services,G23100007/d301002,Housing Revenue Account,Telephones
Ashfield District Council,37UB,E.ON Energy Services,V0984235,23/12/2021,139.05,R & B Transformation 2,Premises Expenses,G23011045/B101,Housing Revenue Account,Gas
Ashfield District Council,37UB,EDF Energy 1 Ltd,V0982697,09/12/2021,327.50,R & B Transformation 2,Premises Expenses,G23011012/b102,Housing Revenue Account,Electricity
Ashfield District Council,37UB,EDF Energy 1 Ltd,V0982697,09/12/2021,108.14,R & B Transformation 2,Premises Expenses,G23011012/b101,Housing Revenue Account,Gas
Ashfield District Council,37UB,Scottish Power,V0982587,02/12/2021,25.49,R & B Transformation 2,Premises Expenses,G23011020/b102,Housing Revenue Account,Electricity
Ashfield District Council,37UB,Scottish Power,V0982588,02/12/2021,11.21,R & B Transformation 2,Premises Expenses,G23011020/B102,Housing Revenue Account,Electricity
Ashfield District Council,37UB,Scottish Power,V0984917,23/12/2021,45.05,R & B Transformation 2,Premises Expenses,G23011020/B102,Housing Revenue Account,Electricity
Ashfield District Council,37UB,Severn Trent Water Ltd,V0984921,23/12/2021,61.78,R & B Transformation 2,Premises Expenses,G23011034/B401,Housing Revenue Account,Water rates
Ashfield District Council,37UB,Total Gas & Power,V0983979,16/12/2021,121.83,R & B Transformation 2,Premises Expenses,G23100004/B101,Housing Revenue Account,Gas
Ashfield District Council,37UB,Total Gas & Power,V0983979,16/12/2021,235.29,R & B Transformation 2,Premises Expenses,G23100002/B101,Housing Revenue Account,Gas
Ashfield District Council,37UB,Total Gas & Power,V0983979,16/12/2021,140.13,R & B Transformation 2,Premises Expenses,G23100007/B101,Housing Revenue Account,Gas
Ashfield District Council,37UB,Total Gas & Power,V0983979,16/12/2021,133.80,R & B Transformation 2,Premises Expenses,G23100006/B101,Housing Revenue Account,Gas
Ashfield District Council,37UB,Utilita Energy Limited,V0983997,16/12/2021,24.51,R & B Transformation 2,Premises Expenses,G23011053/b102,Housing Revenue Account,Electricity
Ashfield District Council,37UB,Utilita Energy Limited,V0983998,16/12/2021,33.07,R & B Transformation 2,Premises Expenses,G23011027/B102,Housing Revenue Account,Electricity
Ashfield District Council,37UB,Utilita Energy Limited,V0983998,16/12/2021,59.50,R & B Transformation 2,Premises Expenses,G23011027/b101,Housing Revenue Account,Gas
Ashfield District Council,37UB,The Lock Shop (SIA) Ltd,V0983866,16/12/2021,23.90,Housing & Assets 2,Supplies & Services,G53000/D001001,Lettings and PS,Equipment Purchase
Ashfield District Council,37UB,Royal Mail,V0982057,02/12/2021,173.62,Legal & Governance 2,Supplies & Services,G53000/D301001,Lettings and PS,Postages
Ashfield District Council,37UB,Royal Mail,V0982696,16/12/2021,62.22,Legal & Governance 2,Supplies & Services,G53000/D301001,Lettings and PS,Postages
Ashfield District Council,37UB,Royal Mail,V0984016,23/12/2021,124.70,Legal & Governance 2,Supplies & Services,G53000/D301001,Lettings and PS,Postages
Ashfield District Council,37UB,EE Limited,V0982745,02/12/2021,12.95,R & B Transformation 2,Supplies & Services,G53000/D301003,Lettings and PS,Mobiles
Ashfield District Council,37UB,Eastern Shires Purchasing Organisation,V0983901,16/12/2021,54.75,Housing & Assets 2,Supplies & Services,G58000/D103,Procurement Section,Printing & stationery
Ashfield District Council,37UB,EE Limited,V0982745,02/12/2021,16.50,R & B Transformation 2,Supplies & Services,G58000/D301003,Procurement Section,Mobiles
Ashfield District Council,37UB,Bransons,V0984213,16/12/2021,657.49,Housing & Assets 2,Supplies & Services,G56004/D200033,Tech Servs Planned Responsive,Decoration Vouchers
Ashfield District Council,37UB,Miltons Wallpapers Limited,V0983407,09/12/2021,2663.85,Housing & Assets 2,Supplies & Services,G56004/D200033,Tech Servs Planned Responsive,Decoration Vouchers
Ashfield District Council,37UB,Stroma Certification Limited,V0982750,02/12/2021,242.42,Housing & Assets 2,Premises Expenses,G56005/B004042,Tech Servs Planned Responsive,Annual Prop Health & Safety Check/Serv
Ashfield District Council,37UB,Stroma Certification Limited,V0985085,06/01/2022,206.77,Housing & Assets 2,Premises Expenses,G56005/B004042,Tech Servs Planned Responsive,Annual Prop Health & Safety Check/Serv
Ashfield District Council,37UB,Wilko Retail Limited,V0982545,02/12/2021,174.17,Housing & Assets 2,Supplies & Services,G56004/D200033,Tech Servs Planned Responsive,Decoration Vouchers
Ashfield District Council,37UB,Wilko Retail Limited,V0982547,02/12/2021,120.08,Housing & Assets 2,Supplies & Services,G56004/D200033,Tech Servs Planned Responsive,Decoration Vouchers
Ashfield District Council,37UB,Wilko Retail Limited,V0982611,02/12/2021,112.50,Housing & Assets 2,Supplies & Services,G56004/D200033,Tech Servs Planned Responsive,Decoration Vouchers
Ashfield District Council,37UB,Wilko Retail Limited,V0982612,02/12/2021,100.00,Housing & Assets 2,Supplies & Services,G56004/D200033,Tech Servs Planned Responsive,Decoration Vouchers
Ashfield District Council,37UB,Wilko Retail Limited,V0982613,02/12/2021,155.00,Housing & Assets 2,Supplies & Services,G56004/D200033,Tech Servs Planned Responsive,Decoration Vouchers
Ashfield District Council,37UB,Wilko Retail Limited,V0982544,09/12/2021,148.04,Housing & Assets 2,Supplies & Services,G56004/D200033,Tech Servs Planned Responsive,Decoration Vouchers
Ashfield District Council,37UB,Wilko Retail Limited,V0982546,09/12/2021,148.33,Housing & Assets 2,Supplies & Services,G56004/D200033,Tech Servs Planned Responsive,Decoration Vouchers
Ashfield District Council,37UB,Wilko Retail Limited,V0984022,16/12/2021,70.58,Housing & Assets 2,Supplies & Services,G56004/D200033,Tech Servs Planned Responsive,Decoration Vouchers
Ashfield District Council,37UB,Wilko Retail Limited,V0984023,16/12/2021,90.83,Housing & Assets 2,Supplies & Services,G56004/D200033,Tech Servs Planned Responsive,Decoration Vouchers
Ashfield District Council,37UB,Wilko Retail Limited,V0984024,16/12/2021,139.87,Housing & Assets 2,Supplies & Services,G56004/D200033,Tech Servs Planned Responsive,Decoration Vouchers
Ashfield District Council,37UB,Wilko Retail Limited,V0984025,16/12/2021,174.17,Housing & Assets 2,Supplies & Services,G56004/D200033,Tech Servs Planned Responsive,Decoration Vouchers
Ashfield District Council,37UB,Wilko Retail Limited,V0984026,16/12/2021,122.25,Housing & Assets 2,Supplies & Services,G56004/D200033,Tech Servs Planned Responsive,Decoration Vouchers
Ashfield District Council,37UB,Wilko Retail Limited,V0984027,16/12/2021,81.33,Housing & Assets 2,Supplies & Services,G56004/D200033,Tech Servs Planned Responsive,Decoration Vouchers
Ashfield District Council,37UB,Wilko Retail Limited,V0984200,16/12/2021,219.17,Housing & Assets 2,Supplies & Services,G56004/D200033,Tech Servs Planned Responsive,Decoration Vouchers
Ashfield District Council,37UB,Wilko Retail Limited,V0984201,16/12/2021,217.71,Housing & Assets 2,Supplies & Services,G56004/D200033,Tech Servs Planned Responsive,Decoration Vouchers
Ashfield District Council,37UB,Wilko Retail Limited,V0984201,16/12/2021,1.67,Housing & Assets 2,Supplies & Services,G56004/D200033,Tech Servs Planned Responsive,Decoration Vouchers
Ashfield District Council,37UB,Wilko Retail Limited,V0984202,16/12/2021,186.87,Housing & Assets 2,Supplies & Services,G56004/D200033,Tech Servs Planned Responsive,Decoration Vouchers
Ashfield District Council,37UB,Wilko Retail Limited,V0984203,16/12/2021,173.00,Housing & Assets 2,Supplies & Services,G56004/D200033,Tech Servs Planned Responsive,Decoration Vouchers
Ashfield District Council,37UB,Wilko Retail Limited,V0984204,16/12/2021,129.17,Housing & Assets 2,Supplies & Services,G56004/D200033,Tech Servs Planned Responsive,Decoration Vouchers
Ashfield District Council,37UB,Wilko Retail Limited,V0984205,16/12/2021,148.33,Housing & Assets 2,Supplies & Services,G56004/D200033,Tech Servs Planned Responsive,Decoration Vouchers
Ashfield District Council,37UB,Wilko Retail Limited,V0984206,16/12/2021,77.17,Housing & Assets 2,Supplies & Services,G56004/D200033,Tech Servs Planned Responsive,Decoration Vouchers
Ashfield District Council,37UB,Wilko Retail Limited,V0984207,16/12/2021,155.00,Housing & Assets 2,Supplies & Services,G56004/D200033,Tech Servs Planned Responsive,Decoration Vouchers
Ashfield District Council,37UB,Wilko Retail Limited,V0984208,16/12/2021,103.33,Housing & Assets 2,Supplies & Services,G56004/D200033,Tech Servs Planned Responsive,Decoration Vouchers
Ashfield District Council,37UB,Wilko Retail Limited,V0984209,16/12/2021,77.50,Housing & Assets 2,Supplies & Services,G56004/D200033,Tech Servs Planned Responsive,Decoration Vouchers
Ashfield District Council,37UB,Wilko Retail Limited,V0984355,23/12/2021,121.00,Housing & Assets 2,Supplies & Services,G56004/D200033,Tech Servs Planned Responsive,Decoration Vouchers
Ashfield District Council,37UB,Wilko Retail Limited,V0984356,23/12/2021,77.12,Housing & Assets 2,Supplies & Services,G56004/D200033,Tech Servs Planned Responsive,Decoration Vouchers
Ashfield District Council,37UB,Wilko Retail Limited,V0984357,23/12/2021,25.83,Housing & Assets 2,Supplies & Services,G56004/D200033,Tech Servs Planned Responsive,Decoration Vouchers
Ashfield District Council,37UB,Wilko Retail Limited,V0984358,23/12/2021,51.67,Housing & Assets 2,Supplies & Services,G56004/D200033,Tech Servs Planned Responsive,Decoration Vouchers
Ashfield District Council,37UB,Wilko Retail Limited,V0984360,23/12/2021,1.67,Housing & Assets 2,Supplies & Services,G56004/D200033,Tech Servs Planned Responsive,Decoration Vouchers
Ashfield District Council,37UB,Wilko Retail Limited,V0984360,23/12/2021,89.37,Housing & Assets 2,Supplies & Services,G56004/D200033,Tech Servs Planned Responsive,Decoration Vouchers
Ashfield District Council,37UB,Wilko Retail Limited,V0984361,23/12/2021,121.67,Housing & Assets 2,Supplies & Services,G56004/D200033,Tech Servs Planned Responsive,Decoration Vouchers
Ashfield District Council,37UB,Wilko Retail Limited,V0984362,23/12/2021,122.50,Housing & Assets 2,Supplies & Services,G56004/D200033,Tech Servs Planned Responsive,Decoration Vouchers
Ashfield District Council,37UB,Wilko Retail Limited,V0984363,23/12/2021,126.67,Housing & Assets 2,Supplies & Services,G56004/D200033,Tech Servs Planned Responsive,Decoration Vouchers
Ashfield District Council,37UB,Wilko Retail Limited,V0985041,06/01/2022,129.17,Housing & Assets 2,Supplies & Services,G56004/D200033,Tech Servs Planned Responsive,Decoration Vouchers
Ashfield District Council,37UB,Wilko Retail Limited,V0985042,06/01/2022,83.33,Housing & Assets 2,Supplies & Services,G56004/D200033,Tech Servs Planned Responsive,Decoration Vouchers
Ashfield District Council,37UB,Wilko Retail Limited,V0985043,06/01/2022,122.50,Housing & Assets 2,Supplies & Services,G56004/D200033,Tech Servs Planned Responsive,Decoration Vouchers
Ashfield District Council,37UB,Wilko Retail Limited,V0985044,06/01/2022,125.00,Housing & Assets 2,Supplies & Services,G56004/D200033,Tech Servs Planned Responsive,Decoration Vouchers
Ashfield District Council,37UB,Wilko Retail Limited,V0985045,06/01/2022,83.33,Housing & Assets 2,Supplies & Services,G56004/D200033,Tech Servs Planned Responsive,Decoration Vouchers
Ashfield District Council,37UB,Driscoll Kingston Solicitors,V0983380,09/12/2021,388.00,Housing & Assets 2,Supplies & Services,G57000/D200035,Technical Services Depot,Goodwill
Ashfield District Council,37UB,Advantage Plus First Aid Supplies,V0982563,02/12/2021,113.13,Place & Communities 2,Supplies & Services,G57000/D001001,Technical Services Depot,Equipment Purchase
Ashfield District Council,37UB,Advantage Plus First Aid Supplies,V0984241,23/12/2021,37.71,Place & Communities 2,Supplies & Services,G57000/D001001,Technical Services Depot,Equipment Purchase
Ashfield District Council,37UB,G K Group T/A Perrys,V0983484,09/12/2021,1050.00,Place & Communities 2,Supplies & Services,G57000/D001001,Technical Services Depot,Equipment Purchase
Ashfield District Council,37UB,A B Waste Disposal,V0984172,17/12/2021,255.00,R & B Transformation 2,Supplies & Services,G57000/D001004,Technical Services Depot,Chemicals and Materials Purchase
Ashfield District Council,37UB,AGS Tech Ltd,V0983264,06/12/2021,200.00,R & B Transformation 2,Supplies & Services,G57002/D200008,Technical Services Depot,Payments to Contractors External
Ashfield District Council,37UB,AGS Tech Ltd,V0983265,06/12/2021,50.00,R & B Transformation 2,Supplies & Services,G57002/D200008,Technical Services Depot,Payments to Contractors External
Ashfield District Council,37UB,AGS Tech Ltd,V0983266,06/12/2021,50.00,R & B Transformation 2,Supplies & Services,G57002/D200008,Technical Services Depot,Payments to Contractors External
Ashfield District Council,37UB,AGS Tech Ltd,V0983267,06/12/2021,50.00,R & B Transformation 2,Supplies & Services,G57002/D200008,Technical Services Depot,Payments to Contractors External
Ashfield District Council,37UB,AGS Tech Ltd,V0983291,06/12/2021,144.20,R & B Transformation 2,Supplies & Services,G57002/D200008,Technical Services Depot,Payments to Contractors External
Ashfield District Council,37UB,AGS Tech Ltd,V0983292,06/12/2021,53.16,R & B Transformation 2,Supplies & Services,G57002/D200008,Technical Services Depot,Payments to Contractors External
Ashfield District Council,37UB,AGS Tech Ltd,V0983751,13/12/2021,50.00,R & B Transformation 2,Supplies & Services,G57002/D200008,Technical Services Depot,Payments to Contractors External
Ashfield District Council,37UB,AGS Tech Ltd,V0983752,13/12/2021,50.00,R & B Transformation 2,Supplies & Services,G57002/D200008,Technical Services Depot,Payments to Contractors External
Ashfield District Council,37UB,AGS Tech Ltd,V0983753,13/12/2021,53.16,R & B Transformation 2,Supplies & Services,G57002/D200008,Technical Services Depot,Payments to Contractors External
Ashfield District Council,37UB,AGS Tech Ltd,V0983754,13/12/2021,50.00,R & B Transformation 2,Supplies & Services,G57002/D200008,Technical Services Depot,Payments to Contractors External
Ashfield District Council,37UB,AGS Tech Ltd,V0984033,17/12/2021,50.00,R & B Transformation 2,Supplies & Services,G57002/D200008,Technical Services Depot,Payments to Contractors External
Ashfield District Council,37UB,AGS Tech Ltd,V0984548,23/12/2021,50.00,R & B Transformation 2,Supplies & Services,G57002/D200008,Technical Services Depot,Payments to Contractors External
Ashfield District Council,37UB,AGS Tech Ltd,V0984549,23/12/2021,50.00,R & B Transformation 2,Supplies & Services,G57002/D200008,Technical Services Depot,Payments to Contractors External
Ashfield District Council,37UB,AGS Tech Ltd,V0984550,23/12/2021,53.16,R & B Transformation 2,Supplies & Services,G57002/D200008,Technical Services Depot,Payments to Contractors External
Ashfield District Council,37UB,AGS Tech Ltd,V0984761,23/12/2021,50.00,R & B Transformation 2,Supplies & Services,G57002/D200008,Technical Services Depot,Payments to Contractors External
Ashfield District Council,37UB,AKW Medi-Care Limited,V0984568,23/12/2021,18.92,R & B Transformation 2,Supplies & Services,G57000/D001004,Technical Services Depot,Chemicals and Materials Purchase
Ashfield District Council,37UB,AKW Medi-Care Limited,V0984568,23/12/2021,12.00,R & B Transformation 2,Supplies & Services,G57000/D001004,Technical Services Depot,Chemicals and Materials Purchase
Ashfield District Council,37UB,AKW Medi-Care Limited,V0984572,23/12/2021,52.03,R & B Transformation 2,Supplies & Services,G57000/D001004,Technical Services Depot,Chemicals and Materials Purchase
Ashfield District Council,37UB,AKW Medi-Care Limited,V0984572,23/12/2021,55.69,R & B Transformation 2,Supplies & Services,G57000/D001004,Technical Services Depot,Chemicals and Materials Purchase
Ashfield District Council,37UB,AKW Medi-Care Limited,V0984572,23/12/2021,12.00,R & B Transformation 2,Supplies & Services,G57000/D001004,Technical Services Depot,Chemicals and Materials Purchase
Ashfield District Council,37UB,AKW Medi-Care Limited,V0984572,23/12/2021,29.29,R & B Transformation 2,Supplies & Services,G57000/D001004,Technical Services Depot,Chemicals and Materials Purchase
Ashfield District Council,37UB,B & J Carpets Limited,V0984580,23/12/2021,37.50,R & B Transformation 2,Supplies & Services,G57000/D001004,Technical Services Depot,Chemicals and Materials Purchase
Ashfield District Council,37UB,Barrettine Environmental Health,V0983152,06/12/2021,8.25,R & B Transformation 2,Supplies & Services,G57000/D001004,Technical Services Depot,Chemicals and Materials Purchase
Ashfield District Council,37UB,Brays Pipelines Limited,V0984559,23/12/2021,1200.00,R & B Transformation 2,Supplies & Services,G57002/D200008,Technical Services Depot,Payments to Contractors External
Ashfield District Council,37UB,Burbage Iron Craft Ltd t/a Cannock Gates Ltd,V0984682,23/12/2021,15.00,R & B Transformation 2,Supplies & Services,G57000/D001004,Technical Services Depot,Chemicals and Materials Purchase
Ashfield District Council,37UB,Byron Glass Co Ltd,V0983153,06/12/2021,27.03,R & B Transformation 2,Supplies & Services,G57000/D001004,Technical Services Depot,Chemicals and Materials Purchase
Ashfield District Council,37UB,Byron Glass Co Ltd,V0983154,06/12/2021,51.75,R & B Transformation 2,Supplies & Services,G57000/D001004,Technical Services Depot,Chemicals and Materials Purchase
Ashfield District Council,37UB,Byron Glass Co Ltd,V0984581,23/12/2021,30.00,R & B Transformation 2,Supplies & Services,G57000/D001004,Technical Services Depot,Chemicals and Materials Purchase
Ashfield District Council,37UB,Byron Glass Co Ltd,V0984581,23/12/2021,30.00,R & B Transformation 2,Supplies & Services,G57000/D001004,Technical Services Depot,Chemicals and Materials Purchase
Ashfield District Council,37UB,Byron Glass Co Ltd,V0984581,23/12/2021,19.93,R & B Transformation 2,Supplies & Services,G57000/D001004,Technical Services Depot,Chemicals and Materials Purchase
Ashfield District Council,37UB,Byron Glass Co Ltd,V0984665,23/12/2021,60.08,R & B Transformation 2,Supplies & Services,G57000/D001004,Technical Services Depot,Chemicals and Materials Purchase
Ashfield District Council,37UB,Byron Glass Co Ltd,V0984666,23/12/2021,26.31,R & B Transformation 2,Supplies & Services,G57000/D001004,Technical Services Depot,Chemicals and Materials Purchase
Ashfield District Council,37UB,Byron Glass Co Ltd,V0984667,23/12/2021,48.90,R & B Transformation 2,Supplies & Services,G57000/D001004,Technical Services Depot,Chemicals and Materials Purchase
Ashfield District Council,37UB,Byron Glass Co Ltd,V0984667,23/12/2021,50.00,R & B Transformation 2,Supplies & Services,G57000/D001004,Technical Services Depot,Chemicals and Materials Purchase
Ashfield District Council,37UB,Byron Glass Co Ltd,V0984668,23/12/2021,52.44,R & B Transformation 2,Supplies & Services,G57000/D001004,Technical Services Depot,Chemicals and Materials Purchase
Ashfield District Council,37UB,Byron Glass Co Ltd,V0984669,23/12/2021,8.95,R & B Transformation 2,Supplies & Services,G57000/D001004,Technical Services Depot,Chemicals and Materials Purchase
Ashfield District Council,37UB,Byron Glass Co Ltd,V0984670,23/12/2021,15.53,R & B Transformation 2,Supplies & Services,G57000/D001004,Technical Services Depot,Chemicals and Materials Purchase
Ashfield District Council,37UB,Byron Glass Co Ltd,V0984671,23/12/2021,117.60,R & B Transformation 2,Supplies & Services,G57000/D001004,Technical Services Depot,Chemicals and Materials Purchase
Ashfield District Council,37UB,Byron Glass Co Ltd,V0984672,23/12/2021,10.13,R & B Transformation 2,Supplies & Services,G57000/D001004,Technical Services Depot,Chemicals and Materials Purchase
Ashfield District Council,37UB,Byron Glass Co Ltd,V0984673,23/12/2021,93.75,R & B Transformation 2,Supplies & Services,G57000/D001004,Technical Services Depot,Chemicals and Materials Purchase
Ashfield District Council,37UB,Byron Glass Co Ltd,V0984674,23/12/2021,24.73,R & B Transformation 2,Supplies & Services,G57000/D001004,Technical Services Depot,Chemicals and Materials Purchase
Ashfield District Council,37UB,Byron Glass Co Ltd,V0984675,23/12/2021,69.58,R & B Transformation 2,Supplies & Services,G57000/D001004,Technical Services Depot,Chemicals and Materials Purchase
Ashfield District Council,37UB,Byron Glass Co Ltd,V0984676,23/12/2021,70.00,R & B Transformation 2,Supplies & Services,G57000/D001004,Technical Services Depot,Chemicals and Materials Purchase
Ashfield District Council,37UB,Byron Glass Co Ltd,V0984676,23/12/2021,70.00,R & B Transformation 2,Supplies & Services,G57000/D001004,Technical Services Depot,Chemicals and Materials Purchase
Ashfield District Council,37UB,Byron Glass Co Ltd,V0984677,23/12/2021,17.55,R & B Transformation 2,Supplies & Services,G57000/D001004,Technical Services Depot,Chemicals and Materials Purchase
Ashfield District Council,37UB,Byron Glass Co Ltd,V0984678,23/12/2021,83.95,R & B Transformation 2,Supplies & Services,G57000/D001004,Technical Services Depot,Chemicals and Materials Purchase
Ashfield District Council,37UB,Byron Glass Co Ltd,V0984679,23/12/2021,16.32,R & B Transformation 2,Supplies & Services,G57000/D001004,Technical Services Depot,Chemicals and Materials Purchase
Ashfield District Council,37UB,Byron Glass Co Ltd,V0984680,23/12/2021,11.45,R & B Transformation 2,Supplies & Services,G57000/D001004,Technical Services Depot,Chemicals and Materials Purchase
Ashfield District Council,37UB,Byron Glass Co Ltd,V0984680,23/12/2021,15.00,R & B Transformation 2,Supplies & Services,G57000/D001004,Technical Services Depot,Chemicals and Materials Purchase
Ashfield District Council,37UB,Byron Glass Co Ltd,V0984681,23/12/2021,21.00,R & B Transformation 2,Supplies & Services,G57000/D001004,Technical Services Depot,Chemicals and Materials Purchase
Ashfield District Council,37UB,Cash & Carry Windows Ltd,V0983759,13/12/2021,560.00,R & B Transformation 2,Supplies & Services,G57002/D200008,Technical Services Depot,Payments to Contractors External
Ashfield District Council,37UB,Cash & Carry Windows Ltd,V0984719,23/12/2021,450.00,R & B Transformation 2,Supplies & Services,G57002/D200008,Technical Services Depot,Payments to Contractors External
Ashfield District Council,37UB,Cash & Carry Windows Ltd,V0984762,23/12/2021,4415.00,R & B Transformation 2,Supplies & Services,G57002/D200008,Technical Services Depot,Payments to Contractors External
Ashfield District Council,37UB,Castle Group Ltd,V0984683,23/12/2021,120.00,R & B Transformation 2,Supplies & Services,G57000/D002004,Technical Services Depot,Equipment Maintenance
Ashfield District Council,37UB,Castle Group Ltd,V0984683,23/12/2021,20.00,R & B Transformation 2,Supplies & Services,G57000/D002004,Technical Services Depot,Equipment Maintenance
Ashfield District Council,37UB,City Electrical Factors,V0983693,13/12/2021,64.95,R & B Transformation 2,Supplies & Services,G57000/D001004,Technical Services Depot,Chemicals and Materials Purchase
Ashfield District Council,37UB,City Electrical Factors,V0984685,23/12/2021,48.95,R & B Transformation 2,Supplies & Services,G57000/D001004,Technical Services Depot,Chemicals and Materials Purchase
Ashfield District Council,37UB,City Electrical Factors,V0984686,23/12/2021,12.25,R & B Transformation 2,Supplies & Services,G57000/D001004,Technical Services Depot,Chemicals and Materials Purchase
Ashfield District Council,37UB,City Electrical Factors,V0984686,23/12/2021,31.50,R & B Transformation 2,Supplies & Services,G57000/D001004,Technical Services Depot,Chemicals and Materials Purchase
Ashfield District Council,37UB,City Electrical Factors,V0984687,23/12/2021,4.74,R & B Transformation 2,Supplies & Services,G57000/D001004,Technical Services Depot,Chemicals and Materials Purchase
Ashfield District Council,37UB,City Plumbing Supplies Holdings Ltd,V0983195,06/12/2021,20.94,R & B Transformation 2,Supplies & Services,G57000/D001004,Technical Services Depot,Chemicals and Materials Purchase
Ashfield District Council,37UB,City Plumbing Supplies Holdings Ltd,V0983203,06/12/2021,30.01,R & B Transformation 2,Supplies & Services,G57000/D001004,Technical Services Depot,Chemicals and Materials Purchase
Ashfield District Council,37UB,City Plumbing Supplies Holdings Ltd,V0983205,06/12/2021,29.38,R & B Transformation 2,Supplies & Services,G57000/D001004,Technical Services Depot,Chemicals and Materials Purchase
Ashfield District Council,37UB,City Plumbing Supplies Holdings Ltd,V0983209,06/12/2021,79.42,R & B Transformation 2,Supplies & Services,G57000/D001004,Technical Services Depot,Chemicals and Materials Purchase
Ashfield District Council,37UB,City Plumbing Supplies Holdings Ltd,V0983209,06/12/2021,70.22,R & B Transformation 2,Supplies & Services,G57000/D001004,Technical Services Depot,Chemicals and Materials Purchase
Ashfield District Council,37UB,City Plumbing Supplies Holdings Ltd,V0983715,13/12/2021,29.38,R & B Transformation 2,Supplies & Services,G57000/D001004,Technical Services Depot,Chemicals and Materials Purchase
Ashfield District Council,37UB,City Plumbing Supplies Holdings Ltd,V0983716,13/12/2021,39.24,R & B Transformation 2,Supplies & Services,G57000/D001004,Technical Services Depot,Chemicals and Materials Purchase
Ashfield District Council,37UB,City Plumbing Supplies Holdings Ltd,V0983717,13/12/2021,205.80,R & B Transformation 2,Supplies & Services,G57000/D001004,Technical Services Depot,Chemicals and Materials Purchase
Ashfield District Council,37UB,City Plumbing Supplies Holdings Ltd,V0983718,13/12/2021,97.89,R & B Transformation 2,Supplies & Services,G57000/D001004,Technical Services Depot,Chemicals and Materials Purchase
Ashfield District Council,37UB,City Plumbing Supplies Holdings Ltd,V0983719,13/12/2021,73.23,R & B Transformation 2,Supplies & Services,G57000/D001004,Technical Services Depot,Chemicals and Materials Purchase
Ashfield District Council,37UB,City Plumbing Supplies Holdings Ltd,V0984419,23/12/2021,-31.45,R & B Transformation 2,Supplies & Services,G57000/D001004,Technical Services Depot,Chemicals and Materials Purchase
Ashfield District Council,37UB,City Plumbing Supplies Holdings Ltd,V0984420,23/12/2021,-47.66,R & B Transformation 2,Supplies & Services,G57000/D001004,Technical Services Depot,Chemicals and Materials Purchase
Ashfield District Council,37UB,City Plumbing Supplies Holdings Ltd,V0984420,23/12/2021,-84.81,R & B Transformation 2,Supplies & Services,G57000/D001004,Technical Services Depot,Chemicals and Materials Purchase
Ashfield District Council,37UB,City Plumbing Supplies Holdings Ltd,V0984421,23/12/2021,-108.99,R & B Transformation 2,Supplies & Services,G57000/D001004,Technical Services Depot,Chemicals and Materials Purchase
Ashfield District Council,37UB,City Plumbing Supplies Holdings Ltd,V0984583,23/12/2021,24.49,R & B Transformation 2,Supplies & Services,G57000/D001004,Technical Services Depot,Chemicals and Materials Purchase
Ashfield District Council,37UB,City Plumbing Supplies Holdings Ltd,V0984583,23/12/2021,37.85,R & B Transformation 2,Supplies & Services,G57000/D001004,Technical Services Depot,Chemicals and Materials Purchase
Ashfield District Council,37UB,City Plumbing Supplies Holdings Ltd,V0984583,23/12/2021,37.14,R & B Transformation 2,Supplies & Services,G57000/D001004,Technical Services Depot,Chemicals and Materials Purchase
Ashfield District Council,37UB,City Plumbing Supplies Holdings Ltd,V0984583,23/12/2021,58.00,R & B Transformation 2,Supplies & Services,G57000/D001004,Technical Services Depot,Chemicals and Materials Purchase
Ashfield District Council,37UB,City Plumbing Supplies Holdings Ltd,V0984583,23/12/2021,51.53,R & B Transformation 2,Supplies & Services,G57000/D001004,Technical Services Depot,Chemicals and Materials Purchase
Ashfield District Council,37UB,City Plumbing Supplies Holdings Ltd,V0984584,23/12/2021,255.83,R & B Transformation 2,Supplies & Services,G57000/D001004,Technical Services Depot,Chemicals and Materials Purchase
Ashfield District Council,37UB,City Plumbing Supplies Holdings Ltd,V0984586,23/12/2021,87.97,R & B Transformation 2,Supplies & Services,G57000/D001004,Technical Services Depot,Chemicals and Materials Purchase
Ashfield District Council,37UB,City Plumbing Supplies Holdings Ltd,V0984587,23/12/2021,20.96,R & B Transformation 2,Supplies & Services,G57000/D001004,Technical Services Depot,Chemicals and Materials Purchase
Ashfield District Council,37UB,City Plumbing Supplies Holdings Ltd,V0984592,23/12/2021,3.01,R & B Transformation 2,Supplies & Services,G57000/D001004,Technical Services Depot,Chemicals and Materials Purchase
Ashfield District Council,37UB,City Plumbing Supplies Holdings Ltd,V0984594,23/12/2021,47.88,R & B Transformation 2,Supplies & Services,G57000/D001004,Technical Services Depot,Chemicals and Materials Purchase
Ashfield District Council,37UB,Countrywise Water Coolers Ltd,V0984688,23/12/2021,91.80,R & B Transformation 2,Supplies & Services,G57000/D001004,Technical Services Depot,Chemicals and Materials Purchase
Ashfield District Council,37UB,Crown Paints Limited,V0983175,06/12/2021,16.75,R & B Transformation 2,Supplies & Services,G57000/D001004,Technical Services Depot,Chemicals and Materials Purchase
Ashfield District Council,37UB,Crown Paints Limited,V0983283,06/12/2021,23.06,R & B Transformation 2,Supplies & Services,G57000/D001004,Technical Services Depot,Chemicals and Materials Purchase
Ashfield District Council,37UB,Crown Paints Limited,V0983284,06/12/2021,13.05,R & B Transformation 2,Supplies & Services,G57000/D001004,Technical Services Depot,Chemicals and Materials Purchase
Ashfield District Council,37UB,Crown Paints Limited,V0983285,06/12/2021,9.68,R & B Transformation 2,Supplies & Services,G57000/D001004,Technical Services Depot,Chemicals and Materials Purchase
Ashfield District Council,37UB,Crown Paints Limited,V0984692,23/12/2021,68.14,R & B Transformation 2,Supplies & Services,G57000/D001004,Technical Services Depot,Chemicals and Materials Purchase
Ashfield District Council,37UB,Crown Paints Limited,V0984693,23/12/2021,13.99,R & B Transformation 2,Supplies & Services,G57000/D001004,Technical Services Depot,Chemicals and Materials Purchase
Ashfield District Council,37UB,Crown Paints Limited,V0984694,23/12/2021,33.54,R & B Transformation 2,Supplies & Services,G57000/D001004,Technical Services Depot,Chemicals and Materials Purchase
Ashfield District Council,37UB,Crown Paints Limited,V0984694,23/12/2021,1.72,R & B Transformation 2,Supplies & Services,G57000/D001004,Technical Services Depot,Chemicals and Materials Purchase
Ashfield District Council,37UB,Crystal Electronics Ltd,V0984034,17/12/2021,358.94,R & B Transformation 2,Supplies & Services,G57002/D200008,Technical Services Depot,Payments to Contractors External
Ashfield District Council,37UB,Crystal Electronics Ltd,V0984035,17/12/2021,236.40,R & B Transformation 2,Supplies & Services,G57002/D200008,Technical Services Depot,Payments to Contractors External
Ashfield District Council,37UB,Crystal Electronics Ltd,V0984092,17/12/2021,48.38,R & B Transformation 2,Supplies & Services,G57002/D200008,Technical Services Depot,Payments to Contractors External
Ashfield District Council,37UB,Daisy Telecoms Ltd,V0982742,02/12/2021,18.38,R & B Transformation 2,Supplies & Services,G57000/D301003,Technical Services Depot,Mobiles
Ashfield District Council,37UB,Daisy Telecoms Ltd,V0983443,23/12/2021,1922.02,R & B Transformation 2,Supplies & Services,G57000/D301003,Technical Services Depot,Mobiles
Ashfield District Council,37UB,Dalrod UK Ltd,V0983268,06/12/2021,219.26,R & B Transformation 2,Supplies & Services,G57002/D200008,Technical Services Depot,Payments to Contractors External
Ashfield District Council,37UB,Dalrod UK Ltd,V0983269,06/12/2021,66.35,R & B Transformation 2,Supplies & Services,G57002/D200008,Technical Services Depot,Payments to Contractors External
Ashfield District Council,37UB,Dalrod UK Ltd,V0983270,06/12/2021,66.35,R & B Transformation 2,Supplies & Services,G57002/D200008,Technical Services Depot,Payments to Contractors External
Ashfield District Council,37UB,Dalrod UK Ltd,V0983271,06/12/2021,66.35,R & B Transformation 2,Supplies & Services,G57002/D200008,Technical Services Depot,Payments to Contractors External
Ashfield District Council,37UB,Dalrod UK Ltd,V0983272,06/12/2021,66.35,R & B Transformation 2,Supplies & Services,G57002/D200008,Technical Services Depot,Payments to Contractors External
Ashfield District Council,37UB,Dalrod UK Ltd,V0983273,06/12/2021,66.35,R & B Transformation 2,Supplies & Services,G57002/D200008,Technical Services Depot,Payments to Contractors External
Ashfield District Council,37UB,Dalrod UK Ltd,V0983274,06/12/2021,66.35,R & B Transformation 2,Supplies & Services,G57002/D200008,Technical Services Depot,Payments to Contractors External
Ashfield District Council,37UB,Dalrod UK Ltd,V0983275,06/12/2021,66.35,R & B Transformation 2,Supplies & Services,G57002/D200008,Technical Services Depot,Payments to Contractors External
Ashfield District Council,37UB,Dalrod UK Ltd,V0983276,06/12/2021,66.35,R & B Transformation 2,Supplies & Services,G57002/D200008,Technical Services Depot,Payments to Contractors External
Ashfield District Council,37UB,Dalrod UK Ltd,V0983277,06/12/2021,66.35,R & B Transformation 2,Supplies & Services,G57002/D200008,Technical Services Depot,Payments to Contractors External
Ashfield District Council,37UB,Dalrod UK Ltd,V0983278,06/12/2021,66.35,R & B Transformation 2,Supplies & Services,G57002/D200008,Technical Services Depot,Payments to Contractors External
Ashfield District Council,37UB,Dalrod UK Ltd,V0984049,17/12/2021,66.35,R & B Transformation 2,Supplies & Services,G57002/D200008,Technical Services Depot,Payments to Contractors External
Ashfield District Council,37UB,Dalrod UK Ltd,V0984050,17/12/2021,66.35,R & B Transformation 2,Supplies & Services,G57002/D200008,Technical Services Depot,Payments to Contractors External
Ashfield District Council,37UB,Dalrod UK Ltd,V0984051,17/12/2021,66.35,R & B Transformation 2,Supplies & Services,G57002/D200008,Technical Services Depot,Payments to Contractors External
Ashfield District Council,37UB,Dalrod UK Ltd,V0984052,17/12/2021,66.35,R & B Transformation 2,Supplies & Services,G57002/D200008,Technical Services Depot,Payments to Contractors External
Ashfield District Council,37UB,Dalrod UK Ltd,V0984053,17/12/2021,66.35,R & B Transformation 2,Supplies & Services,G57002/D200008,Technical Services Depot,Payments to Contractors External
Ashfield District Council,37UB,Dalrod UK Ltd,V0984054,17/12/2021,91.88,R & B Transformation 2,Supplies & Services,G57002/D200008,Technical Services Depot,Payments to Contractors External
Ashfield District Council,37UB,Dalrod UK Ltd,V0984055,17/12/2021,66.35,R & B Transformation 2,Supplies & Services,G57002/D200008,Technical Services Depot,Payments to Contractors External
Ashfield District Council,37UB,Dalrod UK Ltd,V0984056,17/12/2021,79.12,R & B Transformation 2,Supplies & Services,G57002/D200008,Technical Services Depot,Payments to Contractors External
Ashfield District Council,37UB,Dalrod UK Ltd,V0984057,17/12/2021,85.64,R & B Transformation 2,Supplies & Services,G57002/D200008,Technical Services Depot,Payments to Contractors External
Ashfield District Council,37UB,Dalrod UK Ltd,V0984538,23/12/2021,66.35,R & B Transformation 2,Supplies & Services,G57002/D200008,Technical Services Depot,Payments to Contractors External
Ashfield District Council,37UB,Dalrod UK Ltd,V0984539,23/12/2021,66.35,R & B Transformation 2,Supplies & Services,G57002/D200008,Technical Services Depot,Payments to Contractors External
Ashfield District Council,37UB,Dalrod UK Ltd,V0984540,23/12/2021,85.64,R & B Transformation 2,Supplies & Services,G57002/D200008,Technical Services Depot,Payments to Contractors External
Ashfield District Council,37UB,Dalrod UK Ltd,V0984541,23/12/2021,66.35,R & B Transformation 2,Supplies & Services,G57002/D200008,Technical Services Depot,Payments to Contractors External
Ashfield District Council,37UB,Dalrod UK Ltd,V0984542,23/12/2021,132.70,R & B Transformation 2,Supplies & Services,G57002/D200008,Technical Services Depot,Payments to Contractors External
Ashfield District Council,37UB,Dalrod UK Ltd,V0984543,23/12/2021,66.35,R & B Transformation 2,Supplies & Services,G57002/D200008,Technical Services Depot,Payments to Contractors External
Ashfield District Council,37UB,Dalrod UK Ltd,V0984544,23/12/2021,66.35,R & B Transformation 2,Supplies & Services,G57002/D200008,Technical Services Depot,Payments to Contractors External
Ashfield District Council,37UB,Dalrod UK Ltd,V0984545,23/12/2021,79.12,R & B Transformation 2,Supplies & Services,G57002/D200008,Technical Services Depot,Payments to Contractors External
Ashfield District Council,37UB,Dalrod UK Ltd,V0984546,23/12/2021,66.35,R & B Transformation 2,Supplies & Services,G57002/D200008,Technical Services Depot,Payments to Contractors External
Ashfield District Council,37UB,Dalrod UK Ltd,V0984547,23/12/2021,85.64,R & B Transformation 2,Supplies & Services,G57002/D200008,Technical Services Depot,Payments to Contractors External
Ashfield District Council,37UB,Dean Laundry Systems,V0983262,06/12/2021,275.00,R & B Transformation 2,Supplies & Services,G57002/D200008,Technical Services Depot,Payments to Contractors External
Ashfield District Council,37UB,Dean Laundry Systems,V0983263,06/12/2021,75.00,R & B Transformation 2,Supplies & Services,G57002/D200008,Technical Services Depot,Payments to Contractors External
Ashfield District Council,37UB,Dean Laundry Systems,V0983286,06/12/2021,100.00,R & B Transformation 2,Supplies & Services,G57002/D200008,Technical Services Depot,Payments to Contractors External
Ashfield District Council,37UB,Dean Laundry Systems,V0983755,13/12/2021,231.00,R & B Transformation 2,Supplies & Services,G57002/D200008,Technical Services Depot,Payments to Contractors External
Ashfield District Council,37UB,Dean Laundry Systems,V0983756,13/12/2021,100.00,R & B Transformation 2,Supplies & Services,G57002/D200008,Technical Services Depot,Payments to Contractors External
Ashfield District Council,37UB,Dean Laundry Systems,V0983757,13/12/2021,100.00,R & B Transformation 2,Supplies & Services,G57002/D200008,Technical Services Depot,Payments to Contractors External
Ashfield District Council,37UB,Dean Laundry Systems,V0984560,23/12/2021,175.00,R & B Transformation 2,Supplies & Services,G57002/D200008,Technical Services Depot,Payments to Contractors External
Ashfield District Council,37UB,Dean Laundry Systems,V0984561,23/12/2021,100.00,R & B Transformation 2,Supplies & Services,G57002/D200008,Technical Services Depot,Payments to Contractors External
Ashfield District Council,37UB,Dean Laundry Systems,V0984561,23/12/2021,120.00,R & B Transformation 2,Supplies & Services,G57002/D200008,Technical Services Depot,Payments to Contractors External
Ashfield District Council,37UB,Dean Laundry Systems,V0984718,23/12/2021,100.00,R & B Transformation 2,Supplies & Services,G57002/D200008,Technical Services Depot,Payments to Contractors External
Ashfield District Council,37UB,Dean Laundry Systems,V0984754,23/12/2021,100.00,R & B Transformation 2,Supplies & Services,G57002/D200008,Technical Services Depot,Payments to Contractors External
Ashfield District Council,37UB,Deltron Lifts Limited,V0983287,06/12/2021,645.00,R & B Transformation 2,Supplies & Services,G57002/D200008,Technical Services Depot,Payments to Contractors External
Ashfield District Council,37UB,Deltron Lifts Limited,V0983288,06/12/2021,150.00,R & B Transformation 2,Supplies & Services,G57002/D200008,Technical Services Depot,Payments to Contractors External
Ashfield District Council,37UB,Deltron Lifts Limited,V0983289,06/12/2021,400.00,R & B Transformation 2,Supplies & Services,G57002/D200008,Technical Services Depot,Payments to Contractors External
Ashfield District Council,37UB,Deltron Lifts Limited,V0983290,06/12/2021,250.00,R & B Transformation 2,Supplies & Services,G57002/D200008,Technical Services Depot,Payments to Contractors External
Ashfield District Council,37UB,Deltron Lifts Limited,V0983758,13/12/2021,125.50,R & B Transformation 2,Supplies & Services,G57002/D200008,Technical Services Depot,Payments to Contractors External
Ashfield District Council,37UB,Deltron Lifts Limited,V0984552,23/12/2021,45.00,R & B Transformation 2,Supplies & Services,G57002/D200008,Technical Services Depot,Payments to Contractors External
Ashfield District Council,37UB,Deltron Lifts Limited,V0984553,23/12/2021,45.00,R & B Transformation 2,Supplies & Services,G57002/D200008,Technical Services Depot,Payments to Contractors External
Ashfield District Council,37UB,Deltron Lifts Limited,V0984554,23/12/2021,45.00,R & B Transformation 2,Supplies & Services,G57002/D200008,Technical Services Depot,Payments to Contractors External
Ashfield District Council,37UB,Deltron Lifts Limited,V0984555,23/12/2021,145.00,R & B Transformation 2,Supplies & Services,G57002/D200008,Technical Services Depot,Payments to Contractors External
Ashfield District Council,37UB,Deltron Lifts Limited,V0984556,23/12/2021,10.00,R & B Transformation 2,Supplies & Services,G57002/D200008,Technical Services Depot,Payments to Contractors External
Ashfield District Council,37UB,Deltron Lifts Limited,V0984557,23/12/2021,250.00,R & B Transformation 2,Supplies & Services,G57002/D200008,Technical Services Depot,Payments to Contractors External
Ashfield District Council,37UB,Deltron Lifts Limited,V0984720,23/12/2021,10.00,R & B Transformation 2,Supplies & Services,G57002/D200008,Technical Services Depot,Payments to Contractors External
Ashfield District Council,37UB,Deltron Lifts Limited,V0984721,23/12/2021,10.00,R & B Transformation 2,Supplies & Services,G57002/D200008,Technical Services Depot,Payments to Contractors External
Ashfield District Council,37UB,Deltron Lifts Limited,V0984722,23/12/2021,10.00,R & B Transformation 2,Supplies & Services,G57002/D200008,Technical Services Depot,Payments to Contractors External
Ashfield District Council,37UB,Deltron Lifts Limited,V0984755,23/12/2021,145.00,R & B Transformation 2,Supplies & Services,G57002/D200008,Technical Services Depot,Payments to Contractors External
Ashfield District Council,37UB,Deltron Lifts Limited,V0984756,23/12/2021,225.50,R & B Transformation 2,Supplies & Services,G57002/D200008,Technical Services Depot,Payments to Contractors External
Ashfield District Council,37UB,Dutton Recruitment Ltd,V0983158,06/12/2021,520.68,R & B Transformation 2,Employee Expenses,G57000/A200004,Technical Services Depot,Agency Staff
Ashfield District Council,37UB,Environtec Limited,V0983604,13/12/2021,200.00,R & B Transformation 2,Supplies & Services,G57002/D200008,Technical Services Depot,Payments to Contractors External
Ashfield District Council,37UB,Excel Cleaning Solutions Ltd,V0983605,13/12/2021,100.00,R & B Transformation 2,Supplies & Services,G57002/D200008,Technical Services Depot,Payments to Contractors External
Ashfield District Council,37UB,Excel Cleaning Solutions Ltd,V0983606,13/12/2021,110.00,R & B Transformation 2,Supplies & Services,G57002/D200008,Technical Services Depot,Payments to Contractors External
Ashfield District Council,37UB,Excel Cleaning Solutions Ltd,V0984060,17/12/2021,115.00,R & B Transformation 2,Supplies & Services,G57002/D200008,Technical Services Depot,Payments to Contractors External
Ashfield District Council,37UB,Excel Cleaning Solutions Ltd,V0984061,17/12/2021,115.00,R & B Transformation 2,Supplies & Services,G57002/D200008,Technical Services Depot,Payments to Contractors External
Ashfield District Council,37UB,Excel Cleaning Solutions Ltd,V0984558,23/12/2021,115.00,R & B Transformation 2,Supplies & Services,G57002/D200008,Technical Services Depot,Payments to Contractors External
Ashfield District Council,37UB,Excel Cleaning Solutions Ltd,V0985457,10/01/2022,200.00,R & B Transformation 2,Supplies & Services,G57002/D200008,Technical Services Depot,Payments to Contractors External
Ashfield District Council,37UB,Garden Buildings Retail Ltd / Comton Spares.com,V0983261,06/12/2021,291.67,R & B Transformation 2,Supplies & Services,G57002/D200008,Technical Services Depot,Payments to Contractors External
Ashfield District Council,37UB,Hardall International Ltd,V0984753,23/12/2021,795.00,R & B Transformation 2,Supplies & Services,G57002/D200008,Technical Services Depot,Payments to Contractors External
Ashfield District Council,37UB,High Park Industries Ltd,V0984606,23/12/2021,8.30,R & B Transformation 2,Supplies & Services,G57000/D001004,Technical Services Depot,Chemicals and Materials Purchase
Ashfield District Council,37UB,High Park Industries Ltd,V0984606,23/12/2021,37.50,R & B Transformation 2,Supplies & Services,G57000/D001004,Technical Services Depot,Chemicals and Materials Purchase
Ashfield District Council,37UB,High Park Industries Ltd,V0984607,23/12/2021,40.00,R & B Transformation 2,Supplies & Services,G57000/D001004,Technical Services Depot,Chemicals and Materials Purchase
Ashfield District Council,37UB,High Park Industries Ltd,V0984608,23/12/2021,18.29,R & B Transformation 2,Supplies & Services,G57000/D001004,Technical Services Depot,Chemicals and Materials Purchase
Ashfield District Council,37UB,High Park Industries Ltd,V0984608,23/12/2021,54.17,R & B Transformation 2,Supplies & Services,G57000/D001004,Technical Services Depot,Chemicals and Materials Purchase
Ashfield District Council,37UB,High Park Industries Ltd,V0984609,23/12/2021,15.25,R & B Transformation 2,Supplies & Services,G57000/D001004,Technical Services Depot,Chemicals and Materials Purchase
Ashfield District Council,37UB,High Park Industries Ltd,V0984609,23/12/2021,16.25,R & B Transformation 2,Supplies & Services,G57000/D001004,Technical Services Depot,Chemicals and Materials Purchase
Ashfield District Council,37UB,High Park Industries Ltd,V0984610,23/12/2021,14.58,R & B Transformation 2,Supplies & Services,G57000/D001004,Technical Services Depot,Chemicals and Materials Purchase
Ashfield District Council,37UB,High Park Industries Ltd,V0984610,23/12/2021,74.96,R & B Transformation 2,Supplies & Services,G57000/D001004,Technical Services Depot,Chemicals and Materials Purchase
Ashfield District Council,37UB,High Park Industries Ltd,V0984611,23/12/2021,10.00,R & B Transformation 2,Supplies & Services,G57000/D001004,Technical Services Depot,Chemicals and Materials Purchase
Ashfield District Council,37UB,Huthwaite Plumbing & Heating Supplies Ltd,V0984696,23/12/2021,40.00,R & B Transformation 2,Supplies & Services,G57000/D001004,Technical Services Depot,Chemicals and Materials Purchase
Ashfield District Council,37UB,J Tomlinson Ltd,V0982758,06/12/2021,65.26,R & B Transformation 2,Supplies & Services,G57002/D200008,Technical Services Depot,Payments to Contractors External
Ashfield District Council,37UB,J Tomlinson Ltd,V0982759,06/12/2021,65.26,R & B Transformation 2,Supplies & Services,G57002/D200008,Technical Services Depot,Payments to Contractors External
Ashfield District Council,37UB,J Tomlinson Ltd,V0982760,06/12/2021,65.26,R & B Transformation 2,Supplies & Services,G57002/D200008,Technical Services Depot,Payments to Contractors External
Ashfield District Council,37UB,J Tomlinson Ltd,V0982761,06/12/2021,65.26,R & B Transformation 2,Supplies & Services,G57002/D200008,Technical Services Depot,Payments to Contractors External
Ashfield District Council,37UB,J Tomlinson Ltd,V0982762,06/12/2021,65.26,R & B Transformation 2,Supplies & Services,G57002/D200008,Technical Services Depot,Payments to Contractors External
Ashfield District Council,37UB,J Tomlinson Ltd,V0982763,06/12/2021,65.26,R & B Transformation 2,Supplies & Services,G57002/D200008,Technical Services Depot,Payments to Contractors External
Ashfield District Council,37UB,J Tomlinson Ltd,V0982764,06/12/2021,65.26,R & B Transformation 2,Supplies & Services,G57002/D200008,Technical Services Depot,Payments to Contractors External
Ashfield District Council,37UB,J Tomlinson Ltd,V0982765,06/12/2021,65.26,R & B Transformation 2,Supplies & Services,G57002/D200008,Technical Services Depot,Payments to Contractors External
Ashfield District Council,37UB,J Tomlinson Ltd,V0982766,06/12/2021,65.26,R & B Transformation 2,Supplies & Services,G57002/D200008,Technical Services Depot,Payments to Contractors External
Ashfield District Council,37UB,J Tomlinson Ltd,V0982767,06/12/2021,65.26,R & B Transformation 2,Supplies & Services,G57002/D200008,Technical Services Depot,Payments to Contractors External
Ashfield District Council,37UB,J Tomlinson Ltd,V0982768,06/12/2021,65.26,R & B Transformation 2,Supplies & Services,G57002/D200008,Technical Services Depot,Payments to Contractors External
Ashfield District Council,37UB,J Tomlinson Ltd,V0982769,06/12/2021,65.26,R & B Transformation 2,Supplies & Services,G57002/D200008,Technical Services Depot,Payments to Contractors External
Ashfield District Council,37UB,J Tomlinson Ltd,V0982770,06/12/2021,65.26,R & B Transformation 2,Supplies & Services,G57002/D200008,Technical Services Depot,Payments to Contractors External
Ashfield District Council,37UB,J Tomlinson Ltd,V0982771,06/12/2021,65.26,R & B Transformation 2,Supplies & Services,G57002/D200008,Technical Services Depot,Payments to Contractors External
Ashfield District Council,37UB,J Tomlinson Ltd,V0982772,06/12/2021,65.26,R & B Transformation 2,Supplies & Services,G57002/D200008,Technical Services Depot,Payments to Contractors External
Ashfield District Council,37UB,J Tomlinson Ltd,V0982773,06/12/2021,65.26,R & B Transformation 2,Supplies & Services,G57002/D200008,Technical Services Depot,Payments to Contractors External
Ashfield District Council,37UB,J Tomlinson Ltd,V0982774,06/12/2021,65.26,R & B Transformation 2,Supplies & Services,G57002/D200008,Technical Services Depot,Payments to Contractors External
Ashfield District Council,37UB,J Tomlinson Ltd,V0982775,06/12/2021,65.26,R & B Transformation 2,Supplies & Services,G57002/D200008,Technical Services Depot,Payments to Contractors External
Ashfield District Council,37UB,J Tomlinson Ltd,V0982776,06/12/2021,65.26,R & B Transformation 2,Supplies & Services,G57002/D200008,Technical Services Depot,Payments to Contractors External
Ashfield District Council,37UB,J Tomlinson Ltd,V0982777,06/12/2021,65.26,R & B Transformation 2,Supplies & Services,G57002/D200008,Technical Services Depot,Payments to Contractors External
Ashfield District Council,37UB,J Tomlinson Ltd,V0982778,06/12/2021,65.26,R & B Transformation 2,Supplies & Services,G57002/D200008,Technical Services Depot,Payments to Contractors External
Ashfield District Council,37UB,J Tomlinson Ltd,V0982779,06/12/2021,65.26,R & B Transformation 2,Supplies & Services,G57002/D200008,Technical Services Depot,Payments to Contractors External
Ashfield District Council,37UB,J Tomlinson Ltd,V0982780,06/12/2021,65.26,R & B Transformation 2,Supplies & Services,G57002/D200008,Technical Services Depot,Payments to Contractors External
Ashfield District Council,37UB,J Tomlinson Ltd,V0982781,06/12/2021,65.26,R & B Transformation 2,Supplies & Services,G57002/D200008,Technical Services Depot,Payments to Contractors External
Ashfield District Council,37UB,J Tomlinson Ltd,V0982782,06/12/2021,65.26,R & B Transformation 2,Supplies & Services,G57002/D200008,Technical Services Depot,Payments to Contractors External
Ashfield District Council,37UB,J Tomlinson Ltd,V0982783,06/12/2021,65.26,R & B Transformation 2,Supplies & Services,G57002/D200008,Technical Services Depot,Payments to Contractors External
Ashfield District Council,37UB,J Tomlinson Ltd,V0982784,06/12/2021,65.26,R & B Transformation 2,Supplies & Services,G57002/D200008,Technical Services Depot,Payments to Contractors External
Ashfield District Council,37UB,J Tomlinson Ltd,V0982785,06/12/2021,65.26,R & B Transformation 2,Supplies & Services,G57002/D200008,Technical Services Depot,Payments to Contractors External
Ashfield District Council,37UB,J Tomlinson Ltd,V0982786,06/12/2021,65.26,R & B Transformation 2,Supplies & Services,G57002/D200008,Technical Services Depot,Payments to Contractors External
Ashfield District Council,37UB,J Tomlinson Ltd,V0982787,06/12/2021,65.26,R & B Transformation 2,Supplies & Services,G57002/D200008,Technical Services Depot,Payments to Contractors External
Ashfield District Council,37UB,J Tomlinson Ltd,V0982788,06/12/2021,65.26,R & B Transformation 2,Supplies & Services,G57002/D200008,Technical Services Depot,Payments to Contractors External
Ashfield District Council,37UB,J Tomlinson Ltd,V0982789,06/12/2021,65.26,R & B Transformation 2,Supplies & Services,G57002/D200008,Technical Services Depot,Payments to Contractors External
Ashfield District Council,37UB,J Tomlinson Ltd,V0982790,06/12/2021,65.26,R & B Transformation 2,Supplies & Services,G57002/D200008,Technical Services Depot,Payments to Contractors External
Ashfield District Council,37UB,J Tomlinson Ltd,V0982791,06/12/2021,65.26,R & B Transformation 2,Supplies & Services,G57002/D200008,Technical Services Depot,Payments to Contractors External
Ashfield District Council,37UB,J Tomlinson Ltd,V0982792,06/12/2021,65.26,R & B Transformation 2,Supplies & Services,G57002/D200008,Technical Services Depot,Payments to Contractors External
Ashfield District Council,37UB,J Tomlinson Ltd,V0982793,06/12/2021,65.26,R & B Transformation 2,Supplies & Services,G57002/D200008,Technical Services Depot,Payments to Contractors External
Ashfield District Council,37UB,J Tomlinson Ltd,V0982794,06/12/2021,65.26,R & B Transformation 2,Supplies & Services,G57002/D200008,Technical Services Depot,Payments to Contractors External
Ashfield District Council,37UB,J Tomlinson Ltd,V0982795,06/12/2021,65.26,R & B Transformation 2,Supplies & Services,G57002/D200008,Technical Services Depot,Payments to Contractors External
Ashfield District Council,37UB,J Tomlinson Ltd,V0982796,06/12/2021,65.26,R & B Transformation 2,Supplies & Services,G57002/D200008,Technical Services Depot,Payments to Contractors External
Ashfield District Council,37UB,J Tomlinson Ltd,V0982797,06/12/2021,65.26,R & B Transformation 2,Supplies & Services,G57002/D200008,Technical Services Depot,Payments to Contractors External
Ashfield District Council,37UB,J Tomlinson Ltd,V0982798,06/12/2021,65.26,R & B Transformation 2,Supplies & Services,G57002/D200008,Technical Services Depot,Payments to Contractors External
Ashfield District Council,37UB,J Tomlinson Ltd,V0982799,06/12/2021,65.26,R & B Transformation 2,Supplies & Services,G57002/D200008,Technical Services Depot,Payments to Contractors External
Ashfield District Council,37UB,J Tomlinson Ltd,V0982800,06/12/2021,65.26,R & B Transformation 2,Supplies & Services,G57002/D200008,Technical Services Depot,Payments to Contractors External
Ashfield District Council,37UB,J Tomlinson Ltd,V0982801,06/12/2021,65.26,R & B Transformation 2,Supplies & Services,G57002/D200008,Technical Services Depot,Payments to Contractors External
Ashfield District Council,37UB,J Tomlinson Ltd,V0982802,06/12/2021,65.26,R & B Transformation 2,Supplies & Services,G57002/D200008,Technical Services Depot,Payments to Contractors External
Ashfield District Council,37UB,J Tomlinson Ltd,V0982803,06/12/2021,65.26,R & B Transformation 2,Supplies & Services,G57002/D200008,Technical Services Depot,Payments to Contractors External
Ashfield District Council,37UB,J Tomlinson Ltd,V0982804,06/12/2021,65.26,R & B Transformation 2,Supplies & Services,G57002/D200008,Technical Services Depot,Payments to Contractors External
Ashfield District Council,37UB,J Tomlinson Ltd,V0982805,06/12/2021,65.26,R & B Transformation 2,Supplies & Services,G57002/D200008,Technical Services Depot,Payments to Contractors External
Ashfield District Council,37UB,J Tomlinson Ltd,V0982806,06/12/2021,65.26,R & B Transformation 2,Supplies & Services,G57002/D200008,Technical Services Depot,Payments to Contractors External
Ashfield District Council,37UB,J Tomlinson Ltd,V0982807,06/12/2021,65.26,R & B Transformation 2,Supplies & Services,G57002/D200008,Technical Services Depot,Payments to Contractors External
Ashfield District Council,37UB,J Tomlinson Ltd,V0982808,06/12/2021,65.26,R & B Transformation 2,Supplies & Services,G57002/D200008,Technical Services Depot,Payments to Contractors External
Ashfield District Council,37UB,J Tomlinson Ltd,V0982809,06/12/2021,65.26,R & B Transformation 2,Supplies & Services,G57002/D200008,Technical Services Depot,Payments to Contractors External
Ashfield District Council,37UB,J Tomlinson Ltd,V0982810,06/12/2021,65.26,R & B Transformation 2,Supplies & Services,G57002/D200008,Technical Services Depot,Payments to Contractors External
Ashfield District Council,37UB,J Tomlinson Ltd,V0982811,06/12/2021,65.26,R & B Transformation 2,Supplies & Services,G57002/D200008,Technical Services Depot,Payments to Contractors External
Ashfield District Council,37UB,J Tomlinson Ltd,V0982812,06/12/2021,65.26,R & B Transformation 2,Supplies & Services,G57002/D200008,Technical Services Depot,Payments to Contractors External
Ashfield District Council,37UB,J Tomlinson Ltd,V0982813,06/12/2021,65.26,R & B Transformation 2,Supplies & Services,G57002/D200008,Technical Services Depot,Payments to Contractors External
Ashfield District Council,37UB,J Tomlinson Ltd,V0982814,06/12/2021,65.26,R & B Transformation 2,Supplies & Services,G57002/D200008,Technical Services Depot,Payments to Contractors External
Ashfield District Council,37UB,J Tomlinson Ltd,V0982815,06/12/2021,65.26,R & B Transformation 2,Supplies & Services,G57002/D200008,Technical Services Depot,Payments to Contractors External
Ashfield District Council,37UB,J Tomlinson Ltd,V0982816,06/12/2021,65.26,R & B Transformation 2,Supplies & Services,G57002/D200008,Technical Services Depot,Payments to Contractors External
Ashfield District Council,37UB,J Tomlinson Ltd,V0982817,06/12/2021,65.26,R & B Transformation 2,Supplies & Services,G57002/D200008,Technical Services Depot,Payments to Contractors External
Ashfield District Council,37UB,J Tomlinson Ltd,V0982818,06/12/2021,65.26,R & B Transformation 2,Supplies & Services,G57002/D200008,Technical Services Depot,Payments to Contractors External
Ashfield District Council,37UB,J Tomlinson Ltd,V0982819,06/12/2021,65.26,R & B Transformation 2,Supplies & Services,G57002/D200008,Technical Services Depot,Payments to Contractors External
Ashfield District Council,37UB,J Tomlinson Ltd,V0982820,06/12/2021,65.26,R & B Transformation 2,Supplies & Services,G57002/D200008,Technical Services Depot,Payments to Contractors External
Ashfield District Council,37UB,J Tomlinson Ltd,V0982821,06/12/2021,65.26,R & B Transformation 2,Supplies & Services,G57002/D200008,Technical Services Depot,Payments to Contractors External
Ashfield District Council,37UB,J Tomlinson Ltd,V0982822,06/12/2021,65.26,R & B Transformation 2,Supplies & Services,G57002/D200008,Technical Services Depot,Payments to Contractors External
Ashfield District Council,37UB,J Tomlinson Ltd,V0982823,06/12/2021,65.26,R & B Transformation 2,Supplies & Services,G57002/D200008,Technical Services Depot,Payments to Contractors External
Ashfield District Council,37UB,J Tomlinson Ltd,V0982824,06/12/2021,65.26,R & B Transformation 2,Supplies & Services,G57002/D200008,Technical Services Depot,Payments to Contractors External
Ashfield District Council,37UB,J Tomlinson Ltd,V0982825,06/12/2021,65.26,R & B Transformation 2,Supplies & Services,G57002/D200008,Technical Services Depot,Payments to Contractors External
Ashfield District Council,37UB,J Tomlinson Ltd,V0982826,06/12/2021,65.26,R & B Transformation 2,Supplies & Services,G57002/D200008,Technical Services Depot,Payments to Contractors External
Ashfield District Council,37UB,J Tomlinson Ltd,V0982827,06/12/2021,65.26,R & B Transformation 2,Supplies & Services,G57002/D200008,Technical Services Depot,Payments to Contractors External
Ashfield District Council,37UB,J Tomlinson Ltd,V0982828,06/12/2021,65.26,R & B Transformation 2,Supplies & Services,G57002/D200008,Technical Services Depot,Payments to Contractors External
Ashfield District Council,37UB,J Tomlinson Ltd,V0982829,06/12/2021,65.26,R & B Transformation 2,Supplies & Services,G57002/D200008,Technical Services Depot,Payments to Contractors External
Ashfield District Council,37UB,J Tomlinson Ltd,V0982830,06/12/2021,65.26,R & B Transformation 2,Supplies & Services,G57002/D200008,Technical Services Depot,Payments to Contractors External
Ashfield District Council,37UB,J Tomlinson Ltd,V0982831,06/12/2021,65.26,R & B Transformation 2,Supplies & Services,G57002/D200008,Technical Services Depot,Payments to Contractors External
Ashfield District Council,37UB,J Tomlinson Ltd,V0982832,06/12/2021,65.26,R & B Transformation 2,Supplies & Services,G57002/D200008,Technical Services Depot,Payments to Contractors External
Ashfield District Council,37UB,J Tomlinson Ltd,V0982833,06/12/2021,65.26,R & B Transformation 2,Supplies & Services,G57002/D200008,Technical Services Depot,Payments to Contractors External
Ashfield District Council,37UB,J Tomlinson Ltd,V0982834,06/12/2021,65.26,R & B Transformation 2,Supplies & Services,G57002/D200008,Technical Services Depot,Payments to Contractors External
Ashfield District Council,37UB,J Tomlinson Ltd,V0982835,06/12/2021,65.26,R & B Transformation 2,Supplies & Services,G57002/D200008,Technical Services Depot,Payments to Contractors External
Ashfield District Council,37UB,J Tomlinson Ltd,V0982836,06/12/2021,65.26,R & B Transformation 2,Supplies & Services,G57002/D200008,Technical Services Depot,Payments to Contractors External
Ashfield District Council,37UB,J Tomlinson Ltd,V0982837,06/12/2021,65.26,R & B Transformation 2,Supplies & Services,G57002/D200008,Technical Services Depot,Payments to Contractors External
Ashfield District Council,37UB,J Tomlinson Ltd,V0982838,06/12/2021,65.26,R & B Transformation 2,Supplies & Services,G57002/D200008,Technical Services Depot,Payments to Contractors External
Ashfield District Council,37UB,J Tomlinson Ltd,V0982839,06/12/2021,65.26,R & B Transformation 2,Supplies & Services,G57002/D200008,Technical Services Depot,Payments to Contractors External
Ashfield District Council,37UB,J Tomlinson Ltd,V0982840,06/12/2021,65.26,R & B Transformation 2,Supplies & Services,G57002/D200008,Technical Services Depot,Payments to Contractors External
Ashfield District Council,37UB,J Tomlinson Ltd,V0982841,06/12/2021,65.26,R & B Transformation 2,Supplies & Services,G57002/D200008,Technical Services Depot,Payments to Contractors External
Ashfield District Council,37UB,J Tomlinson Ltd,V0982842,06/12/2021,65.26,R & B Transformation 2,Supplies & Services,G57002/D200008,Technical Services Depot,Payments to Contractors External
Ashfield District Council,37UB,J Tomlinson Ltd,V0982843,06/12/2021,65.26,R & B Transformation 2,Supplies & Services,G57002/D200008,Technical Services Depot,Payments to Contractors External
Ashfield District Council,37UB,J Tomlinson Ltd,V0982844,06/12/2021,65.26,R & B Transformation 2,Supplies & Services,G57002/D200008,Technical Services Depot,Payments to Contractors External
Ashfield District Council,37UB,J Tomlinson Ltd,V0982845,06/12/2021,65.26,R & B Transformation 2,Supplies & Services,G57002/D200008,Technical Services Depot,Payments to Contractors External
Ashfield District Council,37UB,J Tomlinson Ltd,V0982846,06/12/2021,65.26,R & B Transformation 2,Supplies & Services,G57002/D200008,Technical Services Depot,Payments to Contractors External
Ashfield District Council,37UB,J Tomlinson Ltd,V0982847,06/12/2021,65.26,R & B Transformation 2,Supplies & Services,G57002/D200008,Technical Services Depot,Payments to Contractors External
Ashfield District Council,37UB,J Tomlinson Ltd,V0982848,06/12/2021,65.26,R & B Transformation 2,Supplies & Services,G57002/D200008,Technical Services Depot,Payments to Contractors External
Ashfield District Council,37UB,J Tomlinson Ltd,V0982849,06/12/2021,65.26,R & B Transformation 2,Supplies & Services,G57002/D200008,Technical Services Depot,Payments to Contractors External
Ashfield District Council,37UB,J Tomlinson Ltd,V0982850,06/12/2021,65.26,R & B Transformation 2,Supplies & Services,G57002/D200008,Technical Services Depot,Payments to Contractors External
Ashfield District Council,37UB,J Tomlinson Ltd,V0982851,06/12/2021,65.26,R & B Transformation 2,Supplies & Services,G57002/D200008,Technical Services Depot,Payments to Contractors External
Ashfield District Council,37UB,J Tomlinson Ltd,V0982852,06/12/2021,65.26,R & B Transformation 2,Supplies & Services,G57002/D200008,Technical Services Depot,Payments to Contractors External
Ashfield District Council,37UB,J Tomlinson Ltd,V0982853,06/12/2021,65.26,R & B Transformation 2,Supplies & Services,G57002/D200008,Technical Services Depot,Payments to Contractors External
Ashfield District Council,37UB,J Tomlinson Ltd,V0982854,06/12/2021,65.26,R & B Transformation 2,Supplies & Services,G57002/D200008,Technical Services Depot,Payments to Contractors External
Ashfield District Council,37UB,J Tomlinson Ltd,V0982855,06/12/2021,65.26,R & B Transformation 2,Supplies & Services,G57002/D200008,Technical Services Depot,Payments to Contractors External
Ashfield District Council,37UB,J Tomlinson Ltd,V0982856,06/12/2021,65.26,R & B Transformation 2,Supplies & Services,G57002/D200008,Technical Services Depot,Payments to Contractors External
Ashfield District Council,37UB,J Tomlinson Ltd,V0982857,06/12/2021,65.26,R & B Transformation 2,Supplies & Services,G57002/D200008,Technical Services Depot,Payments to Contractors External
Ashfield District Council,37UB,J Tomlinson Ltd,V0982858,06/12/2021,65.26,R & B Transformation 2,Supplies & Services,G57002/D200008,Technical Services Depot,Payments to Contractors External
Ashfield District Council,37UB,J Tomlinson Ltd,V0982859,06/12/2021,65.26,R & B Transformation 2,Supplies & Services,G57002/D200008,Technical Services Depot,Payments to Contractors External
Ashfield District Council,37UB,J Tomlinson Ltd,V0982860,06/12/2021,65.26,R & B Transformation 2,Supplies & Services,G57002/D200008,Technical Services Depot,Payments to Contractors External
Ashfield District Council,37UB,J Tomlinson Ltd,V0982861,06/12/2021,65.26,R & B Transformation 2,Supplies & Services,G57002/D200008,Technical Services Depot,Payments to Contractors External
Ashfield District Council,37UB,J Tomlinson Ltd,V0982862,06/12/2021,65.26,R & B Transformation 2,Supplies & Services,G57002/D200008,Technical Services Depot,Payments to Contractors External
Ashfield District Council,37UB,J Tomlinson Ltd,V0982863,06/12/2021,65.26,R & B Transformation 2,Supplies & Services,G57002/D200008,Technical Services Depot,Payments to Contractors External
Ashfield District Council,37UB,J Tomlinson Ltd,V0982864,06/12/2021,65.26,R & B Transformation 2,Supplies & Services,G57002/D200008,Technical Services Depot,Payments to Contractors External
Ashfield District Council,37UB,J Tomlinson Ltd,V0982865,06/12/2021,65.26,R & B Transformation 2,Supplies & Services,G57002/D200008,Technical Services Depot,Payments to Contractors External
Ashfield District Council,37UB,J Tomlinson Ltd,V0982866,06/12/2021,65.26,R & B Transformation 2,Supplies & Services,G57002/D200008,Technical Services Depot,Payments to Contractors External
Ashfield District Council,37UB,J Tomlinson Ltd,V0982867,06/12/2021,65.26,R & B Transformation 2,Supplies & Services,G57002/D200008,Technical Services Depot,Payments to Contractors External
Ashfield District Council,37UB,J Tomlinson Ltd,V0982868,06/12/2021,65.26,R & B Transformation 2,Supplies & Services,G57002/D200008,Technical Services Depot,Payments to Contractors External
Ashfield District Council,37UB,J Tomlinson Ltd,V0982869,06/12/2021,65.26,R & B Transformation 2,Supplies & Services,G57002/D200008,Technical Services Depot,Payments to Contractors External
Ashfield District Council,37UB,J Tomlinson Ltd,V0982870,06/12/2021,65.26,R & B Transformation 2,Supplies & Services,G57002/D200008,Technical Services Depot,Payments to Contractors External
Ashfield District Council,37UB,J Tomlinson Ltd,V0982871,06/12/2021,65.26,R & B Transformation 2,Supplies & Services,G57002/D200008,Technical Services Depot,Payments to Contractors External
Ashfield District Council,37UB,J Tomlinson Ltd,V0982872,06/12/2021,65.26,R & B Transformation 2,Supplies & Services,G57002/D200008,Technical Services Depot,Payments to Contractors External
Ashfield District Council,37UB,J Tomlinson Ltd,V0982873,06/12/2021,65.26,R & B Transformation 2,Supplies & Services,G57002/D200008,Technical Services Depot,Payments to Contractors External
Ashfield District Council,37UB,J Tomlinson Ltd,V0982874,06/12/2021,65.26,R & B Transformation 2,Supplies & Services,G57002/D200008,Technical Services Depot,Payments to Contractors External
Ashfield District Council,37UB,J Tomlinson Ltd,V0982875,06/12/2021,65.26,R & B Transformation 2,Supplies & Services,G57002/D200008,Technical Services Depot,Payments to Contractors External
Ashfield District Council,37UB,J Tomlinson Ltd,V0982876,06/12/2021,65.26,R & B Transformation 2,Supplies & Services,G57002/D200008,Technical Services Depot,Payments to Contractors External
Ashfield District Council,37UB,J Tomlinson Ltd,V0982877,06/12/2021,65.26,R & B Transformation 2,Supplies & Services,G57002/D200008,Technical Services Depot,Payments to Contractors External
Ashfield District Council,37UB,J Tomlinson Ltd,V0982878,06/12/2021,65.26,R & B Transformation 2,Supplies & Services,G57002/D200008,Technical Services Depot,Payments to Contractors External
Ashfield District Council,37UB,J Tomlinson Ltd,V0982879,06/12/2021,65.26,R & B Transformation 2,Supplies & Services,G57002/D200008,Technical Services Depot,Payments to Contractors External
Ashfield District Council,37UB,J Tomlinson Ltd,V0982880,06/12/2021,65.26,R & B Transformation 2,Supplies & Services,G57002/D200008,Technical Services Depot,Payments to Contractors External
Ashfield District Council,37UB,J Tomlinson Ltd,V0982881,06/12/2021,65.26,R & B Transformation 2,Supplies & Services,G57002/D200008,Technical Services Depot,Payments to Contractors External
Ashfield District Council,37UB,J Tomlinson Ltd,V0982882,06/12/2021,65.26,R & B Transformation 2,Supplies & Services,G57002/D200008,Technical Services Depot,Payments to Contractors External
Ashfield District Council,37UB,J Tomlinson Ltd,V0982883,06/12/2021,65.26,R & B Transformation 2,Supplies & Services,G57002/D200008,Technical Services Depot,Payments to Contractors External
Ashfield District Council,37UB,J Tomlinson Ltd,V0982884,06/12/2021,65.26,R & B Transformation 2,Supplies & Services,G57002/D200008,Technical Services Depot,Payments to Contractors External
Ashfield District Council,37UB,J Tomlinson Ltd,V0982885,06/12/2021,65.26,R & B Transformation 2,Supplies & Services,G57002/D200008,Technical Services Depot,Payments to Contractors External
Ashfield District Council,37UB,J Tomlinson Ltd,V0982886,06/12/2021,65.26,R & B Transformation 2,Supplies & Services,G57002/D200008,Technical Services Depot,Payments to Contractors External
Ashfield District Council,37UB,J Tomlinson Ltd,V0982887,06/12/2021,65.26,R & B Transformation 2,Supplies & Services,G57002/D200008,Technical Services Depot,Payments to Contractors External
Ashfield District Council,37UB,J Tomlinson Ltd,V0982888,06/12/2021,65.26,R & B Transformation 2,Supplies & Services,G57002/D200008,Technical Services Depot,Payments to Contractors External
Ashfield District Council,37UB,J Tomlinson Ltd,V0982889,06/12/2021,65.26,R & B Transformation 2,Supplies & Services,G57002/D200008,Technical Services Depot,Payments to Contractors External
Ashfield District Council,37UB,J Tomlinson Ltd,V0982890,06/12/2021,65.26,R & B Transformation 2,Supplies & Services,G57002/D200008,Technical Services Depot,Payments to Contractors External
Ashfield District Council,37UB,J Tomlinson Ltd,V0982891,06/12/2021,65.26,R & B Transformation 2,Supplies & Services,G57002/D200008,Technical Services Depot,Payments to Contractors External
Ashfield District Council,37UB,J Tomlinson Ltd,V0982892,06/12/2021,65.26,R & B Transformation 2,Supplies & Services,G57002/D200008,Technical Services Depot,Payments to Contractors External
Ashfield District Council,37UB,J Tomlinson Ltd,V0982893,06/12/2021,65.26,R & B Transformation 2,Supplies & Services,G57002/D200008,Technical Services Depot,Payments to Contractors External
Ashfield District Council,37UB,J Tomlinson Ltd,V0982894,06/12/2021,65.26,R & B Transformation 2,Supplies & Services,G57002/D200008,Technical Services Depot,Payments to Contractors External
Ashfield District Council,37UB,J Tomlinson Ltd,V0982895,06/12/2021,65.26,R & B Transformation 2,Supplies & Services,G57002/D200008,Technical Services Depot,Payments to Contractors External
Ashfield District Council,37UB,J Tomlinson Ltd,V0982896,06/12/2021,65.26,R & B Transformation 2,Supplies & Services,G57002/D200008,Technical Services Depot,Payments to Contractors External
Ashfield District Council,37UB,J Tomlinson Ltd,V0982897,06/12/2021,65.26,R & B Transformation 2,Supplies & Services,G57002/D200008,Technical Services Depot,Payments to Contractors External
Ashfield District Council,37UB,J Tomlinson Ltd,V0982898,06/12/2021,65.26,R & B Transformation 2,Supplies & Services,G57002/D200008,Technical Services Depot,Payments to Contractors External
Ashfield District Council,37UB,J Tomlinson Ltd,V0982899,06/12/2021,65.26,R & B Transformation 2,Supplies & Services,G57002/D200008,Technical Services Depot,Payments to Contractors External
Ashfield District Council,37UB,J Tomlinson Ltd,V0982900,06/12/2021,65.26,R & B Transformation 2,Supplies & Services,G57002/D200008,Technical Services Depot,Payments to Contractors External
Ashfield District Council,37UB,J Tomlinson Ltd,V0982901,06/12/2021,65.26,R & B Transformation 2,Supplies & Services,G57002/D200008,Technical Services Depot,Payments to Contractors External
Ashfield District Council,37UB,J Tomlinson Ltd,V0982902,06/12/2021,65.26,R & B Transformation 2,Supplies & Services,G57002/D200008,Technical Services Depot,Payments to Contractors External
Ashfield District Council,37UB,J Tomlinson Ltd,V0982903,06/12/2021,65.26,R & B Transformation 2,Supplies & Services,G57002/D200008,Technical Services Depot,Payments to Contractors External
Ashfield District Council,37UB,J Tomlinson Ltd,V0982904,06/12/2021,65.26,R & B Transformation 2,Supplies & Services,G57002/D200008,Technical Services Depot,Payments to Contractors External
Ashfield District Council,37UB,J Tomlinson Ltd,V0982905,06/12/2021,65.26,R & B Transformation 2,Supplies & Services,G57002/D200008,Technical Services Depot,Payments to Contractors External
Ashfield District Council,37UB,J Tomlinson Ltd,V0982906,06/12/2021,65.26,R & B Transformation 2,Supplies & Services,G57002/D200008,Technical Services Depot,Payments to Contractors External
Ashfield District Council,37UB,J Tomlinson Ltd,V0982907,06/12/2021,65.26,R & B Transformation 2,Supplies & Services,G57002/D200008,Technical Services Depot,Payments to Contractors External
Ashfield District Council,37UB,J Tomlinson Ltd,V0982908,06/12/2021,65.26,R & B Transformation 2,Supplies & Services,G57002/D200008,Technical Services Depot,Payments to Contractors External
Ashfield District Council,37UB,J Tomlinson Ltd,V0982909,06/12/2021,65.26,R & B Transformation 2,Supplies & Services,G57002/D200008,Technical Services Depot,Payments to Contractors External
Ashfield District Council,37UB,J Tomlinson Ltd,V0982910,06/12/2021,65.26,R & B Transformation 2,Supplies & Services,G57002/D200008,Technical Services Depot,Payments to Contractors External
Ashfield District Council,37UB,J Tomlinson Ltd,V0982911,06/12/2021,65.26,R & B Transformation 2,Supplies & Services,G57002/D200008,Technical Services Depot,Payments to Contractors External
Ashfield District Council,37UB,J Tomlinson Ltd,V0982912,06/12/2021,65.26,R & B Transformation 2,Supplies & Services,G57002/D200008,Technical Services Depot,Payments to Contractors External
Ashfield District Council,37UB,J Tomlinson Ltd,V0982913,06/12/2021,65.26,R & B Transformation 2,Supplies & Services,G57002/D200008,Technical Services Depot,Payments to Contractors External
Ashfield District Council,37UB,J Tomlinson Ltd,V0982914,06/12/2021,65.26,R & B Transformation 2,Supplies & Services,G57002/D200008,Technical Services Depot,Payments to Contractors External
Ashfield District Council,37UB,J Tomlinson Ltd,V0982915,06/12/2021,65.26,R & B Transformation 2,Supplies & Services,G57002/D200008,Technical Services Depot,Payments to Contractors External
Ashfield District Council,37UB,J Tomlinson Ltd,V0982916,06/12/2021,65.26,R & B Transformation 2,Supplies & Services,G57002/D200008,Technical Services Depot,Payments to Contractors External
Ashfield District Council,37UB,J Tomlinson Ltd,V0982917,06/12/2021,65.26,R & B Transformation 2,Supplies & Services,G57002/D200008,Technical Services Depot,Payments to Contractors External
Ashfield District Council,37UB,J Tomlinson Ltd,V0982918,06/12/2021,65.26,R & B Transformation 2,Supplies & Services,G57002/D200008,Technical Services Depot,Payments to Contractors External
Ashfield District Council,37UB,J Tomlinson Ltd,V0982919,06/12/2021,65.26,R & B Transformation 2,Supplies & Services,G57002/D200008,Technical Services Depot,Payments to Contractors External
Ashfield District Council,37UB,J Tomlinson Ltd,V0982920,06/12/2021,65.26,R & B Transformation 2,Supplies & Services,G57002/D200008,Technical Services Depot,Payments to Contractors External
Ashfield District Council,37UB,J Tomlinson Ltd,V0982921,06/12/2021,65.26,R & B Transformation 2,Supplies & Services,G57002/D200008,Technical Services Depot,Payments to Contractors External
Ashfield District Council,37UB,J Tomlinson Ltd,V0982922,06/12/2021,65.26,R & B Transformation 2,Supplies & Services,G57002/D200008,Technical Services Depot,Payments to Contractors External
Ashfield District Council,37UB,J Tomlinson Ltd,V0982923,06/12/2021,65.26,R & B Transformation 2,Supplies & Services,G57002/D200008,Technical Services Depot,Payments to Contractors External
Ashfield District Council,37UB,J Tomlinson Ltd,V0982924,06/12/2021,65.26,R & B Transformation 2,Supplies & Services,G57002/D200008,Technical Services Depot,Payments to Contractors External
Ashfield District Council,37UB,J Tomlinson Ltd,V0982925,06/12/2021,65.26,R & B Transformation 2,Supplies & Services,G57002/D200008,Technical Services Depot,Payments to Contractors External
Ashfield District Council,37UB,J Tomlinson Ltd,V0982926,06/12/2021,65.26,R & B Transformation 2,Supplies & Services,G57002/D200008,Technical Services Depot,Payments to Contractors External
Ashfield District Council,37UB,J Tomlinson Ltd,V0982927,06/12/2021,65.26,R & B Transformation 2,Supplies & Services,G57002/D200008,Technical Services Depot,Payments to Contractors External
Ashfield District Council,37UB,J Tomlinson Ltd,V0982928,06/12/2021,65.26,R & B Transformation 2,Supplies & Services,G57002/D200008,Technical Services Depot,Payments to Contractors External
Ashfield District Council,37UB,J Tomlinson Ltd,V0982929,06/12/2021,65.26,R & B Transformation 2,Supplies & Services,G57002/D200008,Technical Services Depot,Payments to Contractors External
Ashfield District Council,37UB,J Tomlinson Ltd,V0982930,06/12/2021,65.26,R & B Transformation 2,Supplies & Services,G57002/D200008,Technical Services Depot,Payments to Contractors External
Ashfield District Council,37UB,J Tomlinson Ltd,V0982931,06/12/2021,65.26,R & B Transformation 2,Supplies & Services,G57002/D200008,Technical Services Depot,Payments to Contractors External
Ashfield District Council,37UB,J Tomlinson Ltd,V0982932,06/12/2021,65.26,R & B Transformation 2,Supplies & Services,G57002/D200008,Technical Services Depot,Payments to Contractors External
Ashfield District Council,37UB,J Tomlinson Ltd,V0982933,06/12/2021,65.26,R & B Transformation 2,Supplies & Services,G57002/D200008,Technical Services Depot,Payments to Contractors External
Ashfield District Council,37UB,J Tomlinson Ltd,V0982934,06/12/2021,65.26,R & B Transformation 2,Supplies & Services,G57002/D200008,Technical Services Depot,Payments to Contractors External
Ashfield District Council,37UB,J Tomlinson Ltd,V0982935,06/12/2021,65.26,R & B Transformation 2,Supplies & Services,G57002/D200008,Technical Services Depot,Payments to Contractors External
Ashfield District Council,37UB,J Tomlinson Ltd,V0982936,06/12/2021,65.26,R & B Transformation 2,Supplies & Services,G57002/D200008,Technical Services Depot,Payments to Contractors External
Ashfield District Council,37UB,J Tomlinson Ltd,V0982937,06/12/2021,65.26,R & B Transformation 2,Supplies & Services,G57002/D200008,Technical Services Depot,Payments to Contractors External
Ashfield District Council,37UB,J Tomlinson Ltd,V0982938,06/12/2021,65.26,R & B Transformation 2,Supplies & Services,G57002/D200008,Technical Services Depot,Payments to Contractors External
Ashfield District Council,37UB,J Tomlinson Ltd,V0982939,06/12/2021,65.26,R & B Transformation 2,Supplies & Services,G57002/D200008,Technical Services Depot,Payments to Contractors External
Ashfield District Council,37UB,J Tomlinson Ltd,V0982940,06/12/2021,65.26,R & B Transformation 2,Supplies & Services,G57002/D200008,Technical Services Depot,Payments to Contractors External
Ashfield District Council,37UB,J Tomlinson Ltd,V0982941,06/12/2021,65.26,R & B Transformation 2,Supplies & Services,G57002/D200008,Technical Services Depot,Payments to Contractors External
Ashfield District Council,37UB,J Tomlinson Ltd,V0982942,06/12/2021,65.26,R & B Transformation 2,Supplies & Services,G57002/D200008,Technical Services Depot,Payments to Contractors External
Ashfield District Council,37UB,J Tomlinson Ltd,V0982943,06/12/2021,65.26,R & B Transformation 2,Supplies & Services,G57002/D200008,Technical Services Depot,Payments to Contractors External
Ashfield District Council,37UB,J Tomlinson Ltd,V0982944,06/12/2021,65.26,R & B Transformation 2,Supplies & Services,G57002/D200008,Technical Services Depot,Payments to Contractors External
Ashfield District Council,37UB,J Tomlinson Ltd,V0982945,06/12/2021,65.26,R & B Transformation 2,Supplies & Services,G57002/D200008,Technical Services Depot,Payments to Contractors External
Ashfield District Council,37UB,J Tomlinson Ltd,V0982946,06/12/2021,65.26,R & B Transformation 2,Supplies & Services,G57002/D200008,Technical Services Depot,Payments to Contractors External
Ashfield District Council,37UB,J Tomlinson Ltd,V0982947,06/12/2021,65.26,R & B Transformation 2,Supplies & Services,G57002/D200008,Technical Services Depot,Payments to Contractors External
Ashfield District Council,37UB,J Tomlinson Ltd,V0982948,06/12/2021,65.26,R & B Transformation 2,Supplies & Services,G57002/D200008,Technical Services Depot,Payments to Contractors External
Ashfield District Council,37UB,J Tomlinson Ltd,V0982949,06/12/2021,65.26,R & B Transformation 2,Supplies & Services,G57002/D200008,Technical Services Depot,Payments to Contractors External
Ashfield District Council,37UB,J Tomlinson Ltd,V0982950,06/12/2021,65.26,R & B Transformation 2,Supplies & Services,G57002/D200008,Technical Services Depot,Payments to Contractors External
Ashfield District Council,37UB,J Tomlinson Ltd,V0982951,06/12/2021,65.26,R & B Transformation 2,Supplies & Services,G57002/D200008,Technical Services Depot,Payments to Contractors External
Ashfield District Council,37UB,J Tomlinson Ltd,V0982952,06/12/2021,65.26,R & B Transformation 2,Supplies & Services,G57002/D200008,Technical Services Depot,Payments to Contractors External
Ashfield District Council,37UB,J Tomlinson Ltd,V0982953,06/12/2021,65.26,R & B Transformation 2,Supplies & Services,G57002/D200008,Technical Services Depot,Payments to Contractors External
Ashfield District Council,37UB,J Tomlinson Ltd,V0982954,06/12/2021,65.26,R & B Transformation 2,Supplies & Services,G57002/D200008,Technical Services Depot,Payments to Contractors External
Ashfield District Council,37UB,J Tomlinson Ltd,V0982955,06/12/2021,65.26,R & B Transformation 2,Supplies & Services,G57002/D200008,Technical Services Depot,Payments to Contractors External
Ashfield District Council,37UB,J Tomlinson Ltd,V0982956,06/12/2021,65.26,R & B Transformation 2,Supplies & Services,G57002/D200008,Technical Services Depot,Payments to Contractors External
Ashfield District Council,37UB,J Tomlinson Ltd,V0982957,06/12/2021,65.26,R & B Transformation 2,Supplies & Services,G57002/D200008,Technical Services Depot,Payments to Contractors External
Ashfield District Council,37UB,J Tomlinson Ltd,V0982958,06/12/2021,65.26,R & B Transformation 2,Supplies & Services,G57002/D200008,Technical Services Depot,Payments to Contractors External
Ashfield District Council,37UB,J Tomlinson Ltd,V0982959,06/12/2021,65.26,R & B Transformation 2,Supplies & Services,G57002/D200008,Technical Services Depot,Payments to Contractors External
Ashfield District Council,37UB,J Tomlinson Ltd,V0982960,06/12/2021,65.26,R & B Transformation 2,Supplies & Services,G57002/D200008,Technical Services Depot,Payments to Contractors External
Ashfield District Council,37UB,J Tomlinson Ltd,V0982961,06/12/2021,65.26,R & B Transformation 2,Supplies & Services,G57002/D200008,Technical Services Depot,Payments to Contractors External
Ashfield District Council,37UB,J Tomlinson Ltd,V0982962,06/12/2021,65.26,R & B Transformation 2,Supplies & Services,G57002/D200008,Technical Services Depot,Payments to Contractors External
Ashfield District Council,37UB,J Tomlinson Ltd,V0982963,06/12/2021,65.26,R & B Transformation 2,Supplies & Services,G57002/D200008,Technical Services Depot,Payments to Contractors External
Ashfield District Council,37UB,J Tomlinson Ltd,V0982964,06/12/2021,65.26,R & B Transformation 2,Supplies & Services,G57002/D200008,Technical Services Depot,Payments to Contractors External
Ashfield District Council,37UB,J Tomlinson Ltd,V0982965,06/12/2021,65.26,R & B Transformation 2,Supplies & Services,G57002/D200008,Technical Services Depot,Payments to Contractors External
Ashfield District Council,37UB,J Tomlinson Ltd,V0982966,06/12/2021,65.26,R & B Transformation 2,Supplies & Services,G57002/D200008,Technical Services Depot,Payments to Contractors External
Ashfield District Council,37UB,J Tomlinson Ltd,V0982967,06/12/2021,65.26,R & B Transformation 2,Supplies & Services,G57002/D200008,Technical Services Depot,Payments to Contractors External
Ashfield District Council,37UB,J Tomlinson Ltd,V0982968,06/12/2021,65.26,R & B Transformation 2,Supplies & Services,G57002/D200008,Technical Services Depot,Payments to Contractors External
Ashfield District Council,37UB,J Tomlinson Ltd,V0982969,06/12/2021,65.26,R & B Transformation 2,Supplies & Services,G57002/D200008,Technical Services Depot,Payments to Contractors External
Ashfield District Council,37UB,J Tomlinson Ltd,V0982970,06/12/2021,65.26,R & B Transformation 2,Supplies & Services,G57002/D200008,Technical Services Depot,Payments to Contractors External
Ashfield District Council,37UB,J Tomlinson Ltd,V0982971,06/12/2021,65.26,R & B Transformation 2,Supplies & Services,G57002/D200008,Technical Services Depot,Payments to Contractors External
Ashfield District Council,37UB,J Tomlinson Ltd,V0982972,06/12/2021,65.26,R & B Transformation 2,Supplies & Services,G57002/D200008,Technical Services Depot,Payments to Contractors External
Ashfield District Council,37UB,J Tomlinson Ltd,V0982973,06/12/2021,65.26,R & B Transformation 2,Supplies & Services,G57002/D200008,Technical Services Depot,Payments to Contractors External
Ashfield District Council,37UB,J Tomlinson Ltd,V0982974,06/12/2021,65.26,R & B Transformation 2,Supplies & Services,G57002/D200008,Technical Services Depot,Payments to Contractors External
Ashfield District Council,37UB,J Tomlinson Ltd,V0982975,06/12/2021,65.26,R & B Transformation 2,Supplies & Services,G57002/D200008,Technical Services Depot,Payments to Contractors External
Ashfield District Council,37UB,J Tomlinson Ltd,V0982976,06/12/2021,65.26,R & B Transformation 2,Supplies & Services,G57002/D200008,Technical Services Depot,Payments to Contractors External
Ashfield District Council,37UB,J Tomlinson Ltd,V0982977,06/12/2021,65.26,R & B Transformation 2,Supplies & Services,G57002/D200008,Technical Services Depot,Payments to Contractors External
Ashfield District Council,37UB,J Tomlinson Ltd,V0982978,06/12/2021,65.26,R & B Transformation 2,Supplies & Services,G57002/D200008,Technical Services Depot,Payments to Contractors External
Ashfield District Council,37UB,J Tomlinson Ltd,V0982979,06/12/2021,65.26,R & B Transformation 2,Supplies & Services,G57002/D200008,Technical Services Depot,Payments to Contractors External
Ashfield District Council,37UB,J Tomlinson Ltd,V0982980,06/12/2021,65.26,R & B Transformation 2,Supplies & Services,G57002/D200008,Technical Services Depot,Payments to Contractors External
Ashfield District Council,37UB,J Tomlinson Ltd,V0982981,06/12/2021,65.26,R & B Transformation 2,Supplies & Services,G57002/D200008,Technical Services Depot,Payments to Contractors External
Ashfield District Council,37UB,J Tomlinson Ltd,V0982982,06/12/2021,65.26,R & B Transformation 2,Supplies & Services,G57002/D200008,Technical Services Depot,Payments to Contractors External
Ashfield District Council,37UB,J Tomlinson Ltd,V0982983,06/12/2021,65.26,R & B Transformation 2,Supplies & Services,G57002/D200008,Technical Services Depot,Payments to Contractors External
Ashfield District Council,37UB,J Tomlinson Ltd,V0982984,06/12/2021,65.26,R & B Transformation 2,Supplies & Services,G57002/D200008,Technical Services Depot,Payments to Contractors External
Ashfield District Council,37UB,J Tomlinson Ltd,V0982985,06/12/2021,65.26,R & B Transformation 2,Supplies & Services,G57002/D200008,Technical Services Depot,Payments to Contractors External
Ashfield District Council,37UB,J Tomlinson Ltd,V0982986,06/12/2021,65.26,R & B Transformation 2,Supplies & Services,G57002/D200008,Technical Services Depot,Payments to Contractors External
Ashfield District Council,37UB,J Tomlinson Ltd,V0982987,06/12/2021,65.26,R & B Transformation 2,Supplies & Services,G57002/D200008,Technical Services Depot,Payments to Contractors External
Ashfield District Council,37UB,J Tomlinson Ltd,V0982988,06/12/2021,65.26,R & B Transformation 2,Supplies & Services,G57002/D200008,Technical Services Depot,Payments to Contractors External
Ashfield District Council,37UB,J Tomlinson Ltd,V0982989,06/12/2021,65.26,R & B Transformation 2,Supplies & Services,G57002/D200008,Technical Services Depot,Payments to Contractors External
Ashfield District Council,37UB,J Tomlinson Ltd,V0982990,06/12/2021,65.26,R & B Transformation 2,Supplies & Services,G57002/D200008,Technical Services Depot,Payments to Contractors External
Ashfield District Council,37UB,J Tomlinson Ltd,V0982991,06/12/2021,65.26,R & B Transformation 2,Supplies & Services,G57002/D200008,Technical Services Depot,Payments to Contractors External
Ashfield District Council,37UB,J Tomlinson Ltd,V0982992,06/12/2021,65.26,R & B Transformation 2,Supplies & Services,G57002/D200008,Technical Services Depot,Payments to Contractors External
Ashfield District Council,37UB,J Tomlinson Ltd,V0982993,06/12/2021,65.26,R & B Transformation 2,Supplies & Services,G57002/D200008,Technical Services Depot,Payments to Contractors External
Ashfield District Council,37UB,J Tomlinson Ltd,V0982994,06/12/2021,65.26,R & B Transformation 2,Supplies & Services,G57002/D200008,Technical Services Depot,Payments to Contractors External
Ashfield District Council,37UB,J Tomlinson Ltd,V0982995,06/12/2021,65.26,R & B Transformation 2,Supplies & Services,G57002/D200008,Technical Services Depot,Payments to Contractors External
Ashfield District Council,37UB,J Tomlinson Ltd,V0982996,06/12/2021,65.26,R & B Transformation 2,Supplies & Services,G57002/D200008,Technical Services Depot,Payments to Contractors External
Ashfield District Council,37UB,J Tomlinson Ltd,V0982997,06/12/2021,65.26,R & B Transformation 2,Supplies & Services,G57002/D200008,Technical Services Depot,Payments to Contractors External
Ashfield District Council,37UB,J Tomlinson Ltd,V0982998,06/12/2021,65.26,R & B Transformation 2,Supplies & Services,G57002/D200008,Technical Services Depot,Payments to Contractors External
Ashfield District Council,37UB,J Tomlinson Ltd,V0982999,06/12/2021,65.26,R & B Transformation 2,Supplies & Services,G57002/D200008,Technical Services Depot,Payments to Contractors External
Ashfield District Council,37UB,J Tomlinson Ltd,V0983000,06/12/2021,65.26,R & B Transformation 2,Supplies & Services,G57002/D200008,Technical Services Depot,Payments to Contractors External
Ashfield District Council,37UB,J Tomlinson Ltd,V0983001,06/12/2021,65.26,R & B Transformation 2,Supplies & Services,G57002/D200008,Technical Services Depot,Payments to Contractors External
Ashfield District Council,37UB,J Tomlinson Ltd,V0983002,06/12/2021,65.26,R & B Transformation 2,Supplies & Services,G57002/D200008,Technical Services Depot,Payments to Contractors External
Ashfield District Council,37UB,J Tomlinson Ltd,V0983003,06/12/2021,65.26,R & B Transformation 2,Supplies & Services,G57002/D200008,Technical Services Depot,Payments to Contractors External
Ashfield District Council,37UB,J Tomlinson Ltd,V0983004,06/12/2021,65.26,R & B Transformation 2,Supplies & Services,G57002/D200008,Technical Services Depot,Payments to Contractors External
Ashfield District Council,37UB,J Tomlinson Ltd,V0983005,06/12/2021,65.26,R & B Transformation 2,Supplies & Services,G57002/D200008,Technical Services Depot,Payments to Contractors External
Ashfield District Council,37UB,J Tomlinson Ltd,V0983006,06/12/2021,65.26,R & B Transformation 2,Supplies & Services,G57002/D200008,Technical Services Depot,Payments to Contractors External
Ashfield District Council,37UB,J Tomlinson Ltd,V0983007,06/12/2021,65.26,R & B Transformation 2,Supplies & Services,G57002/D200008,Technical Services Depot,Payments to Contractors External
Ashfield District Council,37UB,J Tomlinson Ltd,V0983008,06/12/2021,65.26,R & B Transformation 2,Supplies & Services,G57002/D200008,Technical Services Depot,Payments to Contractors External
Ashfield District Council,37UB,J Tomlinson Ltd,V0983009,06/12/2021,65.26,R & B Transformation 2,Supplies & Services,G57002/D200008,Technical Services Depot,Payments to Contractors External
Ashfield District Council,37UB,J Tomlinson Ltd,V0983010,06/12/2021,65.26,R & B Transformation 2,Supplies & Services,G57002/D200008,Technical Services Depot,Payments to Contractors External
Ashfield District Council,37UB,J Tomlinson Ltd,V0983011,06/12/2021,65.26,R & B Transformation 2,Supplies & Services,G57002/D200008,Technical Services Depot,Payments to Contractors External
Ashfield District Council,37UB,J Tomlinson Ltd,V0983012,06/12/2021,65.26,R & B Transformation 2,Supplies & Services,G57002/D200008,Technical Services Depot,Payments to Contractors External
Ashfield District Council,37UB,J Tomlinson Ltd,V0983013,06/12/2021,65.26,R & B Transformation 2,Supplies & Services,G57002/D200008,Technical Services Depot,Payments to Contractors External
Ashfield District Council,37UB,J Tomlinson Ltd,V0983014,06/12/2021,65.26,R & B Transformation 2,Supplies & Services,G57002/D200008,Technical Services Depot,Payments to Contractors External
Ashfield District Council,37UB,J Tomlinson Ltd,V0983015,06/12/2021,65.26,R & B Transformation 2,Supplies & Services,G57002/D200008,Technical Services Depot,Payments to Contractors External
Ashfield District Council,37UB,J Tomlinson Ltd,V0983016,06/12/2021,65.26,R & B Transformation 2,Supplies & Services,G57002/D200008,Technical Services Depot,Payments to Contractors External
Ashfield District Council,37UB,J Tomlinson Ltd,V0983017,06/12/2021,65.26,R & B Transformation 2,Supplies & Services,G57002/D200008,Technical Services Depot,Payments to Contractors External
Ashfield District Council,37UB,J Tomlinson Ltd,V0983018,06/12/2021,65.26,R & B Transformation 2,Supplies & Services,G57002/D200008,Technical Services Depot,Payments to Contractors External
Ashfield District Council,37UB,J Tomlinson Ltd,V0983019,06/12/2021,65.26,R & B Transformation 2,Supplies & Services,G57002/D200008,Technical Services Depot,Payments to Contractors External
Ashfield District Council,37UB,J Tomlinson Ltd,V0983020,06/12/2021,65.26,R & B Transformation 2,Supplies & Services,G57002/D200008,Technical Services Depot,Payments to Contractors External
Ashfield District Council,37UB,J Tomlinson Ltd,V0983021,06/12/2021,65.26,R & B Transformation 2,Supplies & Services,G57002/D200008,Technical Services Depot,Payments to Contractors External
Ashfield District Council,37UB,J Tomlinson Ltd,V0983022,06/12/2021,65.26,R & B Transformation 2,Supplies & Services,G57002/D200008,Technical Services Depot,Payments to Contractors External
Ashfield District Council,37UB,J Tomlinson Ltd,V0983023,06/12/2021,65.26,R & B Transformation 2,Supplies & Services,G57002/D200008,Technical Services Depot,Payments to Contractors External
Ashfield District Council,37UB,J Tomlinson Ltd,V0983024,06/12/2021,65.26,R & B Transformation 2,Supplies & Services,G57002/D200008,Technical Services Depot,Payments to Contractors External
Ashfield District Council,37UB,J Tomlinson Ltd,V0983025,06/12/2021,65.26,R & B Transformation 2,Supplies & Services,G57002/D200008,Technical Services Depot,Payments to Contractors External
Ashfield District Council,37UB,J Tomlinson Ltd,V0983026,06/12/2021,65.26,R & B Transformation 2,Supplies & Services,G57002/D200008,Technical Services Depot,Payments to Contractors External
Ashfield District Council,37UB,J Tomlinson Ltd,V0983027,06/12/2021,65.26,R & B Transformation 2,Supplies & Services,G57002/D200008,Technical Services Depot,Payments to Contractors External
Ashfield District Council,37UB,J Tomlinson Ltd,V0983028,06/12/2021,65.26,R & B Transformation 2,Supplies & Services,G57002/D200008,Technical Services Depot,Payments to Contractors External
Ashfield District Council,37UB,J Tomlinson Ltd,V0983029,06/12/2021,65.26,R & B Transformation 2,Supplies & Services,G57002/D200008,Technical Services Depot,Payments to Contractors External
Ashfield District Council,37UB,J Tomlinson Ltd,V0983030,06/12/2021,65.26,R & B Transformation 2,Supplies & Services,G57002/D200008,Technical Services Depot,Payments to Contractors External
Ashfield District Council,37UB,J Tomlinson Ltd,V0983031,06/12/2021,65.26,R & B Transformation 2,Supplies & Services,G57002/D200008,Technical Services Depot,Payments to Contractors External
Ashfield District Council,37UB,J Tomlinson Ltd,V0983032,06/12/2021,65.26,R & B Transformation 2,Supplies & Services,G57002/D200008,Technical Services Depot,Payments to Contractors External
Ashfield District Council,37UB,J Tomlinson Ltd,V0983033,06/12/2021,65.26,R & B Transformation 2,Supplies & Services,G57002/D200008,Technical Services Depot,Payments to Contractors External
Ashfield District Council,37UB,J Tomlinson Ltd,V0983034,06/12/2021,65.26,R & B Transformation 2,Supplies & Services,G57002/D200008,Technical Services Depot,Payments to Contractors External
Ashfield District Council,37UB,J Tomlinson Ltd,V0983035,06/12/2021,65.26,R & B Transformation 2,Supplies & Services,G57002/D200008,Technical Services Depot,Payments to Contractors External
Ashfield District Council,37UB,J Tomlinson Ltd,V0983036,06/12/2021,65.26,R & B Transformation 2,Supplies & Services,G57002/D200008,Technical Services Depot,Payments to Contractors External
Ashfield District Council,37UB,J Tomlinson Ltd,V0983037,06/12/2021,65.26,R & B Transformation 2,Supplies & Services,G57002/D200008,Technical Services Depot,Payments to Contractors External
Ashfield District Council,37UB,J Tomlinson Ltd,V0983038,06/12/2021,65.26,R & B Transformation 2,Supplies & Services,G57002/D200008,Technical Services Depot,Payments to Contractors External
Ashfield District Council,37UB,J Tomlinson Ltd,V0983039,06/12/2021,65.26,R & B Transformation 2,Supplies & Services,G57002/D200008,Technical Services Depot,Payments to Contractors External
Ashfield District Council,37UB,J Tomlinson Ltd,V0983040,06/12/2021,65.26,R & B Transformation 2,Supplies & Services,G57002/D200008,Technical Services Depot,Payments to Contractors External
Ashfield District Council,37UB,J Tomlinson Ltd,V0983041,06/12/2021,65.26,R & B Transformation 2,Supplies & Services,G57002/D200008,Technical Services Depot,Payments to Contractors External
Ashfield District Council,37UB,J Tomlinson Ltd,V0983042,06/12/2021,65.26,R & B Transformation 2,Supplies & Services,G57002/D200008,Technical Services Depot,Payments to Contractors External
Ashfield District Council,37UB,J Tomlinson Ltd,V0983043,06/12/2021,65.26,R & B Transformation 2,Supplies & Services,G57002/D200008,Technical Services Depot,Payments to Contractors External
Ashfield District Council,37UB,J Tomlinson Ltd,V0983044,06/12/2021,65.26,R & B Transformation 2,Supplies & Services,G57002/D200008,Technical Services Depot,Payments to Contractors External
Ashfield District Council,37UB,J Tomlinson Ltd,V0983045,06/12/2021,65.26,R & B Transformation 2,Supplies & Services,G57002/D200008,Technical Services Depot,Payments to Contractors External
Ashfield District Council,37UB,J Tomlinson Ltd,V0983046,06/12/2021,65.26,R & B Transformation 2,Supplies & Services,G57002/D200008,Technical Services Depot,Payments to Contractors External
Ashfield District Council,37UB,J Tomlinson Ltd,V0983047,06/12/2021,65.26,R & B Transformation 2,Supplies & Services,G57002/D200008,Technical Services Depot,Payments to Contractors External
Ashfield District Council,37UB,J Tomlinson Ltd,V0983048,06/12/2021,65.26,R & B Transformation 2,Supplies & Services,G57002/D200008,Technical Services Depot,Payments to Contractors External
Ashfield District Council,37UB,J Tomlinson Ltd,V0983049,06/12/2021,65.26,R & B Transformation 2,Supplies & Services,G57002/D200008,Technical Services Depot,Payments to Contractors External
Ashfield District Council,37UB,J Tomlinson Ltd,V0983050,06/12/2021,65.26,R & B Transformation 2,Supplies & Services,G57002/D200008,Technical Services Depot,Payments to Contractors External
Ashfield District Council,37UB,J Tomlinson Ltd,V0983051,06/12/2021,65.26,R & B Transformation 2,Supplies & Services,G57002/D200008,Technical Services Depot,Payments to Contractors External
Ashfield District Council,37UB,J Tomlinson Ltd,V0983052,06/12/2021,65.26,R & B Transformation 2,Supplies & Services,G57002/D200008,Technical Services Depot,Payments to Contractors External
Ashfield District Council,37UB,J Tomlinson Ltd,V0983053,06/12/2021,65.26,R & B Transformation 2,Supplies & Services,G57002/D200008,Technical Services Depot,Payments to Contractors External
Ashfield District Council,37UB,J Tomlinson Ltd,V0983054,06/12/2021,65.26,R & B Transformation 2,Supplies & Services,G57002/D200008,Technical Services Depot,Payments to Contractors External
Ashfield District Council,37UB,J Tomlinson Ltd,V0983055,06/12/2021,65.26,R & B Transformation 2,Supplies & Services,G57002/D200008,Technical Services Depot,Payments to Contractors External
Ashfield District Council,37UB,J Tomlinson Ltd,V0983056,06/12/2021,65.26,R & B Transformation 2,Supplies & Services,G57002/D200008,Technical Services Depot,Payments to Contractors External
Ashfield District Council,37UB,J Tomlinson Ltd,V0983057,06/12/2021,65.26,R & B Transformation 2,Supplies & Services,G57002/D200008,Technical Services Depot,Payments to Contractors External
Ashfield District Council,37UB,J Tomlinson Ltd,V0983058,06/12/2021,65.26,R & B Transformation 2,Supplies & Services,G57002/D200008,Technical Services Depot,Payments to Contractors External
Ashfield District Council,37UB,J Tomlinson Ltd,V0983059,06/12/2021,65.26,R & B Transformation 2,Supplies & Services,G57002/D200008,Technical Services Depot,Payments to Contractors External
Ashfield District Council,37UB,J Tomlinson Ltd,V0983060,06/12/2021,65.26,R & B Transformation 2,Supplies & Services,G57002/D200008,Technical Services Depot,Payments to Contractors External
Ashfield District Council,37UB,J Tomlinson Ltd,V0983061,06/12/2021,65.26,R & B Transformation 2,Supplies & Services,G57002/D200008,Technical Services Depot,Payments to Contractors External
Ashfield District Council,37UB,J Tomlinson Ltd,V0983062,06/12/2021,65.26,R & B Transformation 2,Supplies & Services,G57002/D200008,Technical Services Depot,Payments to Contractors External
Ashfield District Council,37UB,J Tomlinson Ltd,V0983063,06/12/2021,65.26,R & B Transformation 2,Supplies & Services,G57002/D200008,Technical Services Depot,Payments to Contractors External
Ashfield District Council,37UB,J Tomlinson Ltd,V0983064,06/12/2021,65.26,R & B Transformation 2,Supplies & Services,G57002/D200008,Technical Services Depot,Payments to Contractors External
Ashfield District Council,37UB,J Tomlinson Ltd,V0983065,06/12/2021,65.26,R & B Transformation 2,Supplies & Services,G57002/D200008,Technical Services Depot,Payments to Contractors External
Ashfield District Council,37UB,J Tomlinson Ltd,V0983066,06/12/2021,65.26,R & B Transformation 2,Supplies & Services,G57002/D200008,Technical Services Depot,Payments to Contractors External
Ashfield District Council,37UB,J Tomlinson Ltd,V0983067,06/12/2021,65.26,R & B Transformation 2,Supplies & Services,G57002/D200008,Technical Services Depot,Payments to Contractors External
Ashfield District Council,37UB,J Tomlinson Ltd,V0983068,06/12/2021,65.26,R & B Transformation 2,Supplies & Services,G57002/D200008,Technical Services Depot,Payments to Contractors External
Ashfield District Council,37UB,J Tomlinson Ltd,V0983069,06/12/2021,65.26,R & B Transformation 2,Supplies & Services,G57002/D200008,Technical Services Depot,Payments to Contractors External
Ashfield District Council,37UB,J Tomlinson Ltd,V0983070,06/12/2021,65.26,R & B Transformation 2,Supplies & Services,G57002/D200008,Technical Services Depot,Payments to Contractors External
Ashfield District Council,37UB,J Tomlinson Ltd,V0983071,06/12/2021,65.26,R & B Transformation 2,Supplies & Services,G57002/D200008,Technical Services Depot,Payments to Contractors External
Ashfield District Council,37UB,J Tomlinson Ltd,V0983072,06/12/2021,65.26,R & B Transformation 2,Supplies & Services,G57002/D200008,Technical Services Depot,Payments to Contractors External
Ashfield District Council,37UB,J Tomlinson Ltd,V0983073,06/12/2021,65.26,R & B Transformation 2,Supplies & Services,G57002/D200008,Technical Services Depot,Payments to Contractors External
Ashfield District Council,37UB,J Tomlinson Ltd,V0983074,06/12/2021,65.26,R & B Transformation 2,Supplies & Services,G57002/D200008,Technical Services Depot,Payments to Contractors External
Ashfield District Council,37UB,J Tomlinson Ltd,V0983075,06/12/2021,65.26,R & B Transformation 2,Supplies & Services,G57002/D200008,Technical Services Depot,Payments to Contractors External
Ashfield District Council,37UB,J Tomlinson Ltd,V0983076,06/12/2021,65.26,R & B Transformation 2,Supplies & Services,G57002/D200008,Technical Services Depot,Payments to Contractors External
Ashfield District Council,37UB,J Tomlinson Ltd,V0983077,06/12/2021,65.26,R & B Transformation 2,Supplies & Services,G57002/D200008,Technical Services Depot,Payments to Contractors External
Ashfield District Council,37UB,J Tomlinson Ltd,V0983078,06/12/2021,65.26,R & B Transformation 2,Supplies & Services,G57002/D200008,Technical Services Depot,Payments to Contractors External
Ashfield District Council,37UB,J Tomlinson Ltd,V0983079,06/12/2021,65.26,R & B Transformation 2,Supplies & Services,G57002/D200008,Technical Services Depot,Payments to Contractors External
Ashfield District Council,37UB,J Tomlinson Ltd,V0983080,06/12/2021,65.26,R & B Transformation 2,Supplies & Services,G57002/D200008,Technical Services Depot,Payments to Contractors External
Ashfield District Council,37UB,J Tomlinson Ltd,V0983081,06/12/2021,65.26,R & B Transformation 2,Supplies & Services,G57002/D200008,Technical Services Depot,Payments to Contractors External
Ashfield District Council,37UB,J Tomlinson Ltd,V0983082,06/12/2021,65.26,R & B Transformation 2,Supplies & Services,G57002/D200008,Technical Services Depot,Payments to Contractors External
Ashfield District Council,37UB,J Tomlinson Ltd,V0983083,06/12/2021,65.26,R & B Transformation 2,Supplies & Services,G57002/D200008,Technical Services Depot,Payments to Contractors External
Ashfield District Council,37UB,J Tomlinson Ltd,V0983084,06/12/2021,65.26,R & B Transformation 2,Supplies & Services,G57002/D200008,Technical Services Depot,Payments to Contractors External
Ashfield District Council,37UB,J Tomlinson Ltd,V0983085,06/12/2021,65.26,R & B Transformation 2,Supplies & Services,G57002/D200008,Technical Services Depot,Payments to Contractors External
Ashfield District Council,37UB,J Tomlinson Ltd,V0983086,06/12/2021,65.26,R & B Transformation 2,Supplies & Services,G57002/D200008,Technical Services Depot,Payments to Contractors External
Ashfield District Council,37UB,J Tomlinson Ltd,V0983087,06/12/2021,65.26,R & B Transformation 2,Supplies & Services,G57002/D200008,Technical Services Depot,Payments to Contractors External
Ashfield District Council,37UB,J Tomlinson Ltd,V0983088,06/12/2021,65.26,R & B Transformation 2,Supplies & Services,G57002/D200008,Technical Services Depot,Payments to Contractors External
Ashfield District Council,37UB,J Tomlinson Ltd,V0983089,06/12/2021,65.26,R & B Transformation 2,Supplies & Services,G57002/D200008,Technical Services Depot,Payments to Contractors External
Ashfield District Council,37UB,J Tomlinson Ltd,V0983090,06/12/2021,65.26,R & B Transformation 2,Supplies & Services,G57002/D200008,Technical Services Depot,Payments to Contractors External
Ashfield District Council,37UB,J Tomlinson Ltd,V0983091,06/12/2021,65.26,R & B Transformation 2,Supplies & Services,G57002/D200008,Technical Services Depot,Payments to Contractors External
Ashfield District Council,37UB,J Tomlinson Ltd,V0983092,06/12/2021,65.26,R & B Transformation 2,Supplies & Services,G57002/D200008,Technical Services Depot,Payments to Contractors External
Ashfield District Council,37UB,J Tomlinson Ltd,V0983093,06/12/2021,65.26,R & B Transformation 2,Supplies & Services,G57002/D200008,Technical Services Depot,Payments to Contractors External
Ashfield District Council,37UB,J Tomlinson Ltd,V0983094,06/12/2021,65.26,R & B Transformation 2,Supplies & Services,G57002/D200008,Technical Services Depot,Payments to Contractors External
Ashfield District Council,37UB,J Tomlinson Ltd,V0983095,06/12/2021,65.26,R & B Transformation 2,Supplies & Services,G57002/D200008,Technical Services Depot,Payments to Contractors External
Ashfield District Council,37UB,J Tomlinson Ltd,V0983096,06/12/2021,65.26,R & B Transformation 2,Supplies & Services,G57002/D200008,Technical Services Depot,Payments to Contractors External
Ashfield District Council,37UB,J Tomlinson Ltd,V0983097,06/12/2021,65.26,R & B Transformation 2,Supplies & Services,G57002/D200008,Technical Services Depot,Payments to Contractors External
Ashfield District Council,37UB,J Tomlinson Ltd,V0983098,06/12/2021,65.26,R & B Transformation 2,Supplies & Services,G57002/D200008,Technical Services Depot,Payments to Contractors External
Ashfield District Council,37UB,J Tomlinson Ltd,V0983099,06/12/2021,65.26,R & B Transformation 2,Supplies & Services,G57002/D200008,Technical Services Depot,Payments to Contractors External
Ashfield District Council,37UB,J Tomlinson Ltd,V0983100,06/12/2021,65.26,R & B Transformation 2,Supplies & Services,G57002/D200008,Technical Services Depot,Payments to Contractors External
Ashfield District Council,37UB,J Tomlinson Ltd,V0983101,06/12/2021,65.26,R & B Transformation 2,Supplies & Services,G57002/D200008,Technical Services Depot,Payments to Contractors External
Ashfield District Council,37UB,J Tomlinson Ltd,V0983102,06/12/2021,65.26,R & B Transformation 2,Supplies & Services,G57002/D200008,Technical Services Depot,Payments to Contractors External
Ashfield District Council,37UB,J Tomlinson Ltd,V0983103,06/12/2021,65.26,R & B Transformation 2,Supplies & Services,G57002/D200008,Technical Services Depot,Payments to Contractors External
Ashfield District Council,37UB,J Tomlinson Ltd,V0983104,06/12/2021,65.26,R & B Transformation 2,Supplies & Services,G57002/D200008,Technical Services Depot,Payments to Contractors External
Ashfield District Council,37UB,J Tomlinson Ltd,V0983105,06/12/2021,65.26,R & B Transformation 2,Supplies & Services,G57002/D200008,Technical Services Depot,Payments to Contractors External
Ashfield District Council,37UB,J Tomlinson Ltd,V0983106,06/12/2021,65.26,R & B Transformation 2,Supplies & Services,G57002/D200008,Technical Services Depot,Payments to Contractors External
Ashfield District Council,37UB,J Tomlinson Ltd,V0983107,06/12/2021,65.26,R & B Transformation 2,Supplies & Services,G57002/D200008,Technical Services Depot,Payments to Contractors External
Ashfield District Council,37UB,J Tomlinson Ltd,V0983108,06/12/2021,65.26,R & B Transformation 2,Supplies & Services,G57002/D200008,Technical Services Depot,Payments to Contractors External
Ashfield District Council,37UB,J Tomlinson Ltd,V0983109,06/12/2021,65.26,R & B Transformation 2,Supplies & Services,G57002/D200008,Technical Services Depot,Payments to Contractors External
Ashfield District Council,37UB,J Tomlinson Ltd,V0983110,06/12/2021,65.26,R & B Transformation 2,Supplies & Services,G57002/D200008,Technical Services Depot,Payments to Contractors External
Ashfield District Council,37UB,J Tomlinson Ltd,V0983111,06/12/2021,65.26,R & B Transformation 2,Supplies & Services,G57002/D200008,Technical Services Depot,Payments to Contractors External
Ashfield District Council,37UB,J Tomlinson Ltd,V0983112,06/12/2021,65.26,R & B Transformation 2,Supplies & Services,G57002/D200008,Technical Services Depot,Payments to Contractors External
Ashfield District Council,37UB,J Tomlinson Ltd,V0983113,06/12/2021,65.26,R & B Transformation 2,Supplies & Services,G57002/D200008,Technical Services Depot,Payments to Contractors External
Ashfield District Council,37UB,J Tomlinson Ltd,V0983114,06/12/2021,65.26,R & B Transformation 2,Supplies & Services,G57002/D200008,Technical Services Depot,Payments to Contractors External
Ashfield District Council,37UB,J Tomlinson Ltd,V0983115,06/12/2021,65.26,R & B Transformation 2,Supplies & Services,G57002/D200008,Technical Services Depot,Payments to Contractors External
Ashfield District Council,37UB,J Tomlinson Ltd,V0983116,06/12/2021,65.26,R & B Transformation 2,Supplies & Services,G57002/D200008,Technical Services Depot,Payments to Contractors External
Ashfield District Council,37UB,J Tomlinson Ltd,V0983117,06/12/2021,65.26,R & B Transformation 2,Supplies & Services,G57002/D200008,Technical Services Depot,Payments to Contractors External
Ashfield District Council,37UB,J Tomlinson Ltd,V0983118,06/12/2021,65.26,R & B Transformation 2,Supplies & Services,G57002/D200008,Technical Services Depot,Payments to Contractors External
Ashfield District Council,37UB,J Tomlinson Ltd,V0983119,06/12/2021,65.26,R & B Transformation 2,Supplies & Services,G57002/D200008,Technical Services Depot,Payments to Contractors External
Ashfield District Council,37UB,J Tomlinson Ltd,V0983120,06/12/2021,65.26,R & B Transformation 2,Supplies & Services,G57002/D200008,Technical Services Depot,Payments to Contractors External
Ashfield District Council,37UB,J Tomlinson Ltd,V0983121,06/12/2021,65.26,R & B Transformation 2,Supplies & Services,G57002/D200008,Technical Services Depot,Payments to Contractors External
Ashfield District Council,37UB,J Tomlinson Ltd,V0983122,06/12/2021,65.26,R & B Transformation 2,Supplies & Services,G57002/D200008,Technical Services Depot,Payments to Contractors External
Ashfield District Council,37UB,J Tomlinson Ltd,V0983123,06/12/2021,65.26,R & B Transformation 2,Supplies & Services,G57002/D200008,Technical Services Depot,Payments to Contractors External
Ashfield District Council,37UB,J Tomlinson Ltd,V0983124,06/12/2021,65.26,R & B Transformation 2,Supplies & Services,G57002/D200008,Technical Services Depot,Payments to Contractors External
Ashfield District Council,37UB,J Tomlinson Ltd,V0983125,06/12/2021,65.26,R & B Transformation 2,Supplies & Services,G57002/D200008,Technical Services Depot,Payments to Contractors External
Ashfield District Council,37UB,J Tomlinson Ltd,V0983126,06/12/2021,65.26,R & B Transformation 2,Supplies & Services,G57002/D200008,Technical Services Depot,Payments to Contractors External
Ashfield District Council,37UB,J Tomlinson Ltd,V0983127,06/12/2021,65.26,R & B Transformation 2,Supplies & Services,G57002/D200008,Technical Services Depot,Payments to Contractors External
Ashfield District Council,37UB,J Tomlinson Ltd,V0983128,06/12/2021,65.26,R & B Transformation 2,Supplies & Services,G57002/D200008,Technical Services Depot,Payments to Contractors External
Ashfield District Council,37UB,J Tomlinson Ltd,V0983129,06/12/2021,65.26,R & B Transformation 2,Supplies & Services,G57002/D200008,Technical Services Depot,Payments to Contractors External
Ashfield District Council,37UB,J Tomlinson Ltd,V0983130,06/12/2021,65.26,R & B Transformation 2,Supplies & Services,G57002/D200008,Technical Services Depot,Payments to Contractors External
Ashfield District Council,37UB,J Tomlinson Ltd,V0983131,06/12/2021,65.26,R & B Transformation 2,Supplies & Services,G57002/D200008,Technical Services Depot,Payments to Contractors External
Ashfield District Council,37UB,J Tomlinson Ltd,V0983132,06/12/2021,65.26,R & B Transformation 2,Supplies & Services,G57002/D200008,Technical Services Depot,Payments to Contractors External
Ashfield District Council,37UB,J Tomlinson Ltd,V0983133,06/12/2021,65.26,R & B Transformation 2,Supplies & Services,G57002/D200008,Technical Services Depot,Payments to Contractors External
Ashfield District Council,37UB,J Tomlinson Ltd,V0983134,06/12/2021,65.26,R & B Transformation 2,Supplies & Services,G57002/D200008,Technical Services Depot,Payments to Contractors External
Ashfield District Council,37UB,J Tomlinson Ltd,V0983135,06/12/2021,65.26,R & B Transformation 2,Supplies & Services,G57002/D200008,Technical Services Depot,Payments to Contractors External
Ashfield District Council,37UB,J Tomlinson Ltd,V0983136,06/12/2021,65.26,R & B Transformation 2,Supplies & Services,G57002/D200008,Technical Services Depot,Payments to Contractors External
Ashfield District Council,37UB,J Tomlinson Ltd,V0983137,06/12/2021,65.26,R & B Transformation 2,Supplies & Services,G57002/D200008,Technical Services Depot,Payments to Contractors External
Ashfield District Council,37UB,J Tomlinson Ltd,V0983138,06/12/2021,65.26,R & B Transformation 2,Supplies & Services,G57002/D200008,Technical Services Depot,Payments to Contractors External
Ashfield District Council,37UB,J Tomlinson Ltd,V0983139,06/12/2021,65.26,R & B Transformation 2,Supplies & Services,G57002/D200008,Technical Services Depot,Payments to Contractors External
Ashfield District Council,37UB,J Tomlinson Ltd,V0983140,06/12/2021,65.26,R & B Transformation 2,Supplies & Services,G57002/D200008,Technical Services Depot,Payments to Contractors External
Ashfield District Council,37UB,J Tomlinson Ltd,V0983141,06/12/2021,65.26,R & B Transformation 2,Supplies & Services,G57002/D200008,Technical Services Depot,Payments to Contractors External
Ashfield District Council,37UB,J Tomlinson Ltd,V0983142,06/12/2021,65.26,R & B Transformation 2,Supplies & Services,G57002/D200008,Technical Services Depot,Payments to Contractors External
Ashfield District Council,37UB,J Tomlinson Ltd,V0983143,06/12/2021,65.26,R & B Transformation 2,Supplies & Services,G57002/D200008,Technical Services Depot,Payments to Contractors External
Ashfield District Council,37UB,J Tomlinson Ltd,V0983144,06/12/2021,65.26,R & B Transformation 2,Supplies & Services,G57002/D200008,Technical Services Depot,Payments to Contractors External
Ashfield District Council,37UB,J Tomlinson Ltd,V0983294,06/12/2021,62.99,R & B Transformation 2,Supplies & Services,G57002/D200008,Technical Services Depot,Payments to Contractors External
Ashfield District Council,37UB,J Tomlinson Ltd,V0983295,06/12/2021,94.52,R & B Transformation 2,Supplies & Services,G57002/D200008,Technical Services Depot,Payments to Contractors External
Ashfield District Council,37UB,J Tomlinson Ltd,V0983296,06/12/2021,62.99,R & B Transformation 2,Supplies & Services,G57002/D200008,Technical Services Depot,Payments to Contractors External
Ashfield District Council,37UB,J Tomlinson Ltd,V0983297,06/12/2021,32.25,R & B Transformation 2,Supplies & Services,G57002/D200008,Technical Services Depot,Payments to Contractors External
Ashfield District Council,37UB,J Tomlinson Ltd,V0983298,06/12/2021,59.17,R & B Transformation 2,Supplies & Services,G57002/D200008,Technical Services Depot,Payments to Contractors External
Ashfield District Council,37UB,J Tomlinson Ltd,V0983299,06/12/2021,14.27,R & B Transformation 2,Supplies & Services,G57002/D200008,Technical Services Depot,Payments to Contractors External
Ashfield District Council,37UB,J Tomlinson Ltd,V0983300,06/12/2021,64.50,R & B Transformation 2,Supplies & Services,G57002/D200008,Technical Services Depot,Payments to Contractors External
Ashfield District Council,37UB,J Tomlinson Ltd,V0983301,06/12/2021,41.85,R & B Transformation 2,Supplies & Services,G57002/D200008,Technical Services Depot,Payments to Contractors External
Ashfield District Council,37UB,J Tomlinson Ltd,V0983302,06/12/2021,14.27,R & B Transformation 2,Supplies & Services,G57002/D200008,Technical Services Depot,Payments to Contractors External
Ashfield District Council,37UB,J Tomlinson Ltd,V0983303,06/12/2021,32.25,R & B Transformation 2,Supplies & Services,G57002/D200008,Technical Services Depot,Payments to Contractors External
Ashfield District Council,37UB,J Tomlinson Ltd,V0983304,06/12/2021,41.85,R & B Transformation 2,Supplies & Services,G57002/D200008,Technical Services Depot,Payments to Contractors External
Ashfield District Council,37UB,J Tomlinson Ltd,V0983305,06/12/2021,64.50,R & B Transformation 2,Supplies & Services,G57002/D200008,Technical Services Depot,Payments to Contractors External
Ashfield District Council,37UB,J Tomlinson Ltd,V0983306,06/12/2021,32.25,R & B Transformation 2,Supplies & Services,G57002/D200008,Technical Services Depot,Payments to Contractors External
Ashfield District Council,37UB,J Tomlinson Ltd,V0983307,06/12/2021,22.00,R & B Transformation 2,Supplies & Services,G57002/D200008,Technical Services Depot,Payments to Contractors External
Ashfield District Council,37UB,J Tomlinson Ltd,V0983308,06/12/2021,33.90,R & B Transformation 2,Supplies & Services,G57002/D200008,Technical Services Depot,Payments to Contractors External
Ashfield District Council,37UB,J Tomlinson Ltd,V0983309,06/12/2021,64.50,R & B Transformation 2,Supplies & Services,G57002/D200008,Technical Services Depot,Payments to Contractors External
Ashfield District Council,37UB,J Tomlinson Ltd,V0983310,06/12/2021,14.27,R & B Transformation 2,Supplies & Services,G57002/D200008,Technical Services Depot,Payments to Contractors External
Ashfield District Council,37UB,J Tomlinson Ltd,V0983311,06/12/2021,33.90,R & B Transformation 2,Supplies & Services,G57002/D200008,Technical Services Depot,Payments to Contractors External
Ashfield District Council,37UB,J Tomlinson Ltd,V0983312,06/12/2021,62.99,R & B Transformation 2,Supplies & Services,G57002/D200008,Technical Services Depot,Payments to Contractors External
Ashfield District Council,37UB,J Tomlinson Ltd,V0983313,06/12/2021,33.29,R & B Transformation 2,Supplies & Services,G57002/D200008,Technical Services Depot,Payments to Contractors External
Ashfield District Council,37UB,J Tomlinson Ltd,V0983314,06/12/2021,33.29,R & B Transformation 2,Supplies & Services,G57002/D200008,Technical Services Depot,Payments to Contractors External
Ashfield District Council,37UB,J Tomlinson Ltd,V0983315,06/12/2021,62.99,R & B Transformation 2,Supplies & Services,G57002/D200008,Technical Services Depot,Payments to Contractors External
Ashfield District Council,37UB,J Tomlinson Ltd,V0983316,06/12/2021,33.29,R & B Transformation 2,Supplies & Services,G57002/D200008,Technical Services Depot,Payments to Contractors External
Ashfield District Council,37UB,J Tomlinson Ltd,V0983317,06/12/2021,33.29,R & B Transformation 2,Supplies & Services,G57002/D200008,Technical Services Depot,Payments to Contractors External
Ashfield District Council,37UB,J Tomlinson Ltd,V0983608,13/12/2021,64.50,R & B Transformation 2,Supplies & Services,G57002/D200008,Technical Services Depot,Payments to Contractors External
Ashfield District Council,37UB,J Tomlinson Ltd,V0983609,13/12/2021,64.50,R & B Transformation 2,Supplies & Services,G57002/D200008,Technical Services Depot,Payments to Contractors External
Ashfield District Council,37UB,J Tomlinson Ltd,V0983610,13/12/2021,32.25,R & B Transformation 2,Supplies & Services,G57002/D200008,Technical Services Depot,Payments to Contractors External
Ashfield District Council,37UB,J Tomlinson Ltd,V0983611,13/12/2021,62.99,R & B Transformation 2,Supplies & Services,G57002/D200008,Technical Services Depot,Payments to Contractors External
Ashfield District Council,37UB,J Tomlinson Ltd,V0983612,13/12/2021,14.27,R & B Transformation 2,Supplies & Services,G57002/D200008,Technical Services Depot,Payments to Contractors External
Ashfield District Council,37UB,J Tomlinson Ltd,V0983613,13/12/2021,41.85,R & B Transformation 2,Supplies & Services,G57002/D200008,Technical Services Depot,Payments to Contractors External
Ashfield District Council,37UB,J Tomlinson Ltd,V0983614,13/12/2021,14.27,R & B Transformation 2,Supplies & Services,G57002/D200008,Technical Services Depot,Payments to Contractors External
Ashfield District Council,37UB,J Tomlinson Ltd,V0983615,13/12/2021,62.99,R & B Transformation 2,Supplies & Services,G57002/D200008,Technical Services Depot,Payments to Contractors External
Ashfield District Council,37UB,J Tomlinson Ltd,V0983616,13/12/2021,41.85,R & B Transformation 2,Supplies & Services,G57002/D200008,Technical Services Depot,Payments to Contractors External
Ashfield District Council,37UB,J Tomlinson Ltd,V0983617,13/12/2021,62.99,R & B Transformation 2,Supplies & Services,G57002/D200008,Technical Services Depot,Payments to Contractors External
Ashfield District Council,37UB,J Tomlinson Ltd,V0983618,13/12/2021,33.90,R & B Transformation 2,Supplies & Services,G57002/D200008,Technical Services Depot,Payments to Contractors External
Ashfield District Council,37UB,J Tomlinson Ltd,V0983619,13/12/2021,33.29,R & B Transformation 2,Supplies & Services,G57002/D200008,Technical Services Depot,Payments to Contractors External
Ashfield District Council,37UB,J Tomlinson Ltd,V0983620,13/12/2021,32.25,R & B Transformation 2,Supplies & Services,G57002/D200008,Technical Services Depot,Payments to Contractors External
Ashfield District Council,37UB,J Tomlinson Ltd,V0983621,13/12/2021,32.25,R & B Transformation 2,Supplies & Services,G57002/D200008,Technical Services Depot,Payments to Contractors External
Ashfield District Council,37UB,J Tomlinson Ltd,V0983622,13/12/2021,33.90,R & B Transformation 2,Supplies & Services,G57002/D200008,Technical Services Depot,Payments to Contractors External
Ashfield District Council,37UB,J Tomlinson Ltd,V0983623,13/12/2021,44.29,R & B Transformation 2,Supplies & Services,G57002/D200008,Technical Services Depot,Payments to Contractors External
Ashfield District Council,37UB,J Tomlinson Ltd,V0983624,13/12/2021,62.99,R & B Transformation 2,Supplies & Services,G57002/D200008,Technical Services Depot,Payments to Contractors External
Ashfield District Council,37UB,J Tomlinson Ltd,V0983625,13/12/2021,33.90,R & B Transformation 2,Supplies & Services,G57002/D200008,Technical Services Depot,Payments to Contractors External
Ashfield District Council,37UB,J Tomlinson Ltd,V0983626,13/12/2021,32.25,R & B Transformation 2,Supplies & Services,G57002/D200008,Technical Services Depot,Payments to Contractors External
Ashfield District Council,37UB,J Tomlinson Ltd,V0983627,13/12/2021,33.29,R & B Transformation 2,Supplies & Services,G57002/D200008,Technical Services Depot,Payments to Contractors External
Ashfield District Council,37UB,J Tomlinson Ltd,V0983628,13/12/2021,33.90,R & B Transformation 2,Supplies & Services,G57002/D200008,Technical Services Depot,Payments to Contractors External
Ashfield District Council,37UB,J Tomlinson Ltd,V0983629,13/12/2021,41.85,R & B Transformation 2,Supplies & Services,G57002/D200008,Technical Services Depot,Payments to Contractors External
Ashfield District Council,37UB,J Tomlinson Ltd,V0983630,13/12/2021,33.90,R & B Transformation 2,Supplies & Services,G57002/D200008,Technical Services Depot,Payments to Contractors External
Ashfield District Council,37UB,J Tomlinson Ltd,V0983631,13/12/2021,64.50,R & B Transformation 2,Supplies & Services,G57002/D200008,Technical Services Depot,Payments to Contractors External
Ashfield District Council,37UB,J Tomlinson Ltd,V0983632,13/12/2021,64.50,R & B Transformation 2,Supplies & Services,G57002/D200008,Technical Services Depot,Payments to Contractors External
Ashfield District Council,37UB,J Tomlinson Ltd,V0983633,13/12/2021,32.25,R & B Transformation 2,Supplies & Services,G57002/D200008,Technical Services Depot,Payments to Contractors External
Ashfield District Council,37UB,J Tomlinson Ltd,V0983634,13/12/2021,65.26,R & B Transformation 2,Supplies & Services,G57002/D200008,Technical Services Depot,Payments to Contractors External
Ashfield District Council,37UB,J Tomlinson Ltd,V0983635,13/12/2021,65.26,R & B Transformation 2,Supplies & Services,G57002/D200008,Technical Services Depot,Payments to Contractors External
Ashfield District Council,37UB,J Tomlinson Ltd,V0983636,13/12/2021,65.26,R & B Transformation 2,Supplies & Services,G57002/D200008,Technical Services Depot,Payments to Contractors External
Ashfield District Council,37UB,J Tomlinson Ltd,V0983637,13/12/2021,65.26,R & B Transformation 2,Supplies & Services,G57002/D200008,Technical Services Depot,Payments to Contractors External
Ashfield District Council,37UB,J Tomlinson Ltd,V0983638,13/12/2021,65.26,R & B Transformation 2,Supplies & Services,G57002/D200008,Technical Services Depot,Payments to Contractors External
Ashfield District Council,37UB,J Tomlinson Ltd,V0983639,13/12/2021,65.26,R & B Transformation 2,Supplies & Services,G57002/D200008,Technical Services Depot,Payments to Contractors External
Ashfield District Council,37UB,J Tomlinson Ltd,V0983640,13/12/2021,65.26,R & B Transformation 2,Supplies & Services,G57002/D200008,Technical Services Depot,Payments to Contractors External
Ashfield District Council,37UB,J Tomlinson Ltd,V0983641,13/12/2021,65.26,R & B Transformation 2,Supplies & Services,G57002/D200008,Technical Services Depot,Payments to Contractors External
Ashfield District Council,37UB,J Tomlinson Ltd,V0983642,13/12/2021,65.26,R & B Transformation 2,Supplies & Services,G57002/D200008,Technical Services Depot,Payments to Contractors External
Ashfield District Council,37UB,J Tomlinson Ltd,V0983643,13/12/2021,65.26,R & B Transformation 2,Supplies & Services,G57002/D200008,Technical Services Depot,Payments to Contractors External
Ashfield District Council,37UB,J Tomlinson Ltd,V0983644,13/12/2021,65.26,R & B Transformation 2,Supplies & Services,G57002/D200008,Technical Services Depot,Payments to Contractors External
Ashfield District Council,37UB,J Tomlinson Ltd,V0983645,13/12/2021,65.26,R & B Transformation 2,Supplies & Services,G57002/D200008,Technical Services Depot,Payments to Contractors External
Ashfield District Council,37UB,J Tomlinson Ltd,V0983646,13/12/2021,65.26,R & B Transformation 2,Supplies & Services,G57002/D200008,Technical Services Depot,Payments to Contractors External
Ashfield District Council,37UB,J Tomlinson Ltd,V0983647,13/12/2021,65.26,R & B Transformation 2,Supplies & Services,G57002/D200008,Technical Services Depot,Payments to Contractors External
